{"text_format":"1","workbook":"xlsx","n_sheets":10,"sheets":["Schedule","ShipRequests","Projects","DateLog","Lookup","Asset_Sum","UniqueSTYLES","DataSheet","ChangeLog","Print"],"not_rendered":{"charts":0,"images":0,"macros":1,"external_links":0,"defined_names":31,"comments":1,"pivot_tables":0},"unopened":[],"bounds":{"document_bytes":16777216,"sheet_cells":100000,"rows_first":2000,"rows_last":500,"rows_between":2000,"halvings":0,"cell_chars":16384,"cell_head_chars":4096},"cells_cut":0,"cells_raw":0,"read":"whole","date_system":"1900"}

{"sheet":"Schedule","index":0,"n_rows":338,"n_cols":29,"rows_kept":338,"cut":false,"hidden":false,"merged":[]}
[]
[]
[null,"Carson",null,null,null,null,null,null,null,null,null,null,null,null,null,null,null,null,null,null,null,null,null,null,null,null,null,null,2019]
[]
[]
[null,"S","M","T","W ","T","F","S",null,null,"S","M","T","W ","T","F","S",null,null,"S","M","T","W ","T","F","S"]
[null,"JANUARY",null,null,null,null,null,null,null,null,"MAY",null,null,null,null,null,null,null,null,"SEPTEMBER"]
[null,null,null,"2019-01-01","2019-01-02","2019-01-03","2019-01-04","2019-01-05",null,null,null,null,null,"2019-05-01","2019-05-02","2019-05-03","2019-05-04",null,null,"2019-09-01","2019-09-02","2019-09-03","2019-09-04","2019-09-05","2019-09-06","2019-09-07"]
["RC",null,null,null,"Maint","Maint","Maint",null,null,null,null,null,null,"Mob","Chavez","KBB AUV",null,null,null,"Clague","Clague","Maint","Maint","Maint","Maint",null,"RC"]
["RC.a",null,null,null,null,null,null,null,null,null,null,null,null,null,"CTD","i2MAP",null,null,null,"MAP","MAP",null,null,null,null,null,"RC.a"]
["RC.2",null,null,null,null,null,null,null,null,null,null,null,null,null,null,null,null,null,null,null,null,null,null,null,null,null,"RC.2"]
["RC.3",null,null,null,null,null,null,null,null,null,null,null,null,null,null,null,null,null,null,null,"MB",null,null,"DJO",null,null,"RC.3"]
["WF",null,null,null,null,null,null,null,null,null,null,null,null,null,null,null,null,null,null,null,null,null,null,null,null,"Worden","WF"]
["WF.a",null,null,null,null,null,null,null,null,null,null,null,null,null,null,null,null,null,null,null,null,null,null,null,null,"ROV  0800","WF.a"]
["WF.2",null,null,null,null,null,null,null,null,null,null,null,null,null,null,null,null,null,null,null,null,null,null,null,null,null,"WF.2"]
["WF.3",null,null,null,null,null,null,null,null,null,null,null,null,null,null,null,null,null,null,null,null,null,null,null,null,null,"WF.3"]
["EX",null,null,"Chavez","Chavez",null,null,null,null,null,null,null,null,"Chavez","Chavez",null,null,null,null,null,"Rock","Chavez","Chavez",null,null,null,"EX"]
["EX.a",null,null,null,null,null,null,null,null,null,null,null,null,null,null,null,null,null,null,null,null,null,null,null,null,null,"EX.a"]
["PG",null,null,null,null,null,null,null,null,null,null,null,null,"Chavez","Chavez",null,null,null,null,null,null,"AMP",null,null,null,null,"PG"]
["PG.a",null,null,null,null,null,null,null,null,null,null,null,null,"AUV CTD","AUV CTD",null,null,null,null,null,null,null,null,null,null,null,"PG.a"]
["PG.2",null,null,null,null,null,null,null,null,null,null,null,null,"Barry",null,null,null,null,null,null,null,"Ryan",null,null,null,null,"PG.2"]
["BK.1",null,null,null,null,null,null,null,null,null,null,null,null,null,null,null,null,null,null,null,null,null,null,null,null,null,"BK.1"]
[null,"2019-01-06","2019-01-07","2019-01-08","2019-01-09","2019-01-10","2019-01-11","2019-01-12",null,null,"2019-05-05","2019-05-06","2019-05-07","2019-05-08","2019-05-09","2019-05-10","2019-05-11",null,null,"2019-09-08","2019-09-09","2019-09-10","2019-09-11","2019-09-12","2019-09-13","2019-09-14"]
["RC",null,"Robison","Robison","AMP-M","Maint","Mob",null,null,null,null,"Maint","Maint","Maint","Paull 24","Paull","Paull",null,null,null,"Maint","Maint","Mob","Chavez","Mob",null,"RC"]
["RC.a",null,"ROV   i2MAP","ROV   i2MAP","ROV",null,null,null,null,null,null,null,null,null,"MAP","MAP","MAP",null,null,null,null,null,null,"CTD",null,null,"RC.a"]
["RC.2",null,null,null,null,null,null,null,null,null,null,null,null,null,null,null,null,null,null,null,null,null,null,null,null,null,"RC.2"]
["RC.3",null,null,null,null,null,null,null,null,null,null,null,null,null,null,null,null,null,null,null,"MB",null,null,"DJO",null,null,"RC.3"]
["WF",null,"Goffredi","Goffredi","Goffredi",null,null,null,null,null,null,null,"ABS LL",null,null,null,"Takeshita",null,null,"Worden","Worden","Worden","Worden","Worden","Worden","Worden","WF"]
["WF.a",null,"ROV  0800","ROV","ROV  1330",null,null,null,null,null,null,null,null,null,null,null,"CTD  0530",null,null,"ROV","ROV","ROV","ROV","ROV","ROV","ROV","WF.a"]
["WF.2",null,null,null,null,null,null,null,null,null,null,null,null,null,null,null,null,null,null,null,null,null,null,null,null,null,"WF.2"]
["WF.3",null,null,null,null,null,null,null,null,null,null,null,null,null,null,null,null,null,null,null,null,null,null,null,null,null,"WF.3"]
["EX",null,"Rock",null,null,null,null,null,null,null,null,"Rock",null,null,null,null,null,null,null,null,null,null,null,null,null,null,"EX"]
["EX.a",null,null,null,null,null,null,null,null,null,null,null,null,null,null,null,null,null,null,null,null,null,null,null,null,null,"EX.a"]
["PG",null,null,null,null,null,null,null,null,null,null,null,"Ryan",null,null,null,null,null,null,null,null,"Ryan","Chavez","Chavez",null,null,"PG"]
["PG.a",null,null,null,null,null,null,null,null,null,null,null,null,null,null,null,null,null,null,null,null,null,"AUV CTD","AUV CTD",null,null,"PG.a"]
["PG.2",null,null,null,null,null,null,null,null,null,null,null,null,null,null,null,null,null,null,null,null,null,null,null,null,null,"PG.2"]
["BK.1",null,null,null,null,null,null,null,null,null,null,null,null,null,null,null,null,null,null,null,null,null,null,null,null,null,"BK.1"]
[null,"2019-01-13","2019-01-14","2019-01-15","2019-01-16","2019-01-17","2019-01-18","2019-01-19",null,null,"2019-05-12","2019-05-13","2019-05-14","2019-05-15","2019-05-16","2019-05-17","2019-05-18",null,null,"2019-09-15","2019-09-16","2019-09-17","2019-09-18","2019-09-19","2019-09-20","2019-09-21"]
["RC",null,"Maint","weather","Mob","Chavez","Mob",null,null,null,"Paull","Paull","Paull","Maint","Maint","Maint",null,null,null,null,"KBB M","Robison","Robison","Haddock","Maint",null,"RC"]
["RC.a",null,null,null,null,"CTD",null,null,null,null,"MAP","MAP","MAP",null,null,null,null,null,null,null,"ROV   i2MAP","ROV   i2MAP","ROV","ROV",null,null,"RC.a"]
["RC.2",null,null,null,null,null,null,null,null,null,null,null,null,null,null,null,null,null,null,null,null,null,null,"MB ",null,null,"RC.2"]
["RC.3",null,null,null,null,null,null,null,null,null,null,null,null,null,null,null,null,null,null,null,"MB - CW",null,"MB","DJO-CW","MB",null,"RC.3"]
["WF",null,null,null,null,null,null,null,null,null,"Takeshita","Takeshita","Takeshita","Takeshita","Takeshita","Takeshita",null,null,null,"Worden","Worden",null,null,null,null,null,"WF"]
["WF.a",null,null,null,null,null,null,null,null,null,"CTD","CTD","CTD","CTD","CTD","CTD  1930",null,null,null,"ROV  1400","ROV  1430",null,null,null,null,null,"WF.a"]
["WF.2",null,null,null,null,null,null,null,null,null,null,null,null,null,null,null,null,null,null,null,null,null,null,null,null,null,"WF.2"]
["WF.3",null,null,null,null,null,null,null,null,null,null,null,null,null,null,null,null,null,null,null,null,null,null,null,null,null,"WF.3"]
["EX",null,"TEST Ext",null,"AUV in MEXICO",null,"test",null,null,null,null,null,null,null,null,null,null,null,null,null,null,null,null,null,null,null,"EX"]
["EX.a",null,"ROV",null,"MAP","MAP","MAP",null,null,null,null,null,null,null,null,null,null,null,null,null,null,null,null,null,null,null,"EX.a"]
["PG",null,null,null,"Chavez","Chavez",null,null,null,null,null,"Barry","Ryan","Katija",null,null,null,null,null,null,null,null,null,null,null,null,"PG"]
["PG.a",null,null,null,"AUV CTD","AUV CTD",null,null,null,null,null,null,null,null,null,null,null,null,null,null,null,null,null,null,null,null,"PG.a"]
["PG.2",null,null,null,null,null,null,null,null,null,null,null,null,null,null,null,null,null,null,null,null,null,null,null,null,null,"PG.2"]
["BK.1",null,null,null,null,null,null,null,null,null,null,null,null,null,null,null,null,null,null,null,null,null,null,null,null,null,"BK.1"]
[null,"2019-01-20","2019-01-21","2019-01-22","2019-01-23","2019-01-24","2019-01-25","2019-01-26",null,null,"2019-05-19","2019-05-20","2019-05-21","2019-05-22","2019-05-23","2019-05-24","2019-05-25",null,null,"2019-09-22","2019-09-23","2019-09-24","2019-09-25","2019-09-26","2019-09-27","2019-09-28"]
["RC",null,null,"Barry","Maint","Rock","Caress",null,null,null,null,"Maint","Maint","Robison","Robison","Mob",null,null,null,null,"AMP-M","Mob","AMP-B","AMP-B","Rock AUV",null,"RC"]
["RC.a",null,null,"ROV",null,"ICEBERG","MAP",null,null,null,null,null,null,"ROV  ","ROV",null,null,null,null,null,"ROV",null,"ROV","ROV","ICEBERG",null,"RC.a"]
["RC.2",null,null,"0630-1600",null,null,null,null,null,null,null,null,"0900-1900","0600-1530",null,null,null,null,null,null,null,null,null,null,null,null,"RC.2"]
["RC.3",null,null,null,null,null,null,null,null,null,null,null,null,null,null,null,null,null,null,null,"MB-Craig",null,null,"DJO",null,null,"RC.3"]
["WF",null,null,"AMP","AMP","AMP","AMP",null,null,null,null,null,null,null,null,null,null,null,null,null,"Caress","Caress","Caress","Caress","Caress",null,"WF"]
["WF.a",null,null,"ROV  0830","ROV","ROV","ROV  1500",null,null,null,null,null,null,null,null,null,null,null,null,null,"ROV  1530","ROV","ROV","ROV","ROV  1930",null,"WF.a"]
["WF.2",null,null,null,null,null,null,null,null,null,null,null,null,null,null,null,null,null,null,null,null,null,null,null,null,null,"WF.2"]
["WF.3",null,null,null,null,null,null,null,null,null,null,null,null,null,null,null,null,null,null,null,null,null,null,null,null,null,"WF.3"]
["EX",null,null,null,null,null,null,null,null,null,null,null,null,null,null,null,null,null,null,null,null,null,null,null,null,null,"EX"]
["EX.a",null,null,null,null,null,null,null,null,null,null,null,null,null,null,null,null,null,null,null,null,null,null,null,null,null,"EX.a"]
["PG",null,null,null,null,null,null,null,null,null,null,null,null,null,null,null,null,null,null,null,"Smith",null,null,null,null,null,"PG"]
["PG.a",null,null,null,null,null,null,null,null,null,null,null,null,null,null,null,null,null,null,null,null,null,null,null,null,null,"PG.a"]
["PG.2",null,null,null,null,null,null,null,null,null,null,null,null,null,null,null,null,null,null,null,"Katija",null,null,null,null,null,"PG.2"]
["BK.1",null,null,null,null,null,null,null,null,null,null,null,null,null,null,null,null,null,null,null,null,null,null,null,null,null,"BK.1"]
[null,"2019-01-27","2019-01-28","2019-01-29","2019-01-30","2019-01-31",null,null,null,null,"2019-05-26","2019-05-27","2019-05-28","2019-05-29","2019-05-30","2019-05-31",null,null,null,"2019-09-29","2019-09-30"]
["RC",null,"Mob","KBB-B ","Barry","Ryan 12",null,null,null,null,null,null,"Quest 12","Mob","Barry","Mob",null,null,null,null,"Maint",null,null,null,null,null,"RC"]
["RC.a",null,null,"ROV","ROV","ROV",null,null,null,null,null,null,"ROV MARS",null,"ROV",null,null,null,null,null,null,null,null,null,null,null,"RC.a"]
["RC.2",null,null,null,null,null,null,null,null,null,null,null,null,null,"DJO",null,null,null,null,null,null,null,null,null,null,null,"RC.2"]
["RC.3",null,null,null,null,null,null," ",null,null,null,null,"SH-work",null,"SH-work",null,null,null,null,null,null,null,null,null,null,null,"RC.3"]
["WF",null,null,null,null,null,null,null,null,null,null,null,null,null,"CANON","CANON",null,null,null,null,null,null,null,null,null,null,"WF"]
["WF.a",null,null,null,null,null,null,null,null,null,null,null,null,null,"CTD  1830","CTD",null,null,null,null,null,null,null,null,null,null,"WF.a"]
["WF.2",null,null,null,null,null,null,null,null,null,null,null,null,null,null,null,null,null,null,null,null,null,null,null,null,null,"WF.2"]
["WF.3",null,null,null,null,null,null,null,null,null,null,null,null,null,null,null,null,null,null,null,null,null,null,null,null,null,"WF.3"]
["EX",null,null,null,null,null,null,null,null,null,null,null,null,null,null,null,null,null,null,null,null,null,null,null,null,null,"EX"]
["EX.a",null,null,null,null,null,null,null,null,null,null,null,null,null,null,null,null,null,null,null,null,null,null,null,null,null,"EX.a"]
["PG",null,null,null,null,"M1 Maint",null,null,null,null,null,null,null,null,null,null,null,null,null,null,"Smith",null,null,null,null,null,"PG"]
["PG.a",null,null,null,null,null,null,null,null,null,null,null,null,null,null,null,null,null,null,null,null,null,null,null,null,null,"PG.a"]
["PG.2",null,null,null,null,null,null,null,null,null,null,null,null,null,null,null,null,null,null,null,null,null,null,null,null,null,"PG.2"]
["BK.1",null,null,null,null,null,null,null,null,null,null,null,null,null,null,null,null,null,null,null,null,null,null,null,null,null,"BK.1"]
[]
[null,"FEBRUARY",null,null,null,null,"2019-02-01","2019-02-02",null,null,"JUNE",null,null,null," ",null,"2019-06-01",null,null,"OCTOBER",null,"2019-10-01","2019-10-02","2019-10-03","2019-10-04","2019-10-05"]
["RC",null,null,null,null," ","Mob",null,null,null,null,null,null,null,null,null,null,null,null,null,null,"Maint","Maint","Svc Awards","Maint",null,"RC"]
["RC.a",null,null,null,null,null,null,null,null,null,null,null,null,null," ",null,null,null,null,null,null,null,null,null,null,null,"RC.a"]
["RC.2",null,null,null,null,null,null,null,null,null,null,null,null,null,null,null,null,null,null,null,null,null,null,null,null,null,"RC.2"]
["RC.3",null,null,null,null,null,null,null,null,null,null,null,null,null,null,null,null,null,null,null,null,null,null,"DJO",null,null,"RC.3"]
["WF",null,null,null,null,null,null,null,null,null,null,null,null,null,null,null,"CANON",null,null,null,null,null,null,"Svc Awards","CANON","CANON","WF"]
["WF.a",null,null,null,null,null,null,null,null,null,null,null,null,null,null,null,"CTD",null,null,null,null,null,null,null,"CTD  1230","CTD","WF.a"]
["WF.2",null,null,null,null,null,null,null,null,null,null,null,null,null,null,null,null,null,null,null,null,null,null,null,null,null,"WF.2"]
["WF.3",null,null,null,null,null,null,null,null,null,null,null,null,null,null,null,null,null,null,null,null,null,null,null,null,null,"WF.3"]
["EX",null,null,null,null,null,"Chavez","Chavez",null,null,null,null,null,null,null,null,"CANON",null,null,null,null,"CANON","Chavez","CANON","Chavez",null,"EX"]
["EX.a",null,null,null,null,null,null,null,null,null,null,null,null,null,null,null,null,null,null,null,null,null,null,null,null,null,"EX.a"]
["PG",null,null,null,null,null,null,null,null,null,null,null,null,null,null,null,null,null,null,null,null,null,null,null,null,null,"PG"]
["PG.a",null,null,null,null,null,null,null,null,null,null,null,null,null,null,null,null,null,null,null,null,null,null,null,null,null,"PG.a"]
["PG.2",null,null,null,null,null,null,null,null,null,null,null,null,null,null,null,null,null,null,null,null,"Barry",null,null,null,null,"PG.2"]
["BK.1",null,null,null,null,null,null,null,null,null,null,null,null,null,null,null,null,null,null,null,null,null,null,null,null,null,"BK.1"]
[null,"2019-02-03","2019-02-04","2019-02-05","2019-02-06","2019-02-07","2019-02-08","2019-02-09",null,null,"2019-06-02","2019-06-03","2019-06-04","2019-06-05","2019-06-06","2019-06-07","2019-06-08",null,null,"2019-10-06","2019-10-07","2019-10-08","2019-10-09","2019-10-10","2019-10-11","2019-10-12"]
["RC",null,"Robison","Robison","AMP-M","KBB-M","Mob",null,null,null,null,"CANON ROV","CANON ROV","Maint","KBB R A","Robi AUV",null,null,null,null,"CANON ROV","CANON ROV","Mob","Barry","Maint",null,"RC"]
["RC.a",null,"ROV   i2MAP","ROV   i2MAP","ROV","ROV",null,null,null,null,null,"ROV i2MAP","ROV i2MAP",null,"ROV   i2MAP","i2MAP",null,null,null,null,"ROV","ROV",null,"ROV",null,null,"RC.a"]
["RC.2",null,"0630-1600",null,null,null,null,null,null,null,null,"MB-work?","0830-1800",null,"DJO-work","DJO",null,null,null,null,null,null,null,null,null,null,"RC.2"]
["RC.3",null,null,null,null,null,null,null,null,null,null,"SH-work","SH-work",null,null,"MB",null,null,null,null,"MB-SH",null,null,"DJO-CW",null,null,"RC.3"]
["WF",null,"Paull","Paull","Paull","Paull","Paull","Paull",null,null,"CANON","CANON","CANON",null,null,null,null,null,null,"CANON","CANON","CANON","CANON",null,null,null,"WF"]
["WF.a",null,"ROV  1000","ROV","ROV","ROV","ROV","ROV",null,null,"CTD","CTD","CTD  2030",null,null,null,null,null,null,"CTD","CTD","CTD","CTD  1900",null,null,null,"WF.a"]
["WF.2",null,null,null,null,null,null,null,null,null,null,null,null,null,null,null,null,null,null,null,null,null,null,null,null,null,"WF.2"]
["WF.3",null,null,null,null,null,null,null,null,null,null,null,null,null,null,null,null,null,null,null,null,null,null,null,null,null,"WF.3"]
["EX",null,null,null,null,null,null,null,null,null,"Chavez","Chavez",null,"CANON",null,null,null,null,null,null,null,null,null,null,null,null,"EX"]
["EX.a",null,null,null,null,null,null,null,null,null,null,null,null,null,null,null,null,null,null,null,null,null,null,null,null,null,"EX.a"]
["PG",null,null,null,null,null,null,null,null,null,null,"Chaffey","Ryan",null,null,null,null,null,null,null,null,"Ryan",null,null,null,null,"PG"]
["PG.a",null,null,null,null,null,null,null,null,null,null,null,null,null,null,null,null,null,null,null,null,null,null,null,null,null,"PG.a"]
["PG.2",null,null,null,null,null,null,null,null,null,null,null,null,null,null,null,null,null,null,null,null,null,null,null,null,null,"PG.2"]
["BK.1",null,null,null,null,null,null,null,null,null,null,null,null,null,null,null,null,null,null,null,null,null,null,null,null,null,"BK.1"]
[null,"2019-02-10","2019-02-11","2019-02-12","2019-02-13","2019-02-14","2019-02-15","2019-02-16",null,null,"2019-06-09","2019-06-10","2019-06-11","2019-06-12","2019-06-13","2019-06-14","2019-06-15",null,null,"2019-10-13","2019-10-14","2019-10-15","2019-10-16","2019-10-17","2019-10-18","2019-10-19"]
["RC",null,"Barry","AMP-B","Mob","Chavez","Maint",null,null,null,null,"AMP-M","KBB-M","Mob","Caress","Mob",null,null,null,null,"DeepSea","Barry","Mob","AMP-M","Maint",null,"RC"]
["RC.a",null,"ROV","ROV",null,"CTD",null,null,null,null,null,"ROV","ROV",null,"MAP",null,null,null,null,null,"ROV","ROV",null,"ROV",null,null,"RC.a"]
["RC.2",null,null,null,null,null,null,null,null,null,null,"DJO-CW","DJO","DJO","DJO","DJO",null,null,null,null,null,null,null,"DJO-work?",null,null,"RC.2"]
[null,null,null,null,null,null,null,null,null,null,null,"MB"]
["RC.3",null,null,null,null,null,null,null,null,null,null,"SH work","SH-work",null,null,null,null,null,null,null,"MB - SH","MB - SH","MB","MB - SH","MB",null,"RC.3"]
["WF","Paull","Paull","Paull","Paull","return",null,null,null,null,null,null,"Robison","Robison","Robison","Robison","Robison",null,null,null,null,null,"Smith","Smith","Smith","Smith","WF"]
["WF.a","ROV","ROV","ROV","ROV","ROV  0700",null,null,null,null,null,null,"ROV  0600","ROV","ROV","ROV","ROV",null,null,null,null,null,"ROV  1430","ROV","ROV","ROV","WF.a"]
["WF.2",null,null,null,null,null,null,null,null,null,null,null,null,null,null,null,null,null,null,null,null,null,null,null,null,null,"WF.2"]
["WF.3",null,null,null,null,null,null,null,null,null,null,null,null,null,null,null,null,null,null,null,null,null,null,null,null,null,"WF.3"]
["EX",null,null,null,null,null,null,null,null,null,null,null,null,null,null,null,null,null,null,null,null,null,null,null,null,null,"EX"]
["EX.a",null,null,null,null,null,null,null,null,null,null,null,null,null,null,null,null,null,null,null,null,null,null,null,null,null,"EX.a"]
["PG",null,"Fassbender",null,"Chavez","Chavez",null,null,null,null,null,"Fassbender","Ryan","Hamilton",null,null,null,null,null,null,null,"Ryan","Chavez","Chavez",null,null,"PG"]
["PG.a",null,null,null,"AUV CTD","AUV CTD",null,null,null,null,null,null,null,null,null,null,null,null,null,null,null,null,"AUV CTD","AUV CTD",null,null,"PG.a"]
["PG.2",null,null,null,null,null,null,null,null,null,null,null,null,"Katija",null,null,null,null,null,null,null,"Ryan",null,null,null,null,"PG.2"]
["BK.1",null,null,null,null,null,null,null,null,null,null,null,null,null,null,null,null,null,null,null,null,null,null,null,null,null,"BK.1"]
[null,"2019-02-17","2019-02-18","2019-02-19","2019-02-20","2019-02-21","2019-02-22","2019-02-23",null,null,"2019-06-16","2019-06-17","2019-06-18","2019-06-19","2019-06-20","2019-06-21","2019-06-22",null,null,"2019-10-20","2019-10-21","2019-10-22","2019-10-23","2019-10-24","2019-10-25","2019-10-26"]
["RC",null,null,"Barry","AMP-B","DMO","Mob",null,null,null,null,"AMP-B","Mob","Mesobot","Katija","Katija",null,null,null,null,"KBB R A","Robison","Robison","Chavez","Maint",null,"RC"]
["RC.a",null,null,"ROV","ROV","ROV",null,null,null,null,null,"ROV",null,null,"MiniROV","MiniROV",null,null,null,null,"ROV   i2MAP","ROV   i2MAP","ROV","CTD",null,null,"RC.a"]
["RC.2",null,null,"0600-1500","0630-1600",null,null,null,null,null,null,"MB-CW","MB","MB","MB","MB",null,null,null,null,null,null,null,null,null,null,"RC.2"]
["RC.3",null,null,null,null,null,null,null,null,null,null,"SH-work","SH-work",null,"DJO",null,null,null,null,null,"MB - CW",null,null,"DJO",null,null,"RC.3"]
["WF",null,null,null,null,null,null,null,null,null,"Robison","Robison",null,"ISPS Audit",null,null,null,null,null,"Smith","Smith","Smith","Smith","Smith","Smith",null,"WF"]
["WF.a",null,null,null,null,null,null,null,null,null,"ROV","ROV  2000",null,null,null,null,null,null,null,"ROV","ROV","ROV","ROV","ROV","ROV  1100",null,"WF.a"]
["WF.2",null,null,null,null,null,null,null,null,null,null,null,null,null,null,null,null,null,null,null,null,null,null,null,null,null,"WF.2"]
["WF.3",null,null,null,null,null,null,null,null,null,null,null,null,null,null,null,null,null,null,null,null,null,null,null,null,null,"WF.3"]
["EX",null,null,null,null,null,null,null,null,null,null,null,null,null,null,null,null,null,null,null,null,null,null,null,null,null,"EX"]
["EX.a",null,null,null,null,null,null,null,null,null,null,null,null,null,null,null,null,null,null,null,null,null,null,null,null,null,"EX.a"]
["PG",null,null,null,null,null,null,null,null,null,null,"Johnson",null,null,null,null,null,null,null,null,null,null,"Katija",null,null,null,"PG"]
["PG.a",null,null,null,null,null,null,null,null,null,null,null,null,null,null,null,null,null,null,null,null,null,null,null,null,null,"PG.a"]
["PG.2",null,null,null,null,null,null,null,null,null,null,"Barry",null,null,null,null,null,null,null,null,null,null,null,null,null,null,"PG.2"]
["BK.1",null,null,null,null,null,null,null,null,null,null,null,"Haddock","Haddock","Haddock","Haddock","Haddock",null,null,null,null,null,null,null,null,null,"BK.1"]
[null,"2019-02-24","2019-02-25","2019-02-26","2019-02-27","2019-02-28",null,null,null,null,"2019-06-23","2019-06-24","2019-06-25","2019-06-26","2019-06-27","2019-06-28","2019-06-29",null,null,"2019-10-27","2019-10-28","2019-10-29","2019-10-30","2019-10-31"]
["RC",null,"AMP-M","KBB AUV","Mob","Robi AUV",null," ",null,null,null,"Mob","AMP-B","Mob","Chavez",null,null,null,null,null,"AMP-M","Haddock","Mob","Mesobot",null,null,"RC"]
["RC.a",null,"ROV","i2MAP",null,"i2MAP"," ",null,null,null,null,null,"ROV",null,"CTD",null,null,null,null,null,"ROV","ROV",null,null,null,null,"RC.a"]
["RC.2",null,null,null,null,null,null,null,null,null,null,null,null,"DJO","DJO","DJO",null,null,null,null,"0630-1600",null,null,null,null,null,"RC.2"]
["RC.3",null,null,null,null,null,null,null,null,null,null,"MB","SH-work",null,null,null,null,null,null,null,"MB-CW",null,null,"DJO",null,null,"RC.3"]
["WF",null,null,null,null,null,null,null,null,null,null,null,"Caress","Caress","Caress","Caress",null,null,null,null,null,null,null,null,null,null,"WF"]
["WF.a",null,null,null,null,null,null,null,null,null,null,null,"ROV  1700","ROV","ROV","ROV  1900",null,null,null,null,null,null,null,null,null,null,"WF.a"]
["WF.2",null,null,null,null,null,null,null,null,null,null,null,null,null,null,null,null,null,null,null,null,null,null,null,null,null,"WF.2"]
["WF.3",null,null,null,null,null,null,null,null,null,null,null,null,null,null,null,null,null,null,null,null,null,null,null,null,null,"WF.3"]
["EX",null,null,null,null,null,null,null,null,null,null,null,null,null,null,null,null,null,null,null,null,null,null,null,null,null,"EX"]
["EX.a",null,null,null,null,null,null,null,null,null,null,null,null,null,null,null,null,null,null,null,null,null,null,null,null,null,"EX.a"]
["PG",null,null,null,null,null,null,null,null,null,null,null,null,"Chavez","Chavez",null,null,null,null,null,null,null,null,null,null,null,"PG"]
["PG.a",null,null,null,null,null,null,null,null,null,null,null,null,"AUV CTD","AUV CTD",null,null,null,null,null,null,null,null,null,null,null,"PG.a"]
["PG.2",null,null,null,null,null,null,null,null,null,null,null,null,null,null,null,null,null,null,null,null,null,null,null,null,null,"PG.2"]
["BK.1",null,null,null,null,null,null,null,null,null,"Haddock","Haddock","Haddock","Haddock","Haddock","Haddock",null,null,null,null,null,null,null,null,null,null,"BK.1"]
[]
[null,"MARCH",null,null,null,null,"2019-03-01","2019-03-02",null,null,"JULY",null,null,null,null,null,null,null,null,"NOVEMBER",null,null,null,null,"2019-11-01","2019-11-02"]
["RC",null,null,null,null,null,"Maint",null,null,null,null,null,null,null,null,null,null,null,null,null,null,null,null,null,"Mob",null,"RC"]
["RC.a",null,null,null,null,null,null,null,null,null,null,null,null,null,null,null,null,null,null,null,null,null,null,null,null,null,"RC.a"]
["RC.2",null,null,null,null,null,null,null,null,null,null,null,null,null,null,null,null,null,null,null,null,null,null,null,null,null,"RC.2"]
["RC.3",null,null,null,null,null,null,null,null,null,null,null,null,null,null,null,null,null,null,null,null,null,null,null,null,null,"RC.3"]
["WF",null,null,null,null,null,null,null,null,null,null,null,null,null,null,null,null,null,null,null,null,null,null,null,"Paull","Paull","WF"]
["WF.a",null,null,null,null,null,null,null,null,null,null,null,null,null,null,null," ",null,null,null,null,null,null,null,"ROV  1030","ROV","WF.a"]
["WF.2",null,null,null,null,null,null,null,null,null,null,null,null,null,null,null,null,null,null,null,null,null,null,null,null,null,"WF.2"]
["WF.3",null,null,null,null,null,null,null,null,null,null,null,null,null,null,null,null,null,null,null,null,null,null,null,null,null,"WF.3"]
["EX",null,null,null,null,null,"Chavez","Chavez",null,null,null,null,null,null,null,null,null,null,null,null,null,null,null,null,"Chavez","Chavez","EX"]
["EX.a",null,null,null,null,null,null,null,null,null,null,null,null,null,null,null,null,null,null,null,null,null,null,null,null,null,"EX.a"]
["PG",null,null,null,null,null,null,null,null,null,null,null,null,null,null,null,null,null,null,null,null,null,null,null,null,null,"PG"]
["PG.a",null,null,null,null,null,null,null,null,null,null,null,null,null,null,null,null,null,null,null,null,null,null,null,null,null,"PG.a"]
["PG.2",null,null,null,null,null,"Ryan",null,null,null,null,null,null,null,null,null,null,null,null,null,null,null,null,null,null,null,"PG.2"]
["BK.1",null,null,null,null,null,null,null,null,null,null,null,null,null,null,null,null,null,null,null,null,null,null,null,null,null,"BK.1"]
[null,"2019-03-03","2019-03-04","2019-03-05","2019-03-06","2019-03-07","2019-03-08","2019-03-09",null,null,"2019-06-30","2019-07-01","2019-07-02","2019-07-03","2019-07-04","2019-07-05","2019-07-06",null,null,"2019-11-03","2019-11-04","2019-11-05","2019-11-06","2019-11-07","2019-11-08","2019-11-09"]
["RC",null,"KBB-M","Haddock","Mob","Chavez","Caress",null,null,null,null,"Maint","Maint","Maint","Maint","Maint",null,null,null,null,"Rock Mini","Katija","Katija","Mob","Robi AUV",null,"RC"]
["RC.a",null,"ROV","ROV",null,"CTD","MAP",null,null,null,null,null,null,null,null,null,null,null,null,null,"MiniROV","MiniROV","MiniROV",null,"i2MAP",null,"RC.a"]
["RC.2",null,null,null,null,null,null,null,null,null,null,"DJO","DJO","DJO","DJO","DJO",null,null,null,null,null,null,null,null,null,null,"RC.2"]
["RC.3",null,null,null,null,null,null,null,null,null,null,"MB",null,null,"Holiday",null,null,null,null,null,"MB",null,null,"DJO",null,null,"RC.3"]
["WF",null,null,null,null,null,"Robison","Robison",null,null,null,null,null,null,null,null,null,null,null,"Paull","Paull","Paull","Paull","Paull","Paull","Paull","WF"]
["WF.a",null,null,null,null,null,"ROV  0930","ROV",null,null,null,null,null,null,null,null,null,null,null,"ROV","ROV","ROV","ROV","ROV","ROV","ROV","WF.a"]
["WF.2",null,null,null,null,null,null,null,null,null,null,null,null,null,null,null,null,null,null,null,null,null,null,null,null,null,"WF.2"]
["WF.3",null,null,null,null,null,null,null,null,null,null,null,null,null,null,null,null,null,null,null,null,null,null,null,null,null,"WF.3"]
["EX",null,null,null,null,null,null,null,null,null,null,"Chavez","Chavez",null,null,null,null,null,null,null,null,null,null,null,null,null,"EX"]
["EX.a",null,null,null,null,null,null,null,null,null,null,null,null,null,null,null,null,null,null,null,null,null,null,null,null,null,"EX.a"]
["PG",null,null,null,"Chavez","Chavez",null,null,null,null,null,"DMO-WG",null,null,null,null,null,null,null,null,"Chaffey","Ryan",null,null,null,null,"PG"]
["PG.a",null,null,null,"AUV CTD","AUV CTD",null,null,null,null,null,null,null,null,null,null,null,null,null,null,null,null,null,null,null,null,"PG.a"]
["PG.2",null,null,null,null,null,null,null,null,null,"Chavez","Smith","Ryan",null,null,null,null,null,null,null,"Katija",null,null,null,null,null,"PG.2"]
["BK.1",null,null,null,null,null,null,null,null,null,null,null,null,null,null,null,null,null,null,null,null,null,null,null,null,null,"BK.1"]
[null,"2019-03-10","2019-03-11","2019-03-12","2019-03-13","2019-03-14","2019-03-15","2019-03-16",null,null,"2019-07-07","2019-07-08","2019-07-09","2019-07-10","2019-07-11","2019-07-12","2019-07-13",null,null,"2019-11-10","2019-11-11","2019-11-12","2019-11-13","2019-11-14","2019-11-15","2019-11-16"]
["RC",null,"Maint","Maint","Maint","Paull 24","Paull","Paull",null,null,null,"KBB R A","Robison","Robison","AMP-M","Maint",null,null,null,null,"AMP-M","Haddock","Mob","Chavez","Rock",null,"RC"]
["RC.a",null,null,null,null,"MAP","MAP","MAP",null,null,null,"ROV   i2MAP","ROV   i2MAP","ROV","ROV",null,null,null,null,null,"ROV","ROV",null,"CTD","ICEBERG",null,"RC.a"]
["RC.2",null,null,null,null,null,null,null,null,null,null,"DJO","DJO","DJO","DJO","DJO",null,null,null,null,null,null,null,null,null,null,"RC.2"]
[null,null,null,null,null,null,null,null,null,null,null,"MB-Craig"]
["RC.3",null,null,null,null,null,null,null,null,null,null,"SH work","SH-work","SH-work","Craig-work",null,null,null,null,null,"MB - CW",null,null,"DJO - CW",null,null,"RC.3"]
["WF","Robison","Robison","Robison","Robison","Robison",null,null,null,null,null,null,"Haddock","Haddock","Haddock","Haddock","Haddock",null,null,"Paull",null,null,null,null,"Robison","Robison","WF"]
["WF.a","ROV","ROV","ROV","ROV","ROV  0630",null,null,null,null,null,null,"ROV  1530","ROV","ROV","ROV","ROV",null,null,"ROV  1100",null,null,null,null,"ROV  0800","ROV","WF.a"]
["WF.2",null,null,null,null,null,null,null,null,null,null,null,null,null,null,null,null,null,null,null,null,null,null,null,null,null,"WF.2"]
["WF.3",null,null,null,null,null,null,null,null,null,null,null,null,null,null,null,null,null,null,null,null,null,null,null,null,null,"WF.3"]
["EX",null,null,null,null,null,null,null,null,null,null,null,null,null,null,null,null,null,null,null,null,null,null,null,null,null,"EX"]
["EX.a",null,null,null,null,null,null,null,null,null,null,null,null,null,null,null,null,null,null,null,null,null,null,null,null,null,"EX.a"]
["PG",null,null,null,"Hamilton","Ryan",null,null,null,null,null,null,"Ryan",null,null,null,null,null,null,null,null,"Ryan","Chavez","Chavez",null,null,"PG"]
["PG.a",null,null,null,null,null,null,null,null,null,null,null,null,null,null,null,null,null,null,null,null,null,"AUV CTD","AUV CTD",null,null,"PG.a"]
["PG.2",null,null,null,null,null,null,null,null,null,null,null,null,null,null,null,null,null,null,null,null,null,null,null,null,null,"PG.2"]
["BK.1",null,null,null,null,null,null,null,null,null,null,null,null,null,null,null,null,null,null,null,null,null,null,null,null,null,"BK.1"]
[null,"2019-03-17","2019-03-18","2019-03-19","2019-03-20","2019-03-21","2019-03-22","2019-03-23",null,null,"2019-07-14","2019-07-15","2019-07-16","2019-07-17","2019-07-18","2019-07-19","2019-07-20",null,null,"2019-11-17","2019-11-18","2019-11-19","2019-11-20","2019-11-21","2019-11-22","2019-11-23"]
["RC","Paull","Paull","Paull","Maint","Maint","Maint",null,null,null,null,"Rock","Quest 12","Mob","Chavez","Maint","Open House ",null,null,null,"Mob","Barry","MARS 12","MARS 12","Maint",null,"RC"]
["RC.a","MAP","MAP","MAP",null,null,null,null,null,null,null,"ICEBERG","ROV",null,"CTD",null,null,null,null,null,null,"ROV","ROV","ROV",null,null,"RC.a"]
["RC.2",null,null,1800,null,null,null,null,null,null,null,"DJO","0700-1830",null,"0800-1730",null,null,null,null,null,null,null,null,null,null,null,"RC.2"]
["RC.3",null,null,null,null,null,null,null,null,null,null,"MB",null,null,"DJO",null,null,null,null,null,"MB",null,null,"DJO - CW",null,null,"RC.3"]
["WF",null,null,null,null,null,"Haddock","Haddock",null,null,"Haddock","Haddock","Haddock",null,null,null,"Open House ",null,null,"Robison","Robison","Robison","Robison","Robison",null,null,"WF"]
["WF.a",null,null,null,null,null,"ROV  1030","ROV",null,null,"ROV","ROV ","ROV  1930",null,null,null,null,null,null,"ROV","ROV","ROV","ROV","ROV  1700",null,null,"WF.a"]
["WF.2",null,null,null,null,null,null,null,null,null,null,null,null,null,null,null,null,null,null,null,null,null,null,null,null,null,"WF.2"]
["WF.3",null,null,null,null,null,null,null,null,null,null,null,null,null,null,null,null,null,null,null,null,null,null,null,null,null,"WF.3"]
["EX",null,null,null,null,null,null,null,null,null,null,null,null,null,null,null,null,null,null,null,null,null,null,null,null,null,"EX"]
["EX.a",null,null,null,null,null,null,null,null,null,null,null,null,null,null,null,null,null,null,null,null,null,null,null,null,null,"EX.a"]
["PG",null,"Ryan",null,null,null,null,null,null,null,null,null,null,"Chavez","Chavez",null,null,null,null,null,"Fassbender",null,null,null,null,null,"PG"]
["PG.a",null,null,null,null,null,null,null,null,null,null,null,null,"AUV CTD","AUV CTD",null,null,null,null,null,null,null,null,null,null,null,"PG.a"]
["PG.2",null,null,null,null,null,null,null,null,null,null,null,null,null,null,null,null,null,null,null,null,null,null,null,null,null,"PG.2"]
["BK.1",null,null,null,null,null,null,null,null,null,null,null,null,null,null,null,null,null,null,null,null,null,null,null,null,null,"BK.1"]
[null,"2019-03-24","2019-03-25","2019-03-26","2019-03-27","2019-03-28","2019-03-29","2019-03-30",null,null,"2019-07-21","2019-07-22","2019-07-23","2019-07-24","2019-07-25","2019-07-26","2019-07-27",null,null,"2019-11-24","2019-11-25","2019-11-26","2019-11-27","2019-11-28","2019-11-29","2019-11-30"]
["RC",null,"Maint","Maint","Maint","Maint","Maint",null,null,null,null,"Mob","KBB-M","AMP-M","Haddock","Mob",null,null,null,null,"Barry","Maint","Maint",null,null,null,"RC"]
["RC.a",null,null,null,null,null,null,null,null,null,null,null,"ROV","ROV","ROV",null,null,null,null,null,"ROV",null,null,null,null,null,"RC.a"]
["RC.2",null,null,null,null,null,null,null,null,null,null,"MB","MB","MB","MB-CW","MB",null,null,null,null,"0800-1730",null,null,null,null,null,"RC.2"]
["RC.3",null,null,null,null,null,null,null,null,null,null,null,"Craig","Craig","DJO-work?",null,null,null,null,null,"MB - CW",null,null,"Holiday","Holiday",null,"RC.3"]
["WF","Haddock","Haddock","Haddock","Haddock","Haddock",null,null,null,null,null,null,"Takeshita","Takeshita","Security Ex","Takeshita","Takeshita",null,null,null,null,null,null,null,null,null,"WF"]
["WF.a","ROV","ROV","ROV","ROV","ROV  1930",null,null,null,null,null,null,"CTD  1500","CTD","CTD","CTD","CTD",null,null,null,null,null,null,null,null,null,"WF.a"]
["WF.2",null,null,null,null,null,null,null,null,null,null,null,null,null,null,null,null,null,null,null,null,null,null,null,null,null,"WF.2"]
["WF.3",null,null,null,null,null,null,null,null,null,null,null,null,null,null,null,null,null,null,null,null,null,null,null,null,null,"WF.3"]
["EX",null,null,null,null,null,null,null,null,null,null,null,null,null,null,null,null,null,null,null,null,null,null,null,null,null,"EX"]
["EX.a",null,null,null,null,null,null,null,null,null,null,null,null,null,null,null,null,null,null,null,null,null,null,null,null,null,"EX.a"]
["PG",null,"Smith",null,null,null,null,null,null,null,null,"Smith",null,"Hamilton",null,null,null,null,null,null,null,null,null,null,null,null,"PG"]
["PG.a",null,null,null,null,null,null,null,null,null,null,null,null,null,null,null,null,null,null,null,null,null,null,null,null,null,"PG.a"]
["PG.2",null,"Ryan",null,null,null,null,null,null,null,null,null,null,null,null,null,null,null,null,null,null,null,null,null,null,null,"PG.2"]
["BK.1",null,null,null,null,null,null,null,null,null,null,null,null,null,null,null,null,null,null,null,null,null,null,null,null,null,"BK.1"]
[null,"2019-03-31",null,null,null,null,null,null,null,null,"2019-07-28","2019-07-29","2019-07-30","2019-07-31"]
["RC",null,null,null,null,null,null,null,null,null,null,"M1 ","Mob","KBB R A",null,null,null,null,null,null,null,null,null,null,null,null,"RC"]
["RC.a",null,null,null,null,null,null,null,null,null,null,null,null,"ROV   i2MAP",null,null,null,null,null,null,null,null,null,null,null,null,"RC.a"]
["RC.2",null,null,null,null,null,null,null,null,null,null,"MB","MB","MB ",null,null,null,null,null,null,null,null,null,null,null,null,"RC.2"]
["RC.3",null,null,null,null,null,null,null,null,null,null,null,null,"Craig",null,null,null,null,null,null,null,null,null,null,null,null,"RC.3"]
["WF",null,null,null,null,null,null,null,null,null,"Takeshita","Takeshita",null,null,null,null,null,null,null,null,null,null,null,null,null,null,"WF"]
["WF.a",null,null,null,null,null,null,null,null,null,"CTD","CTD  1730",null,null,null,null,null,null,null,null,null,null,null,null,null,null,"WF.a"]
["WF.2",null,null,null,null,null,null,null,null,null,null,null,null,null,null,null,null,null,null,null,null,null,null,null,null,null,"WF.2"]
["WF.3",null,null,null,null,null,null,null,null,null,null,null,null,null,null,null,null,null,null,null,null,null,null,null,null,null,"WF.3"]
["EX",null,null,null,null,null,null,null,null,null,null,null,null,null,null,null,null,null,null,null,null,null,null,null,null,null,"EX"]
["EX.a",null,null,null,null,null,null,null,null,null,null,null,null,null,null,null,null,null,null,null,null,null,null,null,null,null,"EX.a"]
["PG",null,null,null,null,null,null,null,null,null,null,null,null,null,null,null,null,null,null,null,null,null,null,null,null,null,"PG"]
["PG.a",null,null,null,null,null,null,null,null,null,null,null,null,null,null,null,null,null,null,null,null,null,null,null,null,null,"PG.a"]
["PG.2",null,null,null,null,null,null,null,null,null,null,null,null,null,null,null,null,null,null,null,null,null,null,null,null,null,"PG.2"]
["BK.1",null,null,null,null,null,null,null,null,null,null,null,null,null,null,null,null,null,null,null,null,null,null,null,null,null,"BK.1"]
[]
[null,"APRIL",null,null,null,null,null,null,null,null,"AUGUST",null,null,null,null,null,null,null,null,"DECEMBER"]
[null,null,"2019-04-01","2019-04-02","2019-04-03","2019-04-04","2019-04-05","2019-04-06",null,null,null,null,null,null,"2019-08-01","2019-08-02","2019-08-03",null,null,"2019-12-01","2019-12-02","2019-12-03","2019-12-04","2019-12-05","2019-12-06","2019-12-07"]
["RC",null,"Maint","Maint","Mob","Chavez","Mob",null,null,null,null,null,null,null,"Robison","Robison",null,null,null,null,"Maint","MARS 12","MARS 12","MARS 12","Mob",null,"RC"]
["RC.a",null,null,null,null,"CTD",null,null,null,null,null,null,null,null,"ROV   i2MAP","ROV",null,null,null,null,null,"ROV","ROV","ROV",null,null,"RC.a"]
["RC.2",null,null,null,null,null,null,null,null,null,null,null,null,null,"MB-Craig","0830-1800",null,null,null,null,null,null,null,null,null,null,"RC.2"]
["RC.3",null,null,null,null,null,null,null,null,null,null,null,null,null,"DJO-work?",null,null,null,null,null,"MB",null,null,"DJO - CW",null,null,"RC.3"]
["WF",null,null,null,null,null,null,null,null,null,null,null,null,null,null,null,null,null,null,null,null,"AMP","AMP","AMP","AMP",null,"WF"]
["WF.a",null,null,null,null,null,null,null,null,null,null,null,null,null,null,null,null,null,null,null,null,"ROV  0630","ROV","ROV","ROV  0900",null,"WF.a"]
["WF.2",null,null,null,null,null,null,null,null,null,null,null,null,null,null,null,null,null,null,null,null,null,null,null,null,null,"WF.2"]
["WF.3",null,null,null,null,null,null,null,null,null,null,null,null,null,null,null,null,null,null,null,null,null,null,null,null,null,"WF.3"]
["EX",null,"Chavez","Chavez",null,null,null,null,null,null,null,null,null,null,"Chavez","Chavez",null,null,null,"Chavez","Chavez",null,null,null,null,null,"EX"]
["EX.a",null,null,null,null,null,null,null,null,null,null,null,null,null,null,null,null,null,null,null,null,null,null,null,null,null,"EX.a"]
["PG",null,null,null,"Chavez","Chavez",null,null,null,null,null,null,null,null,null,null,null,null,null,null,null,null,"Katija",null,null,null,"PG"]
["PG.a",null,null,null,"AUV CTD","AUV CTD",null,null,null,null,null,null,null,null,null,null,null,null,null,null,null,null,null,null,null,null,"PG.a"]
["PG.2",null,null,"Ryan",null,null,null,null,null,null,null,null,null,null,"Barry",null,null,null,null,null,null,"Ryan",null,null,null,null,"PG.2"]
["BK.1",null,null,null,null,null,null,null,null,null,null,null,null,null,null,null,null,null,null,null,null,null,null,null,null,null,"BK.1"]
[null,"2019-04-07","2019-04-08","2019-04-09","2019-04-10","2019-04-11","2019-04-12","2019-04-13",null,null,"2019-08-04","2019-08-05","2019-08-06","2019-08-07","2019-08-08","2019-08-09","2019-08-10",null,null,"2019-12-08","2019-12-09","2019-12-10","2019-12-11","2019-12-12","2019-12-13","2019-12-14"]
["RC",null,"KBB R A","Robison","Robison","Haddock","Maint",null,null,null,null,"Mob","Chavez","Caress","Maint","Maint",null,null,null,null,"KBB-M","Robison","Robison","Contg","Maint",null,"RC"]
["RC.a",null,"ROV   i2MAP","ROV   i2MAP","ROV","ROV",null,null,null,null,null,null,"CTD","MAP",null,null,null,null,null,null,"ROV","ROV   i2MAP","ROV   i2MAP",null,null,null,"RC.a"]
["RC.2",null,null,null,null,null,null,null,null,null,null,null,null,null,null,null,null,null,null,null,null,"0730-1700","0830-1800",null,null,null,"RC.2"]
["RC.3",null,null,null,null,null,null,null,null,null,null,"MB",null,null,"DJO",null,null,null,null,null,"MB - CW",null,null,"DJO",null,null,"RC.3"]
["WF","Worden","Worden","Worden","Worden","Worden","return",null,null,null,null,null,"Goffredi","Goffredi","Goffredi",null,null,null,null,null,null,"ISM Audit",null,null,"Barry","Barry","WF"]
["WF.a","ROV  1300","ROV","ROV","ROV","ROV","ROV  0600",null,null,null,null,null,"ROV  1330","ROV","ROV  1800",null,null,null,null,null,null,null,null,null,"ROV  0700","ROV","WF.a"]
["WF.2",null,null,null,null,null,null,null,null,null,null,null,null,null,null,null,null,null,null,null,null,null,null,null,null,null,"WF.2"]
["WF.3",null,null,null,null,null,null,null,null,null,null,null,null,null,null,null,null,null,null,null,null,null,null,null,null,null,"WF.3"]
["EX",null,null,null,null,null,null,null,null,null,null,null,null,null,null,null,null,null,null,null,null,null,null,null,null,null,"EX"]
["EX.a",null,null,null,null,null,null,null,null,null,null,null,null,null,null,null,null,null,null,null,null,null,null,null,null,null,"EX.a"]
["PG",null,"Fassbender",null,null,"Katija",null,null,null,null,null,"Chavez","Chavez",null,null,null,null,null,null,null,null,"Ryan",null,null,null,null,"PG"]
["PG.a",null,null,null,null,null,null,null,null,null,null,"AUV CTD","AUV CTD",null,null,null,null,null,null,null,null,null,null,null,null,null,"PG.a"]
["PG.2",null,null,null,null,null,null,null,null,null,null,null,null,null,null,null,null,null,null,null,null,null,null,null,null,null,"PG.2"]
["BK.1",null,null,null,null,null,null,null,null,null,null,null,null,null,null,null,null,null,null,null,null,null,null,null,null,null,"BK.1"]
[null,"2019-04-14","2019-04-15","2019-04-16","2019-04-17","2019-04-18","2019-04-19","2019-04-20",null,null,"2019-08-11","2019-08-12","2019-08-13","2019-08-14","2019-08-15","2019-08-16","2019-08-17",null,null,"2019-12-15","2019-12-16","2019-12-17","2019-12-18","2019-12-19","2019-12-20","2019-12-21"]
["RC",null,"Rock Mini","Katija Mini","Katija Mini","Mob","Maint",null,null,null,null,"Maint","Maint","Maint","Caress 24","Caress","Caress",null,null,null,"DMO-RC","AMP-Whale","Mob","Chavez","DMO-RC",null,"RC"]
["RC.a",null,"MiniROV","MiniROV","MiniROV",null,null,null,null,null,null,null,null,null,"MAP","MAP","MAP",null,null,null,"ROV","ROV",null,"CTD","ROV",null,"RC.a"]
["RC.2",null,null,null,null,null,null,null,null,null,null,null,null,null,null,null,null,null,null,null,null,null,null,null,null,null,"RC.2"]
["RC.3",null,null,null,null,null,null,null,null,null,null,"MB",null,null,"DJO",null,null,null,null,null,"MB - CW",null,null,"DJO",null,null,"RC.3"]
["WF",null,null,null,null,null,"Barry","Barry",null,null,null,null,null,"Katija","Katija","Katija","Katija",null,null,"Barry","Barry","Barry","Barry",null,null,null,"WF"]
["WF.a",null,null,null,null,null,"ROV  1000","ROV",null,null,null,null,null,"ROV Mini 1130","ROV     Mini","ROV     Mini","ROV     Mini",null,null,"ROV","ROV","ROV","ROV  1600",null,null,null,"WF.a"]
["WF.2",null,null,null,null,null,null,null,null,null,null,null,null,null,null,null,null,null,null,null,null,null,null,null,null,null,"WF.2"]
["WF.3",null,null,null,null,null,null,null,null,null,null,null,null,null,null,null,null,null,null,null,null,null,null,null,null,null,"WF.3"]
["EX",null,null,null,null,null,null,null,null,null,null,null,null,null,null,null,null,null,null,null,null,null,null,null,null,null,"EX"]
["EX.a",null,null,null,null,null,null,null,null,null,null,null,null,null,null,null,null,null,null,null,null,null,null,null,null,null,"EX.a"]
["PG",null,"Smith","Ryan",null,null,null,null,null,null,null,"Johnson","Ryan",null,null,null,null,null,null,null,null,null,"Chavez","Chavez",null,null,"PG"]
["PG.a",null,null,null,null,null,null,null,null,null,null,null,null,null,null,null,null,null,null,null,null,null,"AUV CTD","AUV CTD",null,null,"PG.a"]
["PG.2",null,null,null,null,null,null,null,null,null,null,null,null,null,null,null,null,null,null,null,null,null,null,null,null,null,"PG.2"]
["BK.1",null,null,null,null,null,null,null,null,null,null,null,null,null,null,null,null,null,null,null,null,null,null,null,null,null,"BK.1"]
[null,"2019-04-21","2019-04-22","2019-04-23","2019-04-24","2019-04-25","2019-04-26","2019-04-27",null,null,"2019-08-18","2019-08-19","2019-08-20","2019-08-21","2019-08-22","2019-08-23","2019-08-24",null,null,"2019-12-22","2019-12-23","2019-12-24","2019-12-25","2019-12-26","2019-12-27","2019-12-28"]
["RC",null,"Maint","Mob","AMP-B","AMP-B","Maint",null,null,null,"Caress","Caress","Caress","Caress","Caress","Port Stop","Port Stop",null,null,null,"Maint","Maint","Maint","Maint","Maint",null,"RC"]
["RC.a",null,null,null,"ROV","ROV",null,null,null,null,"MAP","MAP","MAP","MAP","MAP",null,null,null,null,null,null,null,null,null,null,null,"RC.a"]
["RC.2",null,"0600-1530",null,null,null,null,null,null,null,null,null,null,null,null,null,null,null,null,null,null,null,null,null,null,null,"RC.2"]
["RC.3",null,null,null,null,null,null,null,null,null,null,"MB",null,null,"DJO",null,null,null,null,null,"MB",null,"Holiday","DJO",null,null,"RC.3"]
["WF","Barry","Barry","Barry","Barry",null,null,null,null,null,"Katija","Katija","Katija",null,null,null,null,null,null,null,null,null,null,null,null,null,"WF"]
["WF.a","ROV","ROV","ROV","ROV  1700",null,null,null,null,null,"ROV     Mini","ROV     Mini","ROV Mini 1600",null,null,null,null,null,null,null,null,null,null,null,null,null,"WF.a"]
["WF.2",null,null,null,null,null,null,null,null,null,null,null,null,null,null,null,null,null,null,null,null,null,null,null,null,null,"WF.2"]
["WF.3",null,null,null,null,null,null,null,null,null,null,null,null,null,null,null,null,null,null,null,null,null,null,null,null,null,"WF.3"]
["EX",null,null,null,null,null,null,null,null,null,null,null,null,null,null,null,null,null,null,null,null,null,null,null,null,null,"EX"]
["EX.a",null,null,null,null,null,null,null,null,null,null,null,null,null,null,null,null,null,null,null,null,null,null,null,null,null,"EX.a"]
["PG",null,null,null,null,null,null,null,null,null,null,null,null,null,null,null,null,null,null,null,null,null,null,null,null,null,"PG"]
["PG.a",null,null,null,null,null,null,null,null,null,null,null,null,null,null,null,null,null,null,null,null,null,null,null,null,null,"PG.a"]
["PG.2",null,null,null,null,null,null,null,null,null,null,null,null,null,null,null,null,null,null,null,null,null,null,null,null,null,"PG.2"]
["BK.1",null,null,null,null,null,null,null,null,null,null,null,null,null,null,null,null,null,null,null,null,null,null,null,null,null,"BK.1"]
[null,"2019-04-28","2019-04-29","2019-04-30",null,null,null,null,null,null,"2019-08-25","2019-08-26","2019-08-27","2019-08-28","2019-08-29","2019-08-30","2019-08-31",null,null,"2019-12-29","2019-12-30","2019-12-31"]
["RC",null,"Rock AUV","Maint",null,null,null,null,null,null,"Port Stop","Clague 24","Clague","Clague","Clague","Clague","Clague",null,null,null,"Maint","Maint",null,null,null,null,"RC"]
["RC.a",null,"ICEBERG",null,null,null,null,null,null,null,null,"MAP","MAP","MAP","MAP","MAP","MAP",null,null,null,null,null,null,null,null,null,"RC.a"]
["RC.2",null,null,null,null,null,null,null,null,null,null,null,null,null,null,null,null,null,null,null,"MB",null,null,null,null,null,"RC.2"]
["RC.3",null,null,null,null,null,null,null,null,null,null,"MB",null,null,"DJO",null,null,null,null,null,null,null,null,null,null,null,"RC.3"]
["WF",null,null,"COI",null,null,null,null,null,null,null,null,"Barry","Barry","Barry","Barry",null,null,null,null,null,null,null,null,null,null,"WF"]
["WF.a",null,null,null,null,null,null,null,null,null,null,null,"ROV  0930","ROV","ROV","ROV  2000",null,null,null,null,null,null,null,null,null,null,"WF.a"]
["WF.2",null,null,null,null,null,null,null,null,null,null,null,null,null,null,null,null,null,null,null,null,null,null,null,null,null,"WF.2"]
["WF.3",null,null,null,null,null,null,null,null,null,null,null,null,null,null,null,null,null,null,null,null,null,null,null,null,null,"WF.3"]
["EX",null,null,null,null,null,null,null,null,null,null,null,null,null,null,null,null,null,null,null,null,null,null,null,null,null,"EX"]
["EX.a",null,null,null,null,null,null,null,null,null,null,null,null,null,null,null,null,null,null,null,null,null,null,null,null,null,"EX.a"]
["PG",null,null,null,null,null,null,null,null,null,null,null,null,null,null,null,null,null,null,null,null,null,null,null,null,null,"PG"]
["PG.a",null,null,null,null,null,null,null,null,null,null,null,null,null,null,null,null,null,null,null,null,null,null,null,null,null,"PG.a"]
["PG.2",null,null,null,null,null,null,null,null,null,null,null,null,null,null,null,null,null,null,null,null,null,null,null,null,null,"PG.2"]
["BK.1",null,null,null,null,null,null,null,null,null,null,null,null,null,null,null,null,null,null,null,null,null,null,null,null,null,"BK.1"]
[]
[]
[]
[]
[]
[]
[null,null,null,null,null,null,null,null,null,null,"CARSON Floating Days",null,null,null,null,null,null,null,null,"FLYER Floating Days"]
[null,null,null,null,null,null,null,null,null,null,"Rock Iceberg"]
[null,null,null,null,null,null,null,null,null,null,null,null,null,null,null,null,null,null,null,"DMO-WF","DMO-WF",null,"AMP Whale","AMP Whale","Caress"]
[null,null,null,null,null,null,null,null,null,null,null,null,null,null,null,null,null,null,null,null,null,null,"ROV","ROV","MAP"]

{"sheet":"ShipRequests","index":1,"n_rows":300,"n_cols":46,"rows_kept":300,"cut":false,"hidden":false,"merged":[]}
["Ship","Hour Day","LEVEL","Cruise ID","Project Number","Name1","Name2","Project Name","DMO Notes","Days","Transit Days","Proposed Date","Alternate Date","Mob","ROV & Crew","AUV - CTD","AUV - Mapping","AUV - Mapping 2","AUV - Other","AUV Crew","CTD","CTD 12hr","CTD 24hr","CTD winch","LRAUV","LRAUV LARS","Mini - ROV","Mooring","Transducer pole","Wave Glider Tiny","Wave Glider Sparky","Van_Chemical","Van_RAD","Other Equipment ","Distance","Lat/Long Beginning","Lat/Long End","Special Scheduling Considerations","Notes",null,null,"Asset-1","Asset-2","Asset-3",null,"Phase1 Set Date"]
["Carson",10,"300057 - Mooring Maint","19RC001",300057,"M1 Maint",null,{"$f":"MID(C2,10,30)","v":"Mooring Maint"},null,1,0,"8/6/2019",null,null,null,null,null,null,null,null,null,null,null,null,null,null,null,"Yes",null,null,null,null,null,"MacArtney Winch",null,null,null,null,null,null,null,{"$f":"IF(O2=\"Yes\",\"ROV\",\"-\")","v":"-"},"Mooring?"]
["Carson",24,"300079 - DMO Spprt-RC - LABOR ONLY","19RC002",300079,"DMO-RC",null,{"$f":"MID(C3,10,30)","v":"DMO Spprt-RC - LABOR ONLY"},"Consec?",2,0,"12/1/2019",null,null,"Yes",null,null,null,null,null,null,null,null,null,null,null,null,null,null,null,null,null,null,null,null,null,null,"general testing",null,null,null,{"$f":"IF(O3=\"Yes\",\"ROV\",\"-\")","v":"ROV"}]
["Carson",24,"300079 - DMO Spprt-RC - LABOR ONLY","19RC003",300079,"Sonar","Sonardyne","DMO Spprt-RC - LABOR ONLY","Removed CG",5,0,"7/1/2019",null,null,"Yes",null,null,null,null,null,null,null,null,null,null,null,null,null,null,null,null,null,null,null,null,null,null,"sonardyne",null,null,null,"ROV"]
["Carson",10,"600034 - Control Tech - Rock","19RC004",600034,"Rock",null,"Control Tech - Rock",null,1,0,"1/7/2019","1/14/2019",null,null,null,null,null,"Yes","Yes",null,null,null,null,null,null,null,null,null,null,null,null,null,null,null,null,null,null,"IcebergAUV",null,null,"-","IcebergAUV"]
["Carson",10,"600034 - Control Tech - Rock","19RC005",600034,"Rock",null,"Control Tech - Rock",null,1,0,"3/4/2019","3/11/2019",null,null,null,null,null,"Yes","Yes",null,null,null,null,null,null,null,null,null,null,null,null,null,null,null,null,null,null,"IcebergAUV",null,null,"-","IcebergAUV"]
["Carson",10,"600034 - Control Tech - Rock","19RC006",600034,"Rock",null,"Control Tech - Rock",null,1,0,"5/6/2019","5/13/2019",null,null,null,null,null,"Yes","Yes",null,null,null,null,null,null,null,null,null,null,null,null,null,null,null,null,null,null,"IcebergAUV",null,null,"-","IcebergAUV"]
["Carson",10,"600034 - Control Tech - Rock","19RC007",600034,"Rock",null,"Control Tech - Rock",null,1,0,"7/1/2019","7/8/2019",null,null,null,null,null,"Yes","Yes",null,null,null,null,null,null,null,null,null,null,null,null,null,null,null,null,null,null,"IcebergAUV",null,null,"-","IcebergAUV"]
["Carson",10,"600034 - Control Tech - Rock","19RC008",600034,"Rock",null,"Control Tech - Rock",null,1,0,"9/2/2019","9/9/2019",null,null,null,null,null,"Yes","Yes",null,null,null,null,null,null,null,null,null,null,null,null,null,null,null,null,null,null,"IcebergAUV",null,null,"-","IcebergAUV"]
["Carson",10,"600034 - Control Tech - Rock","19RC009",600034,"Rock",null,"Control Tech - Rock",null,1,0,"11/4/2019","11/11/2019",null,null,null,null,null,"Yes","Yes",null,null,null,null,null,null,null,null,null,null,null,null,null,null,null,null,null,null,"IcebergAUV",null,null,"-","IcebergAUV"]
["Carson",10,"600034 - Control Tech - Rock","19RC010",600034,"Rock",null,"Control Tech - Rock",null,1,0,"4/3/2019","4/10/2019",null,null,null,null,null,null,null,null,null,null,null,null,null,"Yes",null,null,null,null,null,null,null,null,null,null,null,"We plan to coordinate these dives with Katija’s deep PIV experiments and to schedule them on consecutive days.",null,null,"-","MiniROV"]
["Carson",10,"600034 - Control Tech - Rock","19RC011",600034,"Rock",null,"Control Tech - Rock",null,1,0,"11/13/2019","11/20/2019",null,null,null,null,null,null,null,null,null,null,null,null,null,"Yes",null,null,null,null,null,null,null,null,null,null,null,"We plan to coordinate these dives with Katija’s deep PIV experiments and to schedule them on consecutive days.",null,null,{"$f":"IF(O12=\"Yes\",\"ROV\",\"-\")","v":"-"},"MiniROV"]
["Carson",10,"901007 - Benthic Biology & Ecology","19RC012",901007,"Barry",null,"Benthic Biology & Ecology",null,1,0,"1/10/2019","1/9/2019",null,"Yes",null,null,null,null,null,null,null,null,null,null,null,null,null,null,null,null,null,null,null,null,null,null,null,"BRS/Collections/",null,null,"ROV"]
["Carson",10,"901007 - Benthic Biology & Ecology","19RC013",901007,"Barry",null,"Benthic Biology & Ecology",null,1,0,"1/18/2019","1/17/2019",null,"Yes",null,null,null,null,null,null,null,null,null,null,null,null,null,null,null,null,null,null,null,null,null,null,null,"BRS/Collections/",null,null,"ROV"]
["Carson",10,"901007 - Benthic Biology & Ecology","19RC014",901007,"Barry",null,"Benthic Biology & Ecology"," ",1,0,"2/5/2019","2/6/2019",null,"Yes",null,null,null,null,null,null,null,null,null,null,null,null,null,null,null,null,null,null,null,null,null,null,null,"BRS/Collections/",null,null,"ROV"]
["Carson",10,"901007 - Benthic Biology & Ecology","19RC015",901007,"Barry",null,"Benthic Biology & Ecology",null,1,0,"2/12/2019","2/13/2019",null,"Yes",null,null,null,null,null,null,null,null,null,null,null,null,null,null,null,null,null,null,null,null,null,null,null,"BRS/Collections/",null,null,"ROV"]
["Carson",10,"901007 - Benthic Biology & Ecology","19RC016",901007,"Barry",null,"Benthic Biology & Ecology",null,1,0,"4/30/2019","4/29/2019",null,"Yes",null,null,null,null,null,null,null,null,null,null,null,null,null,null,null,null,null,null,null,null,null,null,null,"Sponge/Flow and Oxygen",null,null,"ROV"]
["Carson",10,"901007 - Benthic Biology & Ecology","19RC017",901007,"Barry",null,"Benthic Biology & Ecology",null,1,0,"5/8/2019","5/7/2019",null,"Yes",null,null,null,null,null,null,null,null,null,null,null,null,null,null,null,null,null,null,null,null,null,null,null,"BRS/Collections/",null,null,"ROV"]
["Carson",10,"901007 - Benthic Biology & Ecology","19RC018",901007,"Barry",null,"Benthic Biology & Ecology",null,1,0,"5/15/2019","5/14/2019",null,"Yes",null,null,null,null,null,null,null,null,null,null,null,null,null,null,null,null,null,null,null,null,null,null,null,"BRS/Collections/",null,null,"ROV"]
["Carson",10,"901007 - Benthic Biology & Ecology","19RC019",901007,"Barry",null,"Benthic Biology & Ecology",null,1,0,"8/7/2019","8/6/2019",null,"Yes",null,null,null,null,null,null,null,null,null,null,null,null,null,null,null,null,null,null,null,null,null,null,null,"BRS/Collections/",null,null,"ROV"]
["Carson",10,"901007 - Benthic Biology & Ecology","19RC020",901007,"Barry",null,"Benthic Biology & Ecology",null,1,0,"8/14/2019","8/13/2019",null,"Yes",null,null,null,null,null,null,null,null,null,null,null,null,null,null,null,null,null,null,null,null,null,null,null,"BRS/Collections/",null,null,"ROV"]
["Carson",10,"901007 - Benthic Biology & Ecology","19RC021",901007,"Barry",null,"Benthic Biology & Ecology",null,1,0,"11/6/2019","11/5/2019",null,"Yes",null,null,null,null,null,null,null,null,null,null,null,null,null,null,null,null,null,null,null,null,null,null,null,"BRS/Collections/",null,null,"ROV"]
["Carson",10,"901007 - Benthic Biology & Ecology","19RC022",901007,"Barry",null,"Benthic Biology & Ecology",null,1,0,"11/13/2019","11/12/2019",null,"Yes",null,null,null,null,null,null,null,null,null,null,null,null,null,null,null,null,null,null,null,null,null,null,null,"BRS/Collections/",null,null,"ROV"]
["Carson",10,"901009 - CANON","19RC023",901009,"CANON",null,"CANON",null,1,0,"6/1/2019",null,null,"Yes",null,null,null,null,null,null,null,null,null,null,null,"Yes",null,null,null,null,null,null,null,null,null,null,null,"proposed dates are arbitrary, any two consecutive days in early June and October are fine, but most coincide with WF dates in June/Oct.",null,null,"ROV","MiniROV"]
["Carson",10,"901009 - CANON","19RC024",901009,"CANON",null,"CANON","TC; after the ship requests came in it was decided that the scientist just needed Ventana rather than both ROVs",1,0,"6/2/2019",null,null,"Yes",null,null,null,null,null,null,null,null,null,null,null,"Yes",null,null,null,null,null,null,null,null,null,null,null,null,null,null,"ROV","MiniROV"]
["Carson",10,"901009 - CANON","19RC025",901009,"CANON",null,"CANON","TC; scientist just needed Ventana rather than both ROVs",1,0,"10/1/2019",null,null,"Yes",null,null,null,null,null,null,null,null,null,null,null,"Yes",null,null,null,null,null,null,null,null,null,null,null,null,null,null,"ROV","MiniROV"]
["Carson",10,"901009 - CANON","19RC026",901009,"CANON",null,"CANON",null,1,0,"10/2/2019",null,null,"Yes",null,null,null,null,null,null,null,null,null,null,null,"Yes",null,null,null,null,null,null,null,null,null,null,null,null,null,null,"ROV","MiniROV"]
["Carson",24,"901023 - Continental Margin Proces","19RC027",901023,"Paull",null,"Continental Margin Proces","split 4+4, 2 transit each; 15mar 6d + 16may 6d",8,2,"2/20/2019","4/20/2019",null,null,null,"Yes","Yes",null,null,null,null,null,null,null,null,null,null,null,null,null,null,null,null,"Greater than 50nm","Moss Landing","Moss Landing","Flexible dates but need to happen in the first half of 2019",null,null,null,"-","AUV Map","AUV Map2"]
["Carson ",24,"901024 - Submarine Volcanism","19RC028",901024,"Clague",null,"Submarine Volcanism",null,3,5,"8/1/2019","8/8/2019",null,null,null,"Yes","Yes",null,"Yes",null,null,null,null,null,null,null,null,null,null,null,null,null,null,"Greater than 50nm","36.8/-121.9","44.6/-124.5","Leg 1 of 2 legs to map at Axial Seamount (45.8/-130), using Newport for port call","Leg 2 to be requested by D. Caress",null,null,"-","AUV Map","AUV Map2",null,"2019-08-26"]
["Carson",10,"901101 - Ocean Imaging","19RC029",901101,"Caress",null,"Ocean Imaging",null,1,0,"4/1/2019","4/15/2019",null,"No","No","Yes","Yes","No","Yes","No",null,null,null,null,null,"No","No",null,null,null,null,null,null,null,"Portuguese Ledge",null,null,null,null,null,"-","AUV Map","AUV Map2"]
["Carson",10,"901101 - Ocean Imaging","19RC030",901101,"Caress",null,"Ocean Imaging",null,1,0,"6/1/2019","5/15/2019",null,"No","No","Yes","Yes","No","Yes","No",null,null,null,null,null,"No","No",null,null,null,null,null,null,null,"Portuguese Ledge",null,null,null,null,null,"-","AUV Map","AUV Map2"]
["Carson",24,"901101 - Ocean Imaging","19RC031",901101,"Caress",null,"Ocean Imaging","Consecutive days",3.5,4.5,"7/15/2019","8/15/2019",null,"No","No","Yes","Yes","No","Yes","No",null,null,null,null,null,"No","No",null,null,null,null,null,null,null,"Axial Seamount",null,null,null,null,null,"-","AUV Map","AUV Map2"]
["Carson",10,"901103 - Biodiversity & Biooptics","19RC032",901103,"Haddock",null,"Biodiversity & Biooptics",null,1,0,"3/6/2019","3/20/2019",null,"Yes",null,null,null,null,null,null,null,null,null,null,null,null,null,null,null,null,null,null,null,"Less than 20nm",null,null,null,"Midwater collections at Midwater1",null,null,"ROV"]
["Carson",10,"901103 - Biodiversity & Biooptics","19RC033",901103,"Haddock",null,"Biodiversity & Biooptics",null,1,0,"4/10/2019","4/17/2019",null,"Yes",null,null,null,null,null,null,null,null,null,null,null,null,null,null,null,null,null,null,null,"Less than 20nm",null,null,null,"Midwater collections at Midwater1",null,null,"ROV"]
["Carson",10,"901103 - Biodiversity & Biooptics","19RC034",901103,"Haddock",null,"Biodiversity & Biooptics",null,1,0,"5/7/2019","5/14/2019",null,"Yes",null,null,null,null,null,null,null,null,null,null,null,null,null,null,null,null,null,null,null,"Less than 20nm",null,null,null,"Midwater collections at Midwater1",null,null,"ROV"]
["Carson",10,"901103 - Biodiversity & Biooptics","19RC035",901103,"Haddock",null,"Biodiversity & Biooptics",null,1,0,"8/6/2019","8/20/2019",null,"Yes",null,null,null,null,null,null,null,null,null,null,null,null,null,null,null,null,null,null,null,"Less than 20nm",null,null,null,"Midwater collections at Midwater1",null,null,"ROV"]
["Carson",10,"901103 - Biodiversity & Biooptics","19RC036",901103,"Haddock",null,"Biodiversity & Biooptics",null,1,0,"9/10/2019","9/17/2019",null,"Yes",null,null,null,null,null,null,null,null,null,null,null,null,null,null,null,null,null,null,null,"Less than 20nm",null,null,null,"Midwater collections at Midwater1",null,null,"ROV"]
["Carson",10,"901103 - Biodiversity & Biooptics","19RC037",901103,"Haddock",null,"Biodiversity & Biooptics",null,1,0,"11/5/2019","11/12/2019",null,"Yes",null,null,null,null,null,null,null,null,null,null,null,null,null,null,null,null,null,null,null,"Less than 20nm",null,null,null,"Midwater collections at Midwater1",null,null,"ROV"]
["Carson",10,"901112 - Change in MB & CA Current","19RC038",901112,"Chavez",null,"Change in MB & CA Current",null,1,0,"1/1/2019",null,"Yes",null,null,null,null,null,null,"Yes",null,null,null,null,null,null,null,null,null,null,null,null,null,null,null,null,null,"1st of the month dates are arbitrary, specific day is not critical, but one day in each month is requested.",null,null,"-","CTD"]
["Carson",10,"901112 - Change in MB & CA Current","19RC039",901112,"Chavez",null,"Change in MB & CA Current",null,1,0,"2/1/2019",null,"Yes",null,null,null,null,null,null,"Yes",null,null,null,null,null,null,null,null,null,null,null,null,null,null,null,null,null,null,null,null,"-","CTD"]
["Carson",10,"901112 - Change in MB & CA Current","19RC040",901112,"Chavez",null,"Change in MB & CA Current",null,1,0,"3/1/2019",null,"Yes",null,null,null,null,null,null,"Yes",null,null,null,null,null,null,null,null,null,null,null,null,null,null,null,null,null,null,null,null,"-","CTD"]
["Carson",10,"901112 - Change in MB & CA Current","19RC041",901112,"Chavez",null,"Change in MB & CA Current",null,1,0,"4/1/2019",null,"Yes",null,null,null,null,null,null,"Yes",null,null,null,null,null,null,null,null,null,null,null,null,null,null,null,null,null,null,null,null,"-","CTD"]
["Carson",10,"901112 - Change in MB & CA Current","19RC042",901112,"Chavez",null,"Change in MB & CA Current",null,1,0,"5/1/2019",null,"Yes",null,null,null,null,null,null,"Yes",null,null,null,null,null,null,null,null,null,null,null,null,null,null,null,null,null,null,null,null,"-","CTD"]
["Carson",10,"901112 - Change in MB & CA Current","19RC043",901112,"Chavez",null,"Change in MB & CA Current",null,1,0,"6/1/2019",null,"Yes",null,null,null,null,null,null,"Yes",null,null,null,null,null,null,null,null,null,null,null,null,null,null,null,null,null,null,null,null,"-","CTD"]
["Carson",10,"901112 - Change in MB & CA Current","19RC044",901112,"Chavez",null,"Change in MB & CA Current",null,1,0,"7/1/2019",null,"Yes",null,null,null,null,null,null,"Yes",null,null,null,null,null,null,null,null,null,null,null,null,null,null,null,null,null,null,null,null,"-","CTD"]
["Carson",10,"901112 - Change in MB & CA Current","19RC045",901112,"Chavez",null,"Change in MB & CA Current",null,1,0,"8/1/2019",null,"Yes",null,null,null,null,null,null,"Yes",null,null,null,null,null,null,null,null,null,null,null,null,null,null,null,null,null,null,null,null,"-","CTD"]
["Carson",10,"901112 - Change in MB & CA Current","19RC046",901112,"Chavez",null,"Change in MB & CA Current",null,1,0,"9/1/2019",null,"Yes",null,null,null,null,null,null,"Yes",null,null,null,null,null,null,null,null,null,null,null,null,null,null,null,null,null,null,null,null,"-","CTD"]
["Carson",10,"901112 - Change in MB & CA Current","19RC047",901112,"Chavez",null,"Change in MB & CA Current",null,1,0,"10/1/2019",null,"Yes",null,null,null,null,null,null,"Yes",null,null,null,null,null,null,null,null,null,null,null,null,null,null,null,null,null,null,null,null,"-","CTD"]
["Carson",10,"901112 - Change in MB & CA Current","19RC048",901112,"Chavez",null,"Change in MB & CA Current",null,1,0,"11/1/2019",null,"Yes",null,null,null,null,null,null,"Yes",null,null,null,null,null,null,null,null,null,null,null,null,null,null,null,null,null,null,null,null,"-","CTD"]
["Carson",10,"901112 - Change in MB & CA Current","19RC049",901112,"Chavez",null,"Change in MB & CA Current",null,1,0,"12/1/2019",null,"Yes",null,null,null,null,null,null,"Yes",null,null,null,null,null,null,null,null,null,null,null,null,null,null,null,null,null,null,null,null,"-","CTD"]
["Carson",10,"901200 - AMP","19RC050",901200,"AMP","AMP-B","AMP",null,1,0,"3/6/2019","3/13/2019",null,"Yes",null,null,null,null,null,null,null,null,null,null,null,null,null,null,null,null,null,null,"Benthic sled","Between 20nm & 50nm",null,null,"all dives are flexible on dates, having back to back in a month would be ideal.",null,null,null,"ROV"]
["Carson",10,"901200 - AMP","19RC051",901200,"AMP","AMP-B","AMP",null,1,0,"3/7/2019","3/14/2019",null,"Yes",null,null,null,null,null,null,null,null,null,null,null,null,null,null,null,null,null,null,"Benthic sled","Between 20nm & 50nm",null,null,null,null,null,null,"ROV"]
["Carson",10,"901200 - AMP","19RC052",901200,"AMP","AMP-M","AMP",null,1,0,"1/9/2019","1/16/2019",null,"Yes",null,null,null,null,null,null,null,null,null,null,null,null,null,null,null,null,null,null,"midwater sled","Between 20nm & 50nm",null,null,null,null,null,null,"ROV"]
["Carson",10,"901200 - AMP","19RC053",901200,"AMP","AMP-M","AMP",null,1,0,"2/5/2019","2/19/2019",null,"Yes",null,null,null,null,null,null,null,null,null,null,null,null,null,null,null,null,null,null,"midwater sled","Between 20nm & 50nm",null,null,null,null,null,null,"ROV"]
["Carson",10,"901200 - AMP","19RC054",901200,"AMP","AMP-B","AMP",null,1,0,"5/7/2019","5/14/2019",null,"Yes",null,null,null,null,null,null,null,null,null,null,null,null,null,null,null,null,null,null,"Benthic sled","Between 20nm & 50nm",null,null,null,null,null,null,"ROV"]
["Carson",10,"901200 - AMP","19RC055",901200,"AMP","AMP-B ","AMP",null,1,0,"5/14/2019","5/15/2019",null,"Yes",null,null,null,null,null,null,null,null,null,null,null,null,null,null,null,null,null,null,"Benthic sled","Between 20nm & 50nm",null,null,null,null,null,null,"ROV"]
["Carson",10,"901200 - AMP","19RC056",901200,"AMP","AMP-M","AMP",null,1,0,"3/5/2019","3/19/2019",null,"Yes",null,null,null,null,null,null,null,null,null,null,null,null,null,null,null,null,null,null,"midwater sled","Between 20nm & 50nm",null,null,null,null,null,null,"ROV"]
["Carson",10,"901200 - AMP","19RC057",901200,"AMP","AMP-M","AMP",null,1,0,"4/2/2019","4/9/2019",null,"Yes",null,null,null,null,null,null,null,null,null,null,null,null,null,null,null,null,null,null,"midwater sled","Between 20nm & 50nm",null,null,null,null,null,null,"ROV"]
["Carson",10,"901200 - AMP","19RC058",901200,"AMP","AMP-B","AMP",null,1,0,"7/12/2019","7/19/2019",null,"Yes",null,null,null,null,null,null,null,null,null,null,null,null,null,null,null,null,null,null,"Benthic sled","Between 20nm & 50nm",null,null,null,null,null,null,"ROV"]
["Carson",10,"901200 - AMP","19RC059",901200,"AMP","AMP-B","AMP",null,1,0,"7/13/2019","7/20/2019",null,"Yes",null,null,null,null,null,null,null,null,null,null,null,null,null,null,null,null,null,null,"Benthic sled","Between 20nm & 50nm",null,null,null,null,null,null,"ROV"]
["Carson",10,"901200 - AMP","19RC060",901200,"AMP","AMP-M","AMP","B or M ?",1,0,"5/8/2019","5/15/2019",null,"Yes",null,null,null,null,null,null,null,null,null,null,null,null,null,null,null,null,null,null,"midwater sled","Between 20nm & 50nm",null,null,null,null,null,null,"ROV"]
["Carson",10,"901200 - AMP","19RC061",901200,"AMP","AMP-M","AMP",null,1,0,"6/7/2019","6/14/2019",null,"Yes",null,null,null,null,null,null,null,null,null,null,null,null,null,null,null,null,null,null,"midwater sled","Between 20nm & 50nm",null,null,null,null,null,null,"ROV"]
["Carson",10,"901200 - AMP","19RC062",901200,"AMP","AMP-B","AMP","B or M",1,0,"9/3/2019","9/10/2019",null,"Yes",null,null,null,null,null,null,null,null,null,null,null,null,null,null,null,null,null,null,"Benthic sled","Between 20nm & 50nm",null,null,null,null,null,null,"ROV"]
["Carson",10,"901200 - AMP","19RC063",901200,"AMP","AMP-B","AMP",null,1,0,"9/10/2019","9/11/2019",null,"Yes",null,null,null,null,null,null,null,null,null,null,null,null,null,null,null,null,null,null,"Benthic sled","Between 20nm & 50nm",null,null,null,null,null,null,"ROV"]
["Carson",10,"901200 - AMP","19RC064",901200,"AMP","AMP-M","AMP",null,1,0,"7/24/2019","7/31/2019",null,"Yes",null,null,null,null,null,null,null,null,null,null,null,null,null,null,null,null,null,null,"midwater sled","Between 20nm & 50nm",null,null,null,null,null,null,"ROV"]
["Carson",10,"901200 - AMP","19RC065",901200,"AMP","AMP-M","AMP",null,1,0,"8/9/2019","8/16/2019",null,"Yes",null,null,null,null,null,null,null,null,null,null,null,null,null,null,null,null,null,null,"midwater sled","Between 20nm & 50nm",null,null,null,null,null,null,"ROV"]
["Carson",10,"901200 - AMP","19RC066",901200,"AMP","AMP Whale",{"$f":"MID(C67,10,30)","v":"AMP"},null,1,0,"12/31/2019","12/28/2019",null,"Yes",null,null,null,null,null,null,null,null,null,null,null,null,null,null,null,null,null,null,"WhaleFall Survey","Between 20nm & 50nm",null,null,"at MARS - timing will depend on when whale is sunk, spring/summer",null,null,null,{"$f":"IF(O67=\"Yes\",\"ROV\",\"-\")","v":"ROV"}]
["Carson",10,"901200 - AMP","19RC067",901200,"AMP","AMP-M","AMP",null,1,0,"10/16/2019","10/23/2019",null,"Yes",null,null,null,null,null,null,null,null,null,null,null,null,null,null,null,null,null,null,"midwater sled","Between 20nm & 50nm",null,null,null,null,null,null,"ROV"]
["Carson",10,"901200 - AMP","19RC068",901200,"AMP","AMP-M","AMP","B or M;  reviewed the midwater and benthic days with the aquarium so we're good.",1,0,"9/10/2019","9/17/2019",null,"Yes",null,null,null,null,null,null,null,null,null,null,null,null,null,null,null,null,null,null,"midwater sled","Between 20nm & 50nm",null,null,null,null,null,null,"ROV"]
["Carson",10,"901200 - AMP","19RC069",901200,"AMP","AMP-M","AMP",null,1,0,"11/8/2019","11/15/2019",null,"Yes",null,null,null,null,null,null,null,null,null,null,null,null,null,null,null,null,null,null,"midwater sled","Between 20nm & 50nm",null,null,null,null,null,null,"ROV"]
["Carson",10,"901200 - AMP","19RC070",901200,"AMP","AMP-M","AMP",null,1,0,"12/4/2019","12/11/2019",null,"Yes",null,null,null,null,null,null,null,null,null,null,null,null,null,null,null,null,null,null,"midwater sled","Between 20nm & 50nm",null,null,null,null,null,null,"ROV"]
["Carson",10,"901220 - Midwater Ecology","19RC071",901220,"Robison",null,"Midwater Ecology",null,1,0,"1/23/2019",null,null,"Yes",null,null,null,"No",null,null,null,null,null,null,null,null,"No",null,null,null,null,null,null,"Less than 20nm","36.74920000/-122.10640000","36.74920000/-122.10640000","MRS Recovery. Needs to follow MRS deployment (MW Time Series day)","lat/long approx b/c shallowmrs not deployed currently",null,null,"ROV"]
["Carson",10,"901220 - Midwater Ecology","19RC072",901220,"Robison",null,"Midwater Ecology",null,1,0,"2/13/2019",null,null,"Yes",null,null,null,"No",null,null,null,null,null,null,null,null,"No",null,null,null,null,null,null,"Less than 20nm","36.74920000/-122.10640000","36.74920000/-122.10640000","MRS Recovery. Needs to follow MRS deployment (MW Time Series day)",null,null,null,"ROV"]
["Carson",10,"901220 - Midwater Ecology","19RC073",901220,"Robison",null,"Midwater Ecology",null,1,0,"4/10/2019",null,null,"Yes",null,null,null,"No",null,null,null,null,null,null,null,null,"No",null,null,null,null,null,null,"Less than 20nm","36.74920000/-122.10640000","36.74920000/-122.10640000","MRS Recovery. Needs to follow MRS deployment (MW Time Series day)",null,null,null,"ROV"]
["Carson",10,"901220 - Midwater Ecology","19RC074",901220,"Robison",null,"Midwater Ecology",null,1,0,"5/15/2019",null,null,"Yes",null,null,null,"No",null,null,null,null,null,null,null,null,"No",null,null,null,null,null,null,"Less than 20nm","36.74920000/-122.10640000","36.74920000/-122.10640000","MRS Recovery. Needs to follow MRS deployment (MW Time Series day)",null,null,null,"ROV"]
["Carson",10,"901220 - Midwater Ecology","19RC075",901220,"Robison",null,"Midwater Ecology",null,1,0,"7/10/2019","7/24/2019",null,"Yes",null,null,null,"No",null,null,null,null,null,null,null,null,"No",null,null,null,null,null,null,"Less than 20nm","36.74920000/-122.10640000","36.74920000/-122.10640000","MRS Recovery. Needs to follow MRS deployment (MW Time Series day)",null,null,null,"ROV"]
["Carson",10,"901220 - Midwater Ecology","19RC076",901220,"Robison",null,"Midwater Ecology",null,1,0,"8/14/2019",null,null,"Yes",null,null,null,"No",null,null,null,null,null,null,null,null,"No",null,null,null,null,null,null,"Less than 20nm","36.74920000/-122.10640000","36.74920000/-122.10640000","MRS Recovery. Needs to follow MRS deployment (MW Time Series day)",null,null,null,"ROV"]
["Carson",10,"901220 - Midwater Ecology","19RC077",901220,"Robison",null,"Midwater Ecology",null,1,0,"9/18/2019",null,null,"Yes",null,null,null,"No",null,null,null,null,null,null,null,null,"No",null,null,null,null,null,null,"Less than 20nm","36.74920000/-122.10640000","36.74920000/-122.10640000","MRS Recovery. Needs to follow MRS deployment (MW Time Series day)",null,null,null,"ROV"]
["Carson",10,"901220 - Midwater Ecology","19RC078",901220,"Robison",null,"Midwater Ecology",null,1,0,"10/23/2019","10/30/2019",null,"Yes",null,null,null,"No",null,null,null,null,null,null,null,null,"No",null,null,null,null,null,null,"Less than 20nm","36.74920000/-122.10640000","36.74920000/-122.10640000","MRS Recovery. Needs to follow MRS deployment (MW Time Series day)",null,null,null,"ROV"]
["Carson",10,"901220 - Midwater Ecology","19RC079",901220,"Robison",null,"Midwater Ecology",null,1,0,"12/11/2019",null,null,"Yes",null,null,null,"No",null,null,null,null,null,null,null,null,"No",null,null,null,null,null,null,"Less than 20nm","36.74920000/-122.10640000","36.74920000/-122.10640000","MRS Recovery. Needs to follow MRS deployment (MW Time Series day)",null,null,null,"ROV"]
["Carson",10,"901221 - Midwater Time Series","19RC080",901221,"Robison",null,"Midwater Time Series",null,1,0,"1/22/2019",null,null,"Yes",null,null,null,"Yes","Yes",null,null,null,null,null,null,null,null,null,null,null,null,null,null,"Less than 20nm","36.70000/-122.05000","36.74920/-122.106","Day/Night transects",null,null,null,"ROV","i2MAP","AUV Other?"]
["Carson",10,"901221 - Midwater Time Series","19RC081",901221,"Robison",null,"Midwater Time Series",null,1,0,"2/12/2019",null,null,"Yes",null,null,null,"Yes","Yes",null,null,null,null,null,null,null,null,null,null,null,null,null,null,"Less than 20nm","36.70000/-122.05000","36.74920/-122.106","Day/Night transects",null,null,null,"ROV","i2MAP"]
["Carson",10,"901221 - Midwater Time Series","19RC082",901221,"Robison",null,"Midwater Time Series",null,1,0,"3/4/2019",null,null,"No",null,null,null,"Yes","Yes",null,null,null,null,null,null,null,null,null,null,null,null,null,null,"Less than 20nm","36.70000/-122.05000","36.74920/-122.106","No nighttime transects","ROV not required, AUV deployment only",null,null,"-","i2MAP"]
["Carson",10,"901221 - Midwater Time Series","19RC083",901221,"Robison",null,"Midwater Time Series",null,1,0,"4/9/2019",null,null,"Yes",null,null,null,"Yes","Yes",null,null,null,null,null,null,null,null,null,null,null,null,null,null,"Less than 20nm","36.70000/-122.05000","36.70000/-122.05000","Day/Night transects. Needs to follow Benoit-Bird&i2MAP dive",null,null,null,"ROV","i2MAP"]
["Carson",10,"901221 - Midwater Time Series","19RC084",901221,"Robison",null,"Midwater Time Series",null,1,0,"5/14/2019",null,null,"Yes",null,null,null,"Yes","Yes",null,null,null,null,null,null,null,null,null,null,null,null,null,null,"Less than 20nm","36.70000/-122.05000","36.74920/-122.106","Day/Night transects. Needs to follow Benoit-Bird&i2MAP dive",null,null,null,"ROV","i2MAP"]
["Carson",10,"901221 - Midwater Time Series","19RC085",901221,"Robison",null,"Midwater Time Series",null,1,0,"6/10/2019",null,null,"No",null,null,null,"Yes","Yes",null,null,null,null,null,null,null,null,null,null,null,null,null,null,"Less than 20nm","36.70000/-122.05000","36.70000/-122.05000","No nighttime transects","ROV not required, AUV deployment only",null,null,"-","i2MAP"]
["Carson",10,"901221 - Midwater Time Series","19RC086",901221,"Robison",null,"Midwater Time Series",null,1,0,"7/9/2019","7/23/2019",null,"Yes",null,null,null,"Yes","Yes",null,null,null,null,null,null,null,null,null,null,null,null,null,null,"Less than 20nm","36.70000/-122.05000","36.74920/-122.106","Day/Night transects. Needs to follow Benoit-Bird&i2MAP dive",null,null,null,"ROV","i2MAP"]
["Carson",10,"901221 - Midwater Time Series","19RC087",901221,"Robison",null,"Midwater Time Series",null,1,0,"8/13/2019",null,null,"Yes",null,null,null,"Yes","Yes",null,null,null,null,null,null,null,null,null,null,null,null,null,null,"Less than 20nm","36.70000/-122.05000","36.74920/-122.106","Day/Night transects. Needs to follow Benoit-Bird&i2MAP dive",null,null,null,"ROV","i2MAP"]
["Carson",10,"901221 - Midwater Time Series","19RC088",901221,"Robison",null,"Midwater Time Series",null,1,0,"9/17/2019",null,null,"Yes",null,null,null,"Yes","Yes",null,null,null,null,null,null,null,null,null,null,null,null,null,null,"Less than 20nm","36.70000/-122.05000","36.74920/-122.106","Day/Night transects. Needs to follow Benoit-Bird&i2MAP dive",null,null,null,"ROV","i2MAP"]
["Carson",10,"901221 - Midwater Time Series","19RC089",901221,"Robison",null,"Midwater Time Series",null,1,0,"10/22/2019","10/29/2018",null,"Yes",null,null,null,"Yes","Yes",null,null,null,null,null,null,null,null,null,null,null,null,null,null,"Less than 20nm","36.70000/-122.05000","36.74920/-122.106","Day/Night transects. Needs to follow Benoit-Bird&i2MAP dive",null,null,null,"ROV","i2MAP"]
["Carson",10,"901221 - Midwater Time Series","19RC090",901221,"Robison",null,"Midwater Time Series",null,1,0,"11/11/2019",null,null,"No",null,null,null,"Yes","Yes",null,null,null,null,null,null,null,null,null,null,null,null,null,null,"Less than 20nm","36.70000/-122.05000","36.70000/-122.05000","No nighttime transects","ROV not required, AUV deployment only",null,null,"-","i2MAP"]
["Carson",10,"901221 - Midwater Time Series","19RC091",901221,"Robison",null,"Midwater Time Series",null,1,0,"2019-12-10",null,null,"Yes",null,null,null,"Yes","Yes",null,null,null,null,null,null,null,null,null,null,null,null,null,null,"Less than 20nm","36.70000/-122.05000","36.74920/-122.106","Day/Night transects",null,null,null,"ROV","i2MAP"]
["Carson",10,"901700 - 2017 Acoustical Ocean Eco","19RC092",901700,"Benoit-Bird",null,"2017 Acoustical Ocean Eco",null,1,0,"1/21/2019","1/16/2019",null,"Yes",null,null,null,null,null,null,null,null,null,null,null,null,null,null,null,null,null,null,"Hydrophone pole","Less than 20nm","36 42, 122 11",null,null,"Deployment of sensor at MARS",null,null,"ROV"]
["Carson",10,"901700 - 2017 Acoustical Ocean Eco","19RC093",901700,"Benoit-Bird",null,"2017 Acoustical Ocean Eco",null,1,0,"2/11/2019","2/27/2019",null,"Yes",null,null,null,null,null,null,null,null,null,null,null,null,null,null,null,null,null,null,"Hydrophone pole","Less than 20nm","36 42, 122 11",null,null,"Survey near Mars",null,null,"ROV"]
["Carson",10,"901700 - 2017 Acoustical Ocean Eco","19RC094",901700,"Benoit-Bird",null,"2017 Acoustical Ocean Eco",null,1,0,"3/5/2019","3/27/2019",null,"Yes",null,null,null,null,null,null,null,null,null,null,null,null,null,null,null,null,null,null,"Hydrophone pole","Less than 20nm","36 42, 122 11",null,null,"Survey near Mars",null,null,"ROV"]
["Carson",10,"901700 - 2017 Acoustical Ocean Eco","19RC095",901700,"Benoit-Bird","KBB-M","2017 Acoustical Ocean Eco",null,1,0,"6/11/2019","6/26/2019",null,"Yes",null,null,null,null,null,null,null,null,null,null,null,null,null,null,null,null,null,null,"Hydrophone pole","Less than 20nm","36 42, 122 11",null,null,"Survey near Mars",null,null,"ROV"]
["Carson",10,"901700 - 2017 Acoustical Ocean Eco","19RC096",901700,"Benoit-Bird",null,"2017 Acoustical Ocean Eco",null,1,0,"9/19/2019","9/11/2019",null,"Yes",null,null,null,null,null,null,null,null,null,null,null,null,null,null,null,null,null,null,"Hydrophone pole","Less than 20nm","36 42, 122 11",null,null,"Survey near Mars",null,null,"ROV"]
["Carson",10,"901700 - 2017 Acoustical Ocean Eco","19RC097",901700,"Benoit-Bird",null,"2017 Acoustical Ocean Eco","cell says auv, but not here?",1,0,"12/12/2019","12/4/2019",null,"Yes",null,null,null,null,null,null,null,null,null,null,null,null,null,null,null,null,null,null,"Hydrophone pole","Less than 20nm","36 42, 122 11",null,null,"Survey near Mars",null,null,"ROV"]
["Carson",10,"901802 - DeepSea Connect","19RC098",901802,"Matsumoto","DeepSea","DeepSea Connect",null,1,0,"7/22/2019","8/30/2019",null,"Yes",null,null,null,null,null,null,null,null,null,null,null,null,null,null,null,null,null,null,null,"Between 20nm & 50nm",null,null,null,"maintenance or deployment day",null,null,"ROV"]
["Carson",10,"901807 - Next Gen Acoust Dorado","19RC099",901807,"Benoit-Bird","KBB","Next Gen Acoust Dorado",null,1,0,"4/8/2019",null,null,"Yes",null,null,null,"Yes","Yes",null,null,null,null,null,null,null,null,null,null,null,null,null,"Hydrophone pole","Less than 20nm",null,null,"Day preceding Robison Time series day","Midwater 1",null,null,"ROV","i2MAP"]
["Carson",10,"901807 - Next Gen Acoust Dorado","19RC100",901807,"Benoit-Bird","KBB","Next Gen Acoust Dorado",null,1,0,"5/13/2019",null,null,"Yes",null,null,null,"Yes","Yes",null,null,null,null,null,null,null,null,null,null,null,null,null,"Hydrophone pole","Less than 20nm",null,null,"Day preceding Robison Time series day","Midwater 1",null,null,"ROV","i2MAP"]
["Carson",10,"901807 - Next Gen Acoust Dorado","19RC101",901807,"Benoit-Bird","KBB","Next Gen Acoust Dorado",null,1,0,"7/8/2019",null,null,"Yes",null,null,null,"Yes","Yes",null,null,null,null,null,null,null,null,null,null,null,null,null,"Hydrophone pole","Less than 20nm",null,null,"Day preceding Robison Time series day","Midwater 1",null,null,"ROV","i2MAP"]
["Carson",10,"901807 - Next Gen Acoust Dorado","19RC102",901807,"Benoit-Bird","KBB","Next Gen Acoust Dorado",null,1,0,"8/12/2019",null,null,"Yes",null,null,null,"Yes","Yes",null,null,null,null,null,null,null,null,null,null,null,null,null,"Hydrophone pole","Less than 20nm",null,null,"Day preceding Robison Time series day","Midwater 1",null,null,"ROV","i2MAP"]
["Carson",10,"901807 - Next Gen Acoust Dorado","19RC103",901807,"Benoit-Bird","KBB","Next Gen Acoust Dorado",null,1,0,"9/16/2019",null,null,"Yes",null,null,null,"Yes","Yes",null,null,null,null,null,null,null,null,null,null,null,null,null,"Hydrophone pole","Less than 20nm",null,null,"Day preceding Robison Time series day","Midwater 1",null,null,"ROV","i2MAP"]
["Carson",10,"901807 - Next Gen Acoust Dorado","19RC104",901807,"Benoit-Bird","KBB","Next Gen Acoust Dorado",null,1,0,"10/21/2019",null,null,"Yes",null,null,null,"Yes","Yes",null,null,null,null,null,null,null,null,null,null,null,null,null,"Hydrophone pole","Less than 20nm",null,null,"Day preceding Robison Time series day","Midwater 1",null,null,"ROV","i2MAP"]
["Carson",10,"901807 - Next Gen Acoust Dorado","19RC105",901807,"Benoit-Bird","KBB","Next Gen Acoust Dorado",null,1,0,"3/18/2019","3/25/2019",null,null,null,null,null,"Yes","Yes",null,null,null,null,null,null,null,null,null,null,null,null,null,null,"Less than 20nm",null,null,"Testing day","Monterey Canyon",null,null,"-","i2MAP"]
["Carson",10,"901807 - Next Gen Acoust Dorado","19RC106",901807,"Benoit-Bird","KBB","Next Gen Acoust Dorado",null,1,0,"4/5/2019","4/22/2019",null,null,null,null,null,"Yes","Yes",null,null,null,null,null,null,null,null,null,null,null,null,null,null,"Less than 20nm",null,null,"Testing day","Monterey Canyon",null,null,"-","i2MAP"]
["Carson",24,"901809 - Deep Sea Bioinspiration","19RC107",901809,"Katija",null,"Deep Sea Bioinspiration","Consective days",2,0,"4/1/2019",null,null,null,null,null,null,null,null,null,null,null,null,null,null,"Yes",null,null,null,null,null,null,null,null,null,null,null,null,null,null,"-","MiniROV"]
["Carson",24,"901809 - Deep Sea Bioinspiration","19RC108",901809,"Katija",null,"Deep Sea Bioinspiration","Consective days",2,0,"6/10/2019",null,null,"Yes",null,null,null,null,null,null,null,null,null,null,null,"No",null,null,null,null,null,null,null,null,null,null,null,null,null,null,"ROV"]
["Carson",24,"901809 - Deep Sea Bioinspiration","19RC109",901809,"Katija",null,"Deep Sea Bioinspiration","Consective days",2,0,"11/11/2019",null,null,"No",null,null,null,null,null,null,null,null,null,null,null,"Yes",null,null,null,null,null,null,null,null,null,null,null,null,null,null,"-","MiniROV"]
["Carson",12,"701127 - MARS O&M III","19RC110",701127,"MARS",null,"MARS O&M III","Removed ?",1,0,"2/13/2019",null,null,"Yes",null,null,null,null,null,null,null,null,null,null,null,null,null,null,null,null,null,null,"benthic sled","Between 20nm & 50nm",null,null,"Non survey days should be scheduled for 12hrs","MARSNode recovery/maintenance and 40% of ENV survey requirement, remaining to be in 2020",null,null,"ROV"]
["Carson",12,"701127 - MARS O&M III","19RC111",701127,"MARS","MARS 12","MARS O&M III","change all MARS days to MARS 12.",1,0,"6/4/2019",null,null,"Yes",null,null,null,null,null,null,null,null,null,null,null,null,null,null,null,null,null,null,"benthic sled","Less than 20nm",null,null,null,null,null,null,"ROV"]
["Carson",12,"701127 - MARS O&M III","19RC112",701127,"MARS",null,"MARS O&M III","Removed CG",1,0,"9/11/2019",null,null,"Yes",null,null,null,null,null,null,null,null,null,null,null,null,null,null,null,null,null,null,"benthic sled",null,null,null,null,null,null,null,"ROV"]
["Carson",12,"701127 - MARS O&M III","19RC113",701127,"MARS",null,"MARS O&M III",null,1,0,"11/4/2019",null,null,"Yes",null,null,null,null,null,null,null,null,null,null,null,null,null,null,null,null,null,null,"benthic sled cw push cores",null,null,null,null,null,null,null,"ROV"]
["Carson",12,"701127 - MARS O&M III","19RC114",701127,"MARS",null,"MARS O&M III",null,1,0,"11/7/2019",null,null,"Yes",null,null,null,null,null,null,null,null,null,null,null,null,null,null,null,null,null,null,"benthic sled",null,null,null,null,null,null,null,"ROV"]
["Carson",12,"701127 - MARS O&M III","19RC115",701127,"MARS",null,"MARS O&M III","Removed ?",1,0,"11/19/2019",null,null,"Yes",null,null,null,null,null,null,null,null,null,null,null,null,null,null,null,null,null,null,"benthic sled",null,null,null,null,null,null,null,"ROV"]
["Carson",12,"701127 - MARS O&M III","19RC116",701127,"MARS",null,"MARS O&M III",null,1,0,"11/25/2019",null,null,"Yes",null,null,null,null,null,null,null,null,null,null,null,null,null,null,null,null,null,null,"benthic sled",null,null,null,null,null,null,null,"ROV"]
["Carson",12,"701127 - MARS O&M III","19RC117",701127,"MARS",null,"MARS O&M III","Removed CG",1,0,"12/2/2019",null,null,"Yes",null,null,null,null,null,null,null,null,null,null,null,null,null,null,null,null,null,null,"benthic sled",null,null,null,null,null,null,null,"ROV"]
["Carson",12,"701127 - MARS O&M III","19RC118",701127,"MARS",null,"MARS O&M III","Removed ?",1,0,"12/9/2019",null,null,"Yes",null,null,null,null,null,null,null,null,null,null,null,null,null,null,null,null,null,null,"benthic sled",null,null,null,null,null,null,null,"ROV"]
["Carson",12,"701127 - MARS O&M III","19RC119",701127,"MARS",null,"MARS O&M III",null,1,0,"12/19/2019",null,null,"Yes",null,null,null,null,null,null,null,null,null,null,null,null,null,null,null,null,null,null,"benthic sled",null,null,null,null,null,null,null,"ROV"]
["Carson",12,"701127 - MARS O&M III","19RC120",701127,"MARS",null,"MARS O&M III",null,1,0,"12/18/2019",null,null,"Yes",null,null,null,null,null,null,null,null,null,null,null,null,null,null,null,null,null,null,"benthic sled",null,null,null,null,null,null,null,"ROV"]
["Carson",12,"701127 - MARS O&M III","19RC121",701127,"MARS",null,"MARS O&M III","Removed ?",1,0,"12/30/2019",null,null,"Yes",null,null,null,null,null,null,null,null,null,null,null,null,null,null,null,null,null,null,"benthic sled","Between 20nm & 50nm",null,null,null,null,null,null,"ROV"]
["Carson",10,"701136 - Mesobot","19RC122",701136,"Mesobot",null,"Mesobot"," ",1,0,"6/3/2019",null,null,null,null,null,null,null,null,null,null,null,null,null,null,null,null,null,null,null,null,null,null,null,null,null,null,null,null,null,"-"]
["Carson",10,"701136 - Mesobot","19RC123",701136,"Mesobot",null,"Mesobot",null,1,0,"10/1/2019",null,"Yes",null,null,null,null,null,null,null,null,null,null,null,null,null,null,null,null,null,null,null,null,null,null,null,"Rolling over one day from 2018",null,null,null,"-"]
["RC-10",{"$f":"COUNTIF($B$2:$B$124,10)","v":103},null,"ok",null,null,null,null,null,{"$f":"SUM(J2:J124)","v":142.5},{"$f":"SUM(K2:K124)","v":11.5},null,null,{"$f":"COUNTIF(N2:N124,\"Yes\")","v":13},{"$f":"COUNTIF(O2:O124,\"Yes\")","v":88},{"$f":"COUNTIF(P2:P124,\"Yes\")","v":0},5,5,26,30,12,0,0,0,0,0,8,1,0,0,0,0,0]
["RC-12",{"$f":"COUNTIF($B$2:$B$124,12)","v":12},null,"ok"]
["RC-24",{"$f":"COUNTIF($B$2:$B$124,24)","v":8},null,"count of cruises, not days"]
[]
["Flyer",null,"300058 - DMO Spprt-WF -LABOR ONLY","19WF001",300058,"DMO-WF",null,"DMO Spprt-WF -LABOR ONLY","Consec?",2,0,"12/1/2019","2/1/2019",null,"Yes",null,null,null,null,null,null,null,null,null,null,null,null,null,null,null,null,null,null,null,null,null,null,null,"general testing",null,null,"ROV"]
[null,null,"300060 - DMO Sppt-Pargn LABOR ONLY","19WF002",null,"DMO-PG",null,"DMO Sppt-Pargn LABOR ONLY","do not use",null,0,"1/1/2019","7/1/2019",null,null,null,null,null,null,null,null,null,null,null,null,null,null,null,null,null,null,null,null,null,null,null,null,"wave glider testing ",null,null,null,"-"]
[null,null,"300079 - DMO Spprt-RC - LABOR ONLY","19WF003",null,"DMO-RC",null,"DMO Spprt-RC - LABOR ONLY","do not use",null,0,"12/2/2019","1/31/2019",null,null,null,null,null,null,null,null,null,null,null,null,null,null,null,null,null,null,null,null,null,null,null,null,null,null,null,null,"-"]
[null,null,"300079 - DMO Spprt-RC - LABOR ONLY","19WF004",null,"DMO-RC",null,"DMO Spprt-RC - LABOR ONLY","do not use",null,0,"6/10/2019","6/29/2019",null,null,null,null,null,null,null,null,null,null,null,null,null,null,null,null,null,null,null,null,null,null,null,null,"Sonardyne  tests",null,null,null,"-"]
[null,null,"300082 - DMO Support - Wave Glider","19WF005",null,"DMO-WG",null,{"$f":"MID(C133,10,30)","v":"DMO Support - Wave Glider"},"do not use",null,0,"2/1/2019","2/3/2019",null,null,null,null,null,null,null,null,null,null,null,null,null,null,null,null,null,null,null,null,null,null,null,null,"wave glider testing",null,null,null,{"$f":"IF(O133=\"Yes\",\"ROV\",\"-\")","v":"-"}]
["Flyer",null,"901007 - Benthic Biology & Ecology","19WF006",901007,"Barry",null,"Benthic Biology & Ecology",null,4,0,"3/11/2019","3/12/2019",null,"Yes",null,null,null,null,null,null,null,null,null,null,null,null,null,null,null,null,null,null,null,null,null,null,null,"Sur Ridge",null,null,"ROV"]
["Flyer",null,"901007 - Benthic Biology & Ecology","19WF007",901007,"Barry",null,"Benthic Biology & Ecology",null,4,0,"6/3/2019","6/4/2019",null,"Yes",null,null,null,null,null,null,null,null,null,null,null,null,null,null,null,null,null,null,null,null,null,null,null,"Sur Ridge",null,null,"ROV"]
["Flyer",null,"901007 - Benthic Biology & Ecology","19WF008",901007,"Barry",null,"Benthic Biology & Ecology",null,4,0,"9/23/2019","9/24/2019",null,"Yes",null,null,null,null,null,null,null,null,null,null,null,null,null,null,null,null,null,null,null,null,null,null,"Please avoid moving to the week of the 30th","Sur Ridge",null,null,"ROV"]
["Flyer",null,"901007 - Benthic Biology & Ecology","19WF009",901007,"Barry",null,"Benthic Biology & Ecology",null,4,0,"12/2/2019","12/3/2019",null,"Yes",null,null,null,null,null,null,null,null,null,null,null,null,null,null,null,null,null,null,null,null,null,null,null,"Sur Ridge",null,null,"ROV"]
["Flyer",null,"901009 - CANON","19WF010",901009,"CANON",null,"CANON",null,6,0,"6/1/2019","6/15/2019",null,null,null,null,null,null,null,null,null,"Yes",null,null,null,null,null,null,null,null,null,null,null,null,null,null,null,"proposed dates are arbitrary, any consecutive days in early June and October are fine, but most coincide with RC dates in June/Oct.",null,null,"-","CTD"]
["Flyer",null,"901009 - CANON","19WF011",901009,"CANON",null,"CANON",null,6,0,"10/1/2019","10/15/2019",null,null,null,null,null,null,null,null,null,"Yes",null,null,null,null,null,null,null,null,null,null,null,null,null,null,null,"proposed dates are arbitrary, any consecutive days in early June and October are fine, but most coincide with RC dates in June/Oct.",null,null,"-","CTD"]
["Flyer",null,"901023 - Continental Margin Proces","19WF012",901023,"Paull",null,"Continental Margin Proces",null,10,2,"3/5/2019","4/15/2019",null,"Yes",null,null,null,null,null,null,null,null,null,null,null,null,"Yes",null,null,null,null,null,"pore water van, vibracorer","Greater than 50nm","Moss Landing","Moss Landing",null,null,null,null,"ROV"]
["Flyer",null,"901023 - Continental Margin Proces","19WF013",901023,"Paull",null,"Continental Margin Proces",null,10,2,"10/10/2019","7/20/2019",null,"Yes",null,null,null,null,null,null,null,null,null,null,null,null,"No",null,null,null,null,null,"pore water vane, vibracoring","Greater than 50nm","Moss Landing","Moss Landing","Can only take place after October 1st 2019",null,null,null,"ROV"]
["Flyer",null,"901101 - Ocean Imaging","19WF014",901101,"Caress",null,"Ocean Imaging",null,4,0,"6/15/2019","7/15/2019",null,"Yes",null,null,null,null,null,null,"No","No",null,null,null,"No","No",null,null,null,"No","No","Low altitude survey system",null,"Sponge Ridge, Narrows, Extravert Cliff",null,null,null,null,null,"ROV"]
["Flyer",null,"901101 - Ocean Imaging","19WF015",901101,"Caress",null,"Ocean Imaging",null,6,0,"9/15/2019","10/15/2019",null,"Yes",null,null,null,null,null,null,"No","No",null,null,null,"No","No",null,null,null,"No","No","Low altitude survey system",null,"Sponge Ridge, Narrows, Extravert Cliff",null,null,null,null,null,"ROV"]
["Flyer",null,"901103 - Biodiversity & Biooptics","19WF016",901103,"Haddock",null,"Biodiversity & Biooptics",null,7,0,"6/10/2019","7/15/2019",null,"Yes",null,null,null,null,null,null,null,null,null,null,null,null,null,null,null,null,null,null,null,"Greater than 50nm","Moss Landing",null,"please do not schedule between June 18-28","Midwater collections",null,null,"ROV"]
["Flyer",null,"901103 - Biodiversity & Biooptics","19WF017",901103,"Haddock",null,"Biodiversity & Biooptics",null,7,0,"10/7/2019","10/14/2019",null,"Yes",null,null,null,null,null,null,null,null,null,null,null,null,null,null,null,null,null,null,null,"Greater than 50nm","Moss Landing",null,"please do not schedule between June 18-28","Midwater collections",null,null,"ROV"]
["Flyer",null,"901114 - E&D-Picophytoeukaryotes","19WF018",901114,"Worden",null,"E&D-Picophytoeukaryotes",null,5,0,"4/1/2019","4/21/2019",null,"Yes",null,null,null,null,null,null,null,"Yes",null,null,null,null,null,null,null,null,null,null,null,"Greater than 50nm",null,null,null,"Greater Monterey Bay",null,null,"ROV","CTD"]
["Flyer",null,"901114 - E&D-Picophytoeukaryotes","19WF019",901114,"Worden",null,"E&D-Picophytoeukaryotes",null,10,0,"10/1/2019","10/21/2018",null,"Yes",null,null,null,null,null,null,null,"Yes",null,null,null,null,null,null,null,null,null,null,null,"Greater than 50nm",null,null,null,"Offshore along line 67",null,null,"ROV","CTD"]
["Flyer",null,"901200 - AMP","19WF020",901200,"AMP",null,"AMP",null,4,0,"2/6/2019","2/13/2019",null,"Yes",null,null,null,null,null,null,null,null,null,null,null,null,null,null,null,null,null,null,null,null,null,null,"exact dates in Feb are flexible",null,null,null,"ROV"]
["Flyer",null,"901200 - AMP","19WF021",901200,"AMP",null,"AMP",null,4,0,"11/5/2019","11/12/2019",null,"Yes",null,null,null,null,null,null,null,null,null,null,null,null,null,null,null,null,null,null,null,null,null,null,"exact dates in Nov are flexible",null,null,null,"ROV"]
["Flyer",null,"901200 - AMP","19WF022",901200,"AMP",null,"AMP",null,2,0,"12/28/2019","12/27/2019",null,"Yes",null,null,null,null,null,null,null,null,null,null,null,null,null,null,null,null,null,null,null,null,null,null,"WF for placement of WhaleFall system when whale is sunk near MARS - likely late spring to summer timeframe",null,null,null,"ROV"]
["Flyer",null,"901220 - Midwater Ecology","19WF023",901220,"Robison",null,"Midwater Ecology",null,7,0,"3/8/2019",null,null,"Yes",null,null,null,null,null,null,"No","No",null,null,null,"No","No",null,null,null,"No","No",null,"Between 20nm & 50nm","36.70000/-122.05000","36.70000/-122.05000",null,null,null,null,"ROV"]
["Flyer",null,"901220 - Midwater Ecology","19WF024",901220,"Robison",null,"Midwater Ecology",null,7,0,"6/14/2019",null,null,"Yes",null,null,null,null,null,null,"No","No",null,null,null,"No","No",null,null,null,"No","No",null,"Between 20nm & 50nm","36.70000/-122.05000","36.70000/-122.05000",null,null,null,null,"ROV"]
["Flyer",null,"901220 - Midwater Ecology","19WF025",901220,"Robison",null,"Midwater Ecology",null,7,0,"11/15/2019",null,null,"Yes",null,null,null,null,null,null,"No","No",null,null,null,"No","No",null,null,null,"No","No",null,"Between 20nm & 50nm","36.70000/-122.05000","36.70000/-122.05000",null,null,null,null,"ROV"]
["Flyer",null,"901618 - Pelagic-Benthic Coupling","19WF026",901618,"Smith",null,"Pelagic-Benthic Coupling",null,7,2,"4/2/2019","4/15/2019",null,"Yes",null,null,null,null,null,null,"Yes",null,null,null,null,null,null,null,null,null,null,null,null,"Greater than 50nm","To and from Station M","To and from Station M","NA","This includes days for Smith Lab spring sampling cruise plus two additional days of shiptime to be added by Jeff Drazen (U. Hawaii) from funded NSF grant.",null,null,"ROV","CTD"]
["Flyer",null,"901618 - Pelagic-Benthic Coupling","19WF027",901618,"Smith",null,"Pelagic-Benthic Coupling",null,10,2,"10/1/2019","10/15/2019",null,"Yes",null,null,null,null,null,null,"Yes",null,null,null,null,null,null,null,null,null,null,null,null,"Greater than 50nm","To and from Station M","To and from Station M","NA","This includes days for annual servicing Smith lab cruise plus two additional days of shiptime to be added by Jeff Drazen (U. Hawaii) from funded NSF grant.",null,null,"ROV","CTD"]
["Flyer",null,"901805 - Coastal Biogeochemical Se","19WF028",901805,"Takeshita",null,"Coastal Biogeochemical Se",null,6,0,"7/9/2019","6/6/2019",null,null,null,null,null,null,null,null,null,"Yes",null,null,null,null,null,null,null,null,null,null,null,"Greater than 50nm","36.786\t122.056","37.414\t126.449","Actual dates of cruises don't matter, but want it to be during upwelling season",null,null,null,"-","CTD"]
["Flyer",null,"901805 - Coastal Biogeochemical Se","19WF029",901805,"Takeshita",null,"Coastal Biogeochemical Se",null,6,0,"8/13/2019","8/1/2019",null,null,null,null,null,null,null,null,null,"Yes",null,null,null,null,null,null,null,null,null,null,null,"Greater than 50nm","36.786, 122.056","32.816\t123.905","Actual dates of cruises don't matter, but want it to be during upwelling season",null,null,null,"-","CTD"]
["Flyer",null,"901808 - Free-Living & Symbiotic M","19WF030",901808,"Goffredi",null,"Free-Living & Symbiotic M",null,3,0,"1/2/2019","1/3/2019",null,null,null,null,null,null,null,null,null,null,null,null,null,null,null,null,null,null,null,null,null,null,"36.776,  -122.084","36.2527, -122.6792","Must occur at least 6 months prior to second cruise",null,null,null,"-"]
["Flyer",null,"901808 - Free-Living & Symbiotic M","19WF031",901808,"Goffredi",null,"Free-Living & Symbiotic M",null,3,0,"8/5/2019","8/6/2019",null,null,null,null,null,null,null,null,null,null,null,null,null,null,null,null,null,null,null,null,null,null,"36.776,  -122.084","36.2527, -122.6792","Must occur at least 6 months after first cruise",null,null,null,"-"]
["Flyer",null,"901809 - Deep Sea Bioinspiration","19WF032",901809,"Katija",null,"Deep Sea Bioinspiration",null,8,0,"8/26/2019",null,null,"Yes",null,null,null,null,null,null,null,null,null,null,null,"Yes",null,null,null,null,null,null,null,null,null,null,null,null,null,null,"ROV","MiniROV"]
["Total-WF",null,null,null,null,null,null,null,null,{"$f":"SUM(J129:J160)","v":163},{"$f":"SUM(K129:K160)","v":8},null,null,{"$f":"COUNTIF(N129:N160,\"Yes\")","v":0},22,0,0,0,0,0,0,{"$f":"COUNTIF(V129:V160,\"Yes\")","v":2},{"$f":"COUNTIF(W129:W160,\"Yes\")","v":6},{"$f":"COUNTIF(X129:X160,\"Yes\")","v":0},0,0,1,1,0,0,0,0,0]
[]
["Blocked",null,null,null,"","Haddock",null,"Do not schedule","to jun28",11,null,"2019-06-18",null,null,null,null,null,null,null,null,null,null,null,null,null,null,null,null,null,null,null,null,null,null,null,null,null,"please do not schedule between June 18-28"]
[null,null,null,null,null,null,null,""]
[]
["Paragon",null,"300057 - Mooring Maint","19PG001",300057,"M1 Maint",null,{"$f":"MID(C166,10,30)","v":"Mooring Maint"},"Consec?",12,0,"1/31/2019",null,null,null,null,null,null,null,null,null,null,null,null,null,null,null,null,null,null,null,null,null,null,"Between 20nm & 50nm"]
["Paragon",null,"300082 - DMO Support - Wave Glider","19PG002",300082,"DMO-WG",null,"DMO Support - Wave Glider",null,5,0,"7/1/2019",null,null,null,null,null,null,null,null,null,null,null,null,null,null,null,null,null,"Yes","Yes",null,null,null,null,null,null,null,"wave glider testing"]
["Paragon",null,"300082 - DMO Support - Wave Glider","19PG003",300082,"DMO-WG",null,"DMO Support - Wave Glider",null,0,0]
["Paragon",null,"901009 - CANON","19PG004",901009,"CANON",null,"CANON","Consecutive days?",20,0,"5/21/2019",null,null,null,null,null,null,null,null,null,null,null,null,null,null,null,null,null,null,null,null,null,null,null,null,null,null,"dates should be 10 days on either side of CANON Carson days"]
["Paragon",null,"901009 - CANON","19PG005",901009,"CANON",null,"CANON","Consecutive days?",20,0,"2019-09-21","x"]
["Paragon",null,"901103 - Biodiversity & Biooptics","19PG006",901103,"Haddock",null,"Biodiversity & Biooptics",null,24,0,null,null,null,null,null,null,null,null,null,null,null,null,null,"Yes",null,null,null,null,null,null,null,null,null,"Less than 20nm",null,null,"will be coordinated with the Chavez lab Dorado deployments","these will be partial days to deploy and recover the LRAUV for 12 deployments",null,null,"LRAUV"]
["Paragon",null,"901103 - Biodiversity & Biooptics","19PG007",901103,"Haddock",null,"Biodiversity & Biooptics",null,6,0,null,null,null,null,"Yes",null,null,null,null,null,null,null,null,null,null,null,null,null,null,null,null,null,null,"Less than 20nm",null,null,"For doordinated diamond runs with LRAUV","Requested 96 h of TBD Auv tech for both LRAUV and this",null,null,"AUV CTD"]
["Paragon",null,"901112 - Change in MB & CA Current","19PG008",901112,"Chavez",null,"Change in MB & CA Current",null,1,0,"1/1/2019"]
["Paragon",null,"901112 - Change in MB & CA Current","19PG009",901112,"Chavez",null,"Change in MB & CA Current",null,1,0,"1/2/2019"]
["Paragon",null,"901112 - Change in MB & CA Current","19PG010",901112,"Chavez",null,"Change in MB & CA Current",null,1,0,"2/1/2019"]
["Paragon",null,"901112 - Change in MB & CA Current","19PG011",901112,"Chavez",null,"Change in MB & CA Current",null,1,0,"2/2/2019"]
["Paragon",null,"901112 - Change in MB & CA Current","19PG012",901112,"Chavez",null,"Change in MB & CA Current",null,1,0,"3/1/2019"]
["Paragon",null,"901112 - Change in MB & CA Current","19PG013",901112,"Chavez",null,"Change in MB & CA Current",null,1,0,"3/2/2019"]
["Paragon",null,"901112 - Change in MB & CA Current","19PG014",901112,"Chavez",null,"Change in MB & CA Current",null,1,0,"4/1/2019"]
["Paragon",null,"901112 - Change in MB & CA Current","19PG015",901112,"Chavez",null,"Change in MB & CA Current",null,1,0,"4/2/2019"]
["Paragon",null,"901112 - Change in MB & CA Current","19PG016",901112,"Chavez",null,"Change in MB & CA Current",null,1,0,"5/1/2019"]
["Paragon",null,"901112 - Change in MB & CA Current","19PG017",901112,"Chavez",null,"Change in MB & CA Current",null,1,0,"5/2/2019"]
["Paragon",null,"901112 - Change in MB & CA Current","19PG018",901112,"Chavez",null,"Change in MB & CA Current",null,1,0,"6/1/2019"]
["Paragon",null,"901112 - Change in MB & CA Current","19PG019",901112,"Chavez",null,"Change in MB & CA Current",null,1,0,"6/2/2019"]
["Paragon",null,"901112 - Change in MB & CA Current","19PG020",901112,"Chavez",null,"Change in MB & CA Current",null,1,0,"7/1/2019"]
["Paragon",null,"901112 - Change in MB & CA Current","19PG021",901112,"Chavez",null,"Change in MB & CA Current",null,1,0,"7/2/2019"]
["Paragon",null,"901112 - Change in MB & CA Current","19PG022",901112,"Chavez",null,"Change in MB & CA Current",null,1,0,"8/1/2019"]
["Paragon",null,"901112 - Change in MB & CA Current","19PG023",901112,"Chavez",null,"Change in MB & CA Current",null,1,0,"8/2/2019"]
["Paragon",null,"901112 - Change in MB & CA Current","19PG024",901112,"Chavez",null,"Change in MB & CA Current",null,1,0,"9/1/2019"]
["Paragon",null,"901112 - Change in MB & CA Current","19PG025",901112,"Chavez",null,"Change in MB & CA Current",null,1,0,"9/2/2019"]
["Paragon",null,"901112 - Change in MB & CA Current","19PG026",901112,"Chavez",null,"Change in MB & CA Current",null,1,0,"10/1/2019"]
["Paragon",null,"901112 - Change in MB & CA Current","19PG027",901112,"Chavez",null,"Change in MB & CA Current",null,1,0,"10/2/2019"]
["Paragon",null,"901112 - Change in MB & CA Current","19PG028",901112,"Chavez",null,"Change in MB & CA Current",null,1,0,"11/1/2019"]
["Paragon",null,"901112 - Change in MB & CA Current","19PG029",901112,"Chavez",null,"Change in MB & CA Current",null,1,0,"11/2/2019"]
["Paragon",null,"901112 - Change in MB & CA Current","19PG030",901112,"Chavez",null,"Change in MB & CA Current",null,1,0,"12/1/2019"]
["Paragon",null,"901112 - Change in MB & CA Current","19PG031",901112,"Chavez",null,"Change in MB & CA Current",null,1,0,"12/2/2019"]
["Paragon",null,"901112 - Change in MB & CA Current","19PG032",901112,"Chavez",null,"Change in MB & CA Current",null,1,0,"12/3/2019"]
["Paragon",null,"901200 - AMP","19PG033",901200,"AMP",null,"AMP","Consec?",2,0,"2019-08-07","2019-08-13","?",null,null,null,null,null,null,null,null,null,null,null,null,null,null,null,null,null,null,null,null,"Between 20nm & 50nm",null,null,"dates will depend on IF and WHEN albacore enter the bay"]
["Paragon",null,"901200 - AMP","19PG034",901200,"AMP",null,"AMP","Consec?",2,0,"2019-09-03","2019-09-10",null,null,null,null,null,null,null,null,null,null,null,null,null,null,null,null,null,null,null,null,null,"Between 20nm & 50nm",null,null,"dates will depend on IF and WHEN albacore enter the bay"]
["Paragon",null,"901206 - Coastal Profiling Float","19PG035",901206,"Johnson",null,"Coastal Profiling Float","Consec?",7,0,"6/17/2019"]
["Paragon",null,"901206 - Coastal Profiling Float","19PG036",901206,"Johnson",null,"Coastal Profiling Float","Consec?",7,0,"8/12/2019"]
["Paragon",null,"901217 - Chemical Sensor Program","19PG037",901217,"Johnson",null,"Chemical Sensor Program","no date",4,0,null,null,null,null,null,null,null,null,null,null,null,null,null,null,null,null,null,null,null,null,null,null,null,null,null,null,"no specific schedule request yet."]
["Paragon",null,"901405 - PowerBuoy Dvlpmnt-Expense","19PG038",901405,"Hamilton",null,"PowerBuoy Dvlpmnt-Expense",null,1,0,"2/13/2019","2/20/2019"]
["Paragon",null,"901405 - PowerBuoy Dvlpmnt-Expense","19PG039",901405,"Hamilton",null,"PowerBuoy Dvlpmnt-Expense",null,1,0,"3/13/2019","3/20/2019"]
["Paragon",null,"901405 - PowerBuoy Dvlpmnt-Expense","19PG040",901405,"Hamilton",null,"PowerBuoy Dvlpmnt-Expense",null,1,0,"6/12/2019","6/19/2019"]
["Paragon",null,"901405 - PowerBuoy Dvlpmnt-Expense","19PG041",901405,"Hamilton",null,"PowerBuoy Dvlpmnt-Expense",null,1,0,"7/24/2019","7/31/2019"]
["Paragon",null,"901405 - PowerBuoy Dvlpmnt-Expense","19PG042",901405,"Hamilton",null,"PowerBuoy Dvlpmnt-Expense",null,0,0]
["Paragon",null,"901502 - Passive Acoustic Sensing","19PG043",901502,"Ryan",null,"Passive Acoustic Sensing","Consec?",3,0,"2019-10-15","2019-11-15",null,null,"No",null,null,null,"No",null,null,null,"No","No","No",null,null,"No","No","No",null,null,null,"Less than 20nm","within Monterey Bay"]
["Paragon",null,"901513 - Targeted Sampling by AUVs","19PG044",901513,"Zhang",null,"Targeted Sampling by AUVs","no date",1,0,null,null,null,null,null,null,null,null,null,null,null,null,null,null,null,null,null,null,"Yes",null,null,null,null,null,null,null,null,"Pilot: Brian Kieft"]
["Paragon",null,"901608 - WG Sensor Payld Box & Tow","19PG045",901608,"Chavez",null,"WG Sensor Payld Box & Tow","Consec?",5,0,null,null,null,null,null,null,null,null,null,null,null,null,null,null,null,null,null,null,"Yes",null,null,null,null,null,null,null,"Would be good to have Jared and Chris to help work out towbody deployment","Engineering tests of the Towbody",null,null,"Wave Glider Tiny"]
["Paragon",null,"901618 - Pelagic-Benthic Coupling","19PG046",901618,"Smith",null,"Pelagic-Benthic Coupling",null,1,0,"3/25/2019","3/26/2019",null,null,null,null,null,null,null,null,null,null,null,null,null,null,null,null,"Yes",null,null,null,null,"Greater than 50nm","To Station M and Back","To Station M and Back","LAUNCH WAVE-GLIDER for 20-day deployment to Sta. M to communicate with Rover and SES. Rendezvous during Western Flyer cruise in Spring 2019.","WAVE GLIDER OUT FOR 20 days",null,null,"Wave Glider Tiny"]
["Paragon",null,"901618 - Pelagic-Benthic Coupling","19PG047",901618,"Smith",null,"Pelagic-Benthic Coupling",null,1,0,"4/15/2019","4/16/2019",null,null,null,null,null,null,null,null,null,null,null,null,null,null,null,null,"Yes",null,null,null,null,"Greater than 50nm","To Station M and Back","To Station M and Back","RECOVER WAVE-GLIDER from 20-day deployment to Sta. M to communicate with Rover and SES. Rendezvous during Western Flyer cruise in Spring 2019.","NOTE- all days on this request are anticipated to take only 0.5 days",null,null,"Wave Glider Tiny"]
["Paragon",null,"901618 - Pelagic-Benthic Coupling","19PG048",901618,"Smith",null,"Pelagic-Benthic Coupling",null,1,0,"7/1/2019","7/8/2019",null,null,null,null,null,null,null,null,null,null,null,null,null,null,null,null,"Yes",null,null,null,null,"Greater than 50nm","To Station M and Back","To Station M and Back","LAUNCH WAVE-GLIDER for 20-day deployment to Sta. M to communicate with Rover and SES.","WAVE GLIDER OUT FOR 20 days",null,null,"Wave Glider Tiny"]
["Paragon",null,"901618 - Pelagic-Benthic Coupling","19PG049",901618,"Smith",null,"Pelagic-Benthic Coupling",null,1,0,"7/22/2019","7/29/2019",null,null,null,null,null,null,null,null,null,null,null,null,null,null,null,null,"Yes",null,null,null,null,"Greater than 50nm","To Station M and Back","To Station M and Back","RECOVER WAVE-GLIDER from 20-day deployment to Sta. M to communicate with Rover and SES.",null,null,null,"Wave Glider Tiny"]
["Paragon",null,"901618 - Pelagic-Benthic Coupling","19PG050",901618,"Smith",null,"Pelagic-Benthic Coupling",null,1,0,"9/23/2019","10/7/2019",null,null,null,null,null,null,null,null,null,null,null,null,null,null,null,null,"Yes",null,null,null,null,"Greater than 50nm","To Station M and Back","To Station M and Back","LAUNCH WAVE-GLIDER for 20-day deployment to Sta. M to communicate with Rover and SES. Rendezvous during Western Flyer cruise in Fall 2019.","WAVE GLIDER OUT FOR 20 days",null,null,"Wave Glider Tiny"]
["Paragon",null,"901618 - Pelagic-Benthic Coupling","19PG051",901618,"Smith",null,"Pelagic-Benthic Coupling",null,1,0,"9/30/2019","10/21/2019",null,null,null,null,null,null,null,null,null,null,null,null,null,null,null,null,"Yes",null,null,null,null,"Greater than 50nm","To Station M and Back","To Station M and Back","RECOVER WAVE-GLIDER from 20-day deployment to Sta. M to communicate with Rover and SES. Rendezvous during Western Flyer cruises in Fall 2019.",null,null,null,"Wave Glider Tiny"]
["Paragon",null,"901700 - 2017 Acoustical Ocean Eco","19PG052",901700,"Benoit-Bird","KBB","2017 Acoustical Ocean Eco","no date",18,0,null,null,null,null,null,null,null,null,null,null,null,null,null,null,null,null,null,"Yes",null,null,null,null,null,"Less than 20nm",null,null,"Periodic throughout the year"]
["Paragon",null,"901700 - 2017 Acoustical Ocean Eco","19PG053",901700,"Benoit-Bird","KBB","2017 Acoustical Ocean Eco","no date",6,0,null,null,null,null,null,null,null,null,null,null,null,null,null,null,null,null,null,null,null,"Yes",null,null,null,"Less than 20nm",null,null,"Bracketing Ventana deployments",null,null,null,"Wave Glider Sparky"]
["Paragon",null,"901713 - Nearshore FOCE","19PG054",901713,"Barry",null,"Nearshore FOCE",null,1,0,"5/1/2019"]
["Paragon",null,"901713 - Nearshore FOCE","19PG055",901713,"Barry",null,"Nearshore FOCE",null,2,0,"5/13/2019"]
["Paragon",null,"901713 - Nearshore FOCE","19PG056",901713,"Barry",null,"Nearshore FOCE",null,2,0,"6/17/2019"]
["Paragon",null,"901713 - Nearshore FOCE","19PG057",901713,"Barry",null,"Nearshore FOCE",null,1,0,"8/1/2019"]
["Paragon",null,"901713 - Nearshore FOCE","19PG058",901713,"Barry",null,"Nearshore FOCE",null,2,0,"10/1/2019"]
["Paragon",null,"901727.99 - LRAUV Construction (3)","19PG059",901727,"Chaffey",null,"LRAUV Construction (3)",null,6,0,"6/3/2019"]
["Paragon",null,"901800 - LRAUV Payload & Support","19PG060",901800,"Hobson",null,{"$f":"MID(C225,10,30)","v":"LRAUV Payload & Support"},"no date",16,0,null,null,null,null,null,null,null,null,null,null,null,null,null,"Yes","Yes",null,null,null,null,null,null,null,null,null,null,null,null,null,null,null,"LRAUV","LRAUV LARS"]
["Paragon",null,"901800 - LRAUV Payload & Support","19PG061",901800,"Hobson",null,{"$f":"MID(C226,10,30)","v":"LRAUV Payload & Support"},"no date",4,0,null,null,null,null,null,null,null,null,null,null,null,null,null,"Yes","Yes",null,null,null,"Yes",null,null,null,null,null,null,null,null,null,null,null,"LRAUV","LRAUV LARS"]
["Paragon",null,"901800.98 - Bioacoustic Payload","19PG062",901800,"Hobson",null,"Bioacoustic Payload","no date",7,0,null,null,null,null,null,null,null,null,null,null,null,null,null,"Yes","Yes",null,null,null,null,null,null,null,null,"Less than 20nm",null,null,null,"Monterey Canyon and nearby shelf",null,null,"LRAUV","LRAUV LARS"]
["Paragon",null,"901803 - Carbon Wave Glider Develo","19PG063",901803,"Fassbender",null,{"$f":"MID(C228,10,30)","v":"Carbon Wave Glider Develo"},null,10,0,"11/18/2019",null,null,null,null,null,null,null,null,null,null,null,null,null,null,null,null,null,null,"Yes",null,null,null,"Less than 20nm",null,null,"Likely near end of 2019.","I've budgeted 10 days in the event that we are ready for multiple short deployments."]
["Paragon",null,"901804 - LVAUV Biology Imager","19PG064",901804,"Chaffey",null,"LVAUV Biology Imager",null,2,0,"11/4/2019","11/18/2019"]
["Paragon",null,"901809 - Deep Sea Bioinspiration","19PG065",901809,"Katija",null,"Deep Sea Bioinspiration",null,2,0,"9/23/2019",null,null,null,null,null,null,null,null,null,null,null,null,null,null,null,null,null,null,null,null,null,"COTS ROV"]
["Paragon",null,"901809 - Deep Sea Bioinspiration","19PG066",901809,"Katija",null,"Deep Sea Bioinspiration",null,3,0,"11/4/2019"]
["Paragon",null,"901817 - Marine Biogeochemistry Pr","19PG067",901817,"Fassbender",null,"Marine Biogeochemistry Pr",null,3,0,"2/11/2019","2/18/2019",null,null,null,null,null,null,null,null,null,null,null,null,null,null,null,null,null,"Yes",null,null,null,"Less than 20nm",null,null,"These are estimated dates. Actual dates will depend on CPF readiness and location."]
["Paragon",null,"901817 - Marine Biogeochemistry Pr","19PG068",901817,"Fassbender",null,"Marine Biogeochemistry Pr",null,3,0,"4/8/2019","4/15/2019",null,null,null,null,null,null,null,null,null,null,null,null,null,null,null,null,null,"Yes",null,null,null,"Less than 20nm",null,null,"These are estimated dates. Actual dates will depend on CPF readiness and location."]
["Paragon",null,"901817 - Marine Biogeochemistry Pr","19PG069",901817,"Fassbender",null,"Marine Biogeochemistry Pr",null,3,0,"6/10/2019","6/17/2019",null,null,null,null,null,null,null,null,null,null,null,null,null,null,null,null,null,"Yes",null,null,null,"Less than 20nm",null,null,"These are estimated dates. Actual dates will depend on CPF readiness and location."]
["Paragon",null,"901902 - Aerial Drones for Sci&MO","19PG070",901902,"Ryan",null,"Aerial Drones for Sci&MO",null,0.5,0,"3/1/2019"]
["Paragon",null,"901902 - Aerial Drones for Sci&MO","19PG071",901902,"Ryan",null,"Aerial Drones for Sci&MO",null,0.5,0,"3/14/2019"]
["Paragon",null,"901902 - Aerial Drones for Sci&MO","19PG072",901902,"Ryan",null,"Aerial Drones for Sci&MO",null,0.5,0,"3/18/2019"]
["Paragon",null,"901902 - Aerial Drones for Sci&MO","19PG073",901902,"Ryan",null,"Aerial Drones for Sci&MO",null,0.5,0,"3/25/2019"]
["Paragon",null,"901902 - Aerial Drones for Sci&MO","19PG074",901902,"Ryan",null,"Aerial Drones for Sci&MO",null,0.5,0,"4/2/2019",null,null,null,null,null,null,null,null,null,null,null,null,null,null,null,null,null,null,null,null,null,null,null,null,null,"Paragon on standby for emergency UAV recovery"]
["Paragon",null,"901902 - Aerial Drones for Sci&MO","19PG075",901902,"Ryan",null,"Aerial Drones for Sci&MO",null,0.5,0,"4/16/2019"]
["Paragon",null,"901902 - Aerial Drones for Sci&MO","19PG076",901902,"Ryan",null,"Aerial Drones for Sci&MO",null,0.5,0,"5/7/2019",null,null,null,null,null,null,null,null,null,null,null,null,null,null,null,null,null,null,null,null,null,null,null,null,null,"Paragon on standby for emergency UAV recovery"]
["Paragon",null,"901902 - Aerial Drones for Sci&MO","19PG077",901902,"Ryan",null,"Aerial Drones for Sci&MO",null,0.5,0,"12/3/2019"]
["Paragon",null,"901902 - Aerial Drones for Sci&MO","19PG078",901902,"Ryan",null,"Aerial Drones for Sci&MO",null,0.5,0,"5/14/2019"]
["Paragon",null,"901902 - Aerial Drones for Sci&MO","19PG079",901902,"Ryan",null,"Aerial Drones for Sci&MO",null,0.5,0,"12/10/2019"]
["Paragon",null,"901902 - Aerial Drones for Sci&MO","19PG080",901902,"Ryan",null,"Aerial Drones for Sci&MO",null,0.5,0,"6/4/2019",null,null,null,null,null,null,null,null,null,null,null,null,null,null,null,null,null,null,null,null,null,null,null,null,null,"Paragon on standby for emergency UAV recovery"]
["Paragon",null,"901902 - Aerial Drones for Sci&MO","19PG081",901902,"Ryan",null,"Aerial Drones for Sci&MO",null,0.5,0,"6/11/2019"]
["Paragon",null,"901902 - Aerial Drones for Sci&MO","19PG082",901902,"Ryan",null,"Aerial Drones for Sci&MO",null,0.5,0,"7/2/2019",null,null,null,null,null,null,null,null,null,null,null,null,null,null,null,null,null,null,null,null,null,null,null,null,null,"Paragon on standby for emergency UAV recovery"]
["Paragon",null,"901902 - Aerial Drones for Sci&MO","19PG083",901902,"Ryan",null,"Aerial Drones for Sci&MO",null,0.5,0,"7/9/2019"]
["Paragon",null,"901902 - Aerial Drones for Sci&MO","19PG084",901902,"Ryan",null,"Aerial Drones for Sci&MO",null,0.5,0,"8/6/2019",null,null,null,null,null,null,null,null,null,null,null,null,null,null,null,null,null,null,null,null,null,null,null,null,null,"Paragon on standby for emergency UAV recovery"]
["Paragon",null,"901902 - Aerial Drones for Sci&MO","19PG085",901902,"Ryan",null,"Aerial Drones for Sci&MO",null,0.5,0,"8/13/2019"]
["Paragon",null,"901902 - Aerial Drones for Sci&MO","19PG086",901902,"Ryan",null,"Aerial Drones for Sci&MO",null,0.5,0,"9/3/2019"]
["Paragon",null,"901902 - Aerial Drones for Sci&MO","19PG087",901902,"Ryan",null,"Aerial Drones for Sci&MO",null,0.5,0,"9/10/2019"]
["Paragon",null,"901902 - Aerial Drones for Sci&MO","19PG088",901902,"Ryan",null,"Aerial Drones for Sci&MO",null,0.5,0,"10/8/2019"]
["Paragon",null,"901902 - Aerial Drones for Sci&MO","19PG089",901902,"Ryan",null,"Aerial Drones for Sci&MO",null,0.5,0,"10/15/2019"]
["Paragon",null,"901902 - Aerial Drones for Sci&MO","19PG090",901902,"Ryan",null,"Aerial Drones for Sci&MO",null,0.5,0,"11/5/2019"]
["Paragon",null,"901902 - Aerial Drones for Sci&MO","19PG091",901902,"Ryan",null,"Aerial Drones for Sci&MO",null,0.5,0,"11/12/2019"]
["Paragon",null,"901906 - Multi-Spectral DropCam","19PG092",901906,"Katija",null,"Multi-Spectral DropCam",null,2,0,"4/11/2019","4/18/2019"]
["Paragon",null,"901906 - Multi-Spectral DropCam","19PG093",901906,"Katija",null,"Multi-Spectral DropCam",null,2,0,"5/15/2019","5/22/2019"]
["Paragon",null,"901906 - Multi-Spectral DropCam","19PG094",901906,"Katija",null,"Multi-Spectral DropCam",null,2,0,"6/12/2019","6/19/2019"]
["Paragon",null,"901906 - Multi-Spectral DropCam","19PG095",901906,"Katija",null,"Multi-Spectral DropCam",null,2,0,"10/23/2019","10/30/2019"]
["Paragon",null,"901906 - Multi-Spectral DropCam","19PG096",901906,"Katija",null,"Multi-Spectral DropCam",null,2,0,"12/4/2019","12/11/2019"]
[null,null,"DQ1842 - Insitu Hab Toxin Warning","19PG097",null,"Toxin",null,"Insitu Hab Toxin Warning","no date",8,0,null,null,null,null,null,null,null,null,null,null,null,null,null,"Yes","Yes"]
["Total-PG",null,null,null,null,null,null,"",null,{"$f":"SUM(J166:J262)","v":273},{"$f":"SUM(K166:K262)","v":0},null,null,{"$f":"COUNTIF(N166:N262,\"Yes\")","v":0},{"$f":"COUNTIF(O166:O262,\"Yes\")","v":0},1,0,0,0,0,0,0,0,0,5,4,0,0,1,10,6,0,0]
[]
[]
["External",null,"600034 - Control Tech - Rock","19EX001",600034,"Rock",null,{"$f":"MID(C266,10,30)","v":"Control Tech - Rock"},null,5,0,"1/7/2019","1/14/2019",null,null,null,null,null,null,null,null,null,null,null,null,null,"Yes",null,null,null,null,null,null,null,null,null,null,null,null,null,null,"MiniROV"]
["External",null,"600034 - Control Tech - Rock","19EX002",600034,"Rock",null,"Control Tech - Rock",null,5,0,"5/6/2019","5/13/2019",null,null,null,null,null,null,null,null,null,null,null,null,null,"Yes",null,null,null,null,null,null,null,null,null,null,null,null,null,null,"MiniROV"]
["External",null,"600034 - Control Tech - Rock","19EX003",600034,"Rock",null,"Control Tech - Rock",null,5,0,"9/2/2019","9/9/2019",null,null,null,null,null,null,null,null,null,null,null,null,null,"Yes",null,null,null,null,null,null,null,null,null,null,null,null,null,null,"MiniROV"]
["External",null,"901009 - CANON","19EX004",901009,"CANON",null,"CANON",null,60,0,"6/1/2019",null,null,null,null,null,null,null,null,null,null,null,null,"Yes",null,null,null,null,"Yes","Yes",null,null,null,null,null,null,null,null,null,null,"LRAUV"]
["External",null,"901009 - CANON","19EX005",901009,"CANON",null,"CANON",null,60,0,"10/1/2019",null,null,null,null,null,null,null,null,null,null,null,null,"Yes",null,null,null,null,"Yes","Yes",null,null,null,null,null,null,null,null,null,null,"LRAUV"]
["External",null,"901009 - CANON","19EX006",901009,"CANON",null,"CANON",null,5,0,"6/1/2019",null,null,null,"Yes",null,null,null,null,null,null,null,null,null,null,null,null,null,null,null,null,null,null,null,null,null,null,null,null,null,"AUV CTD"]
["External",null,"901009 - CANON","19EX007",901009,"CANON",null,"CANON",null,5,0,"10/1/2019",null,null,null,"Yes",null,null,null,null,null,null,null,null,null,null,null,null,null,null,null,null,null,null,null,null,null,null,null,null,null,"AUV CTD"]
["External",null,"901023 - Continental Margin Proces","19EX008",901023,"Paull",null,"Continental Margin Proces","no date",7,0,null,null,null,null,null,null,null,null,null,null,null,null,null,null,null,null,null,null,null,"Yes"]
["External",null,"901103 - Biodiversity & Biooptics","19EX009",901103,"Haddock",null,"Biodiversity & Biooptics","no date",12,0,null,null,null,null,null,null,null,null,null,null,null,null,null,"Yes",null,null,null,null,null,null,null,null,null,null,null,null,null,null,null,null,"LRAUV"]
["External",null,"901112 - Change in MB & CA Current","19EX010",901112,"Chavez",null,"Change in MB & CA Current",null,8,0,"1/1/2019",null,null,null,null,null,null,null,null,null,null,null,null,"Yes",null,null,null,null,"Yes",null,null,null,null,null,null,null,null,null,null,null,"LRAUV"]
["External",null,"901112 - Change in MB & CA Current","19EX011",901112,"Chavez",null,"Change in MB & CA Current",null,8,0,"2/1/2019",null,null,null,null,null,null,null,null,null,null,null,null,"Yes",null,null,null,null,"Yes",null,null,null,null,null,null,null,null,null,null,null,"LRAUV"]
["External",null,"901112 - Change in MB & CA Current","19EX012",901112,"Chavez",null,"Change in MB & CA Current",null,8,0,"3/1/2019",null,null,null,null,null,null,null,null,null,null,null,null,"Yes",null,null,null,null,"Yes",null,null,null,null,null,null,null,null,null,null,null,"LRAUV"]
["External",null,"901112 - Change in MB & CA Current","19EX013",901112,"Chavez",null,"Change in MB & CA Current",null,8,0,"4/1/2019",null,null,null,null,null,null,null,null,null,null,null,null,"Yes",null,null,null,null,"Yes",null,null,null,null,null,null,null,null,null,null,null,"LRAUV"]
["External",null,"901112 - Change in MB & CA Current","19EX014",901112,"Chavez",null,"Change in MB & CA Current",null,8,0,"5/1/2019",null,null,null,null,null,null,null,null,null,null,null,null,"Yes",null,null,null,null,"Yes",null,null,null,null,null,null,null,null,null,null,null,"LRAUV"]
["External",null,"901112 - Change in MB & CA Current","19EX015",901112,"Chavez",null,"Change in MB & CA Current",null,8,0,"2019-06-01",null,null,null,null,null,null,null,null,null,null,null,null,"Yes",null,null,null,null,"Yes",null,null,null,null,null,null,null,null,null,null,null,"LRAUV"]
["External",null,"901112 - Change in MB & CA Current","19EX016",901112,"Chavez",null,"Change in MB & CA Current",null,8,0,"7/1/2019",null,null,null,null,null,null,null,null,null,null,null,null,"Yes",null,null,null,null,"Yes",null,null,null,null,null,null,null,null,null,null,null,"LRAUV"]
["External",null,"901112 - Change in MB & CA Current","19EX017",901112,"Chavez",null,"Change in MB & CA Current",null,8,0,"8/1/2019",null,null,null,null,null,null,null,null,null,null,null,null,"Yes",null,null,null,null,"Yes",null,null,null,null,null,null,null,null,null,null,null,"LRAUV"]
["External",null,"901112 - Change in MB & CA Current","19EX018",901112,"Chavez",null,"Change in MB & CA Current",null,9,0,"2019-09-01",null,null,null,null,null,null,null,null,null,null,null,null,"Yes",null,null,null,null,"Yes",null,null,null,null,null,null,null,null,null,null,null,"LRAUV"]
["External",null,"901112 - Change in MB & CA Current","19EX019",901112,"Chavez",null,"Change in MB & CA Current",null,9,0,"2019-10-01",null,null,null,null,null,null,null,null,null,null,null,null,"Yes",null,null,null,null,"Yes",null,null,null,null,null,null,null,null,null,null,null,"LRAUV"]
["External",null,"901112 - Change in MB & CA Current","19EX020",901112,"Chavez",null,"Change in MB & CA Current",null,9,0,"11/1/2019",null,null,null,null,null,null,null,null,null,null,null,null,"Yes",null,null,null,null,"Yes",null,null,null,null,null,null,null,null,null,null,null,"LRAUV"]
["External",null,"901112 - Change in MB & CA Current","19EX021",901112,"Chavez",null,"Change in MB & CA Current",null,9,0,"12/1/2019",null,null,null,null,null,null,null,null,null,null,null,null,"Yes",null,null,null,null,"Yes",null,null,null,null,null,null,null,null,null,null,null,"LRAUV"]
["External",null,"901112 - Change in MB & CA Current","19EX022",901112,"Chavez",null,"Change in MB & CA Current",null,2,0,"1/1/2019",null,null,null,"Yes",null,null,null,null,null,null,null,null,null,null,null,null,null,null,null,null,null,null,null,null,null,null,null,null,null,"AUV CTD"]
["External",null,"901112 - Change in MB & CA Current","19EX023",901112,"Chavez",null,"Change in MB & CA Current",null,3,0,"2/1/2019",null,null,null,"Yes",null,null,null,null,null,null,null,null,null,null,null,null,null,null,null,null,null,null,null,null,null,null,null,null,null,"AUV CTD"]
["External",null,"901112 - Change in MB & CA Current","19EX024",901112,"Chavez",null,"Change in MB & CA Current",null,2,0,"3/1/2019",null,null,null,"Yes",null,null,null,null,null,null,null,null,null,null,null,null,null,null,null,null,null,null,null,null,null,null,null,null,null,"AUV CTD"]
["External",null,"901112 - Change in MB & CA Current","19EX025",901112,"Chavez",null,"Change in MB & CA Current",null,3,0,"4/1/2019",null,null,null,"Yes",null,null,null,null,null,null,null,null,null,null,null,null,null,null,null,null,null,null,null,null,null,null,null,null,null,"AUV CTD"]
["External",null,"901112 - Change in MB & CA Current","19EX026",901112,"Chavez",null,"Change in MB & CA Current",null,2,0,"5/1/2019",null,null,null,"Yes",null,null,null,null,null,null,null,null,null,null,null,null,null,null,null,null,null,null,null,null,null,null,null,null,null,"AUV CTD"]
["External",null,"901112 - Change in MB & CA Current","19EX027",901112,"Chavez",null,"Change in MB & CA Current",null,3,0,"6/1/2019",null,null,null,"Yes",null,null,null,null,null,null,null,null,null,null,null,null,null,null,null,null,null,null,null,null,null,null,null,null,null,"AUV CTD"]
["External",null,"901112 - Change in MB & CA Current","19EX028",901112,"Chavez",null,"Change in MB & CA Current",null,2,0,"7/1/2019",null,null,null,"Yes",null,null,null,null,null,null,null,null,null,null,null,null,null,null,null,null,null,null,null,null,null,null,null,null,null,"AUV CTD"]
["External",null,"901112 - Change in MB & CA Current","19EX029",901112,"Chavez",null,"Change in MB & CA Current",null,3,0,"8/1/2019",null,null,null,"Yes",null,null,null,null,null,null,null,null,null,null,null,null,null,null,null,null,null,null,null,null,null,null,null,null,null,"AUV CTD"]
["External",null,"901112 - Change in MB & CA Current","19EX030",901112,"Chavez",null,"Change in MB & CA Current",null,2,0,"9/1/2019",null,null,null,"Yes",null,null,null,null,null,null,null,null,null,null,null,null,null,null,null,null,null,null,null,null,null,null,null,null,null,"AUV CTD"]
["External",null,"901112 - Change in MB & CA Current","19EX031",901112,"Chavez",null,"Change in MB & CA Current",null,3,0,"10/1/2019",null,null,null,"Yes",null,null,null,null,null,null,null,null,null,null,null,null,null,null,null,null,null,null,null,null,null,null,null,null,null,"AUV CTD"]
["External",null,"901112 - Change in MB & CA Current","19EX032",901112,"Chavez",null,"Change in MB & CA Current",null,2,0,"11/1/2019",null,null,null,"Yes",null,null,null,null,null,null,null,null,null,null,null,null,null,null,null,null,null,null,null,null,null,null,null,null,null,"AUV CTD"]
["External",null,"901112 - Change in MB & CA Current","19EX033",901112,"Chavez",null,"Change in MB & CA Current",null,3,0,"12/1/2019",null,null,null,"Yes",null,null,null,null,null,null,null,null,null,null,null,null,null,null,null,null,null,null,null,null,null,null,null,null,null,"AUV CTD"]
["Total-EXT",null,null,null,null,null,null,"",null,{"$f":"SUM(J266:J298)","v":294},{"$f":"SUM(K266:K298)","v":0},null,null,{"$f":"COUNTIF(N266:N298,\"Yes\")","v":0},{"$f":"COUNTIF(O266:O298,\"Yes\")","v":0},14,0,0,0,0,0,0,0,0,15,0,3,0,0,14,3,0,{"$f":"COUNTIF(AG266:AG298,\"Yes\")","v":0}]
[null,null,null,null,null,null,null,null,null,{"$f":"J125+J161+J263+J299","v":872.5}]

{"sheet":"Projects","index":2,"n_rows":24,"n_cols":11,"rows_kept":24,"cut":false,"hidden":false,"merged":[]}
[]
[null,"PROPOSAL PDF LINK"]
[null,"Project Number",null,"Name1","Project Name",null,null,"Project Number",null,"Name1","Project Name"]
[null,300057,null,"DMO","Mooring Maint",null,null,901405,null,"Hamilton","PowerBuoy Dvlpmnt-Expense"]
[null,300058,null,"DMO","DMO Spprt-WF -LABOR ONLY",null,null,901502,null,"Ryan","Passive Acoustic Sensing"]
[null,300060,null,"DMO","DMO Sppt-Pargn LABOR ONLY",null,null,901513,null,"Zhang","Targeted Sampling by AUVs"]
[null,300079,null,"DMO","DMO Spprt-RC - LABOR ONLY",null,null,901608,null,"Chavez","WG Sensor Payld Box & Tow"]
[null,300082,null,"DMO","DMO Support - Wave Glider",null,null,901618,null,"Smith","Pelagic-Benthic Coupling"]
[null,600034,null,"Rock","Control Tech - Rock",null,null,901700,null,"Benoit-Bird","2017 Acoustical Ocean Eco"]
[null,701127,null,"MARS","MARS O&M III",null,null,901713,null,"Barry","Nearshore FOCE"]
[null,701136,null,"Mesobot","Mesobot",null,null,901727.99,null,"Chaffey","LRAUV Construction (3)"]
[null,901007,null,"Barry","Benthic Biology & Ecology",null,null,901800,null,"Hobson","LRAUV Payload & Support"]
[null,901009,null,"CANON","CANON",null,null,901800.98,null,"Hobson","Bioacoustic Payload"]
[null,901023,null,"Paull","Continental Margin Proces",null,null,901802,null,"Matsumoto","DeepSea Connect"]
[null,901024,null,"Clague","Submarine Volcanism",null,null,901803,null,"Fassbender","Carbon Wave Glider Develo"]
[null,901101,null,"Caress","Ocean Imaging",null,null,901804,null,"Chaffey","LVAUV Biology Imager"]
[null,901103,null,"Haddock","Biodiversity & Biooptics",null,null,901805,"?","Takeshita","Coastal Biogeochemical Se"]
[null,901112,null,"Chavez","Change in MB & CA Current",null,null,901807,null,"Benoit-Bird","Next Gen Acoust Dorado"]
[null,901114,null,"Worden","E&D-Picophytoeukaryotes",null,null,901808,null,"Goffredi","Free-Living & Symbiotic M"]
[null,901200,null,"AMP","AMP",null,null,901809,null,"Katija","Deep Sea Bioinspiration"]
[null,901206,null,"Johnson","Coastal Profiling Float",null,null,901817,"?","Fassbender","Marine Biogeochemistry Pr"]
[null,901217,null,"Johnson","Chemical Sensor Program",null,null,901902,null,"Ryan","Aerial Drones for Sci&MO"]
[null,901220,null,"Robison","Midwater Ecology",null,null,901906,null,"Katija","Multi-Spectral DropCam"]
[null,901221,null,"Robison","Midwater Time Series"]

{"sheet":"DateLog","index":3,"n_rows":369,"n_cols":3,"rows_kept":369,"cut":false,"hidden":false,"merged":[[0,10,0,11]]}
["Date Log Sheet"]
[]
["DATE","NOTES","CATEGORY"]
["2019-01-01","New Year's Day"]
["2019-01-02"]
["2019-01-03"]
["2019-01-04"]
["2019-01-05"]
["2019-01-06"]
["2019-01-07",null,"Weather"]
["2019-01-08"]
["2019-01-09",null,"Malfunction"]
["2019-01-10"]
["2019-01-11",null,"Weather"]
["2019-01-12"]
["2019-01-13"]
["2019-01-14"]
["2019-01-15"]
["2019-01-16"]
["2019-01-17"]
["2019-01-18"]
["2019-01-19"]
["2019-01-20"]
["2019-01-21","MLK Day"]
["2019-01-22"]
["2019-01-23"]
["2019-01-24"]
["2019-01-25"]
["2019-01-26"]
["2019-01-27"]
["2019-01-28"]
["2019-01-29"]
["2019-01-30"]
["2019-01-31"]
["2019-02-01"]
["2019-02-02"]
["2019-02-03"]
["2019-02-04"]
["2019-02-05"]
["2019-02-06"]
["2019-02-07"]
["2019-02-08"]
["2019-02-09"]
["2019-02-10"]
["2019-02-11"]
["2019-02-12"]
["2019-02-13"]
["2019-02-14"]
["2019-02-15"]
["2019-02-16"]
["2019-02-17"]
["2019-02-18","Presidents' Day"]
["2019-02-19"]
["2019-02-20"]
["2019-02-21"]
["2019-02-22"]
["2019-02-23"]
["2019-02-24"]
["2019-02-25"]
["2019-02-26"]
["2019-02-27"]
["2019-02-28"]
["2019-03-01"]
["2019-03-02"]
["2019-03-03"]
["2019-03-04"]
["2019-03-05"]
["2019-03-06"]
["2019-03-07"]
["2019-03-08"]
["2019-03-09"]
["2019-03-10"]
["2019-03-11"]
["2019-03-12"]
["2019-03-13"]
["2019-03-14"]
["2019-03-15"]
["2019-03-16"]
["2019-03-17"]
["2019-03-18"]
["2019-03-19"]
["2019-03-20"]
["2019-03-21"]
["2019-03-22"]
["2019-03-23"]
["2019-03-24"]
["2019-03-25"]
["2019-03-26"]
["2019-03-27"]
["2019-03-28"]
["2019-03-29"]
["2019-03-30"]
["2019-03-31"]
["2019-04-01","Easter"]
["2019-04-02"]
["2019-04-03"]
["2019-04-04"]
["2019-04-05"]
["2019-04-06"]
["2019-04-07"]
["2019-04-08"]
["2019-04-09"]
["2019-04-10"]
["2019-04-11"]
["2019-04-12"]
["2019-04-13"]
["2019-04-14"]
["2019-04-15"]
["2019-04-16"]
["2019-04-17"]
["2019-04-18"]
["2019-04-19"]
["2019-04-20"]
["2019-04-21"]
["2019-04-22"]
["2019-04-23"]
["2019-04-24"]
["2019-04-25"]
["2019-04-26"]
["2019-04-27"]
["2019-04-28"]
["2019-04-29"]
["2019-04-30"]
["2019-05-01"]
["2019-05-02"]
["2019-05-03"]
["2019-05-04"]
["2019-05-05"]
["2019-05-06"]
["2019-05-07"]
["2019-05-08"]
["2019-05-09"]
["2019-05-10"]
["2019-05-11"]
["2019-05-12"]
["2019-05-13"]
["2019-05-14"]
["2019-05-15"]
["2019-05-16"]
["2019-05-17"]
["2019-05-18"]
["2019-05-19"]
["2019-05-20"]
["2019-05-21"]
["2019-05-22"]
["2019-05-23"]
["2019-05-24"]
["2019-05-25"]
["2019-05-26"]
["2019-05-27"]
["2019-05-28","Memorial Day"]
["2019-05-29"]
["2019-05-30"]
["2019-05-31"]
["2019-06-01"]
["2019-06-02"]
["2019-06-03"]
["2019-06-04"]
["2019-06-05"]
["2019-06-06"]
["2019-06-07"]
["2019-06-08"]
["2019-06-09"]
["2019-06-10"]
["2019-06-11"]
["2019-06-12"]
["2019-06-13"]
["2019-06-14"]
["2019-06-15"]
["2019-06-16"]
["2019-06-17"]
["2019-06-18"]
["2019-06-19"]
["2019-06-20"]
["2019-06-21"]
["2019-06-22"]
["2019-06-23"]
["2019-06-24"]
["2019-06-25"]
["2019-06-26"]
["2019-06-27"]
["2019-06-28"]
["2019-06-29"]
["2019-06-30"]
["2019-07-01"]
["2019-07-02"]
["2019-07-03"]
["2019-07-04","Independence Day"]
["2019-07-05","Off"]
["2019-07-06","Off"]
["2019-07-07"]
["2019-07-08"]
["2019-07-09","latest version to Teresa"]
["2019-07-10"]
["2019-07-11"]
["2019-07-12"]
["2019-07-13"]
["2019-07-14"]
["2019-07-15"]
["2019-07-16"]
["2019-07-17"]
["2019-07-18"]
["2019-07-19","Update remove Paragon rows"]
["2019-07-20"]
["2019-07-21"]
["2019-07-22"]
["2019-07-23"]
["2019-07-24"]
["2019-07-25"]
["2019-07-26"]
["2019-07-27"]
["2019-07-28"]
["2019-07-29"]
["2019-07-30"]
["2019-07-31"]
["2019-08-01"]
["2019-08-02"]
["2019-08-03"]
["2019-08-04"]
["2019-08-05"]
["2019-08-06"]
["2019-08-07"]
["2019-08-08"]
["2019-08-09"]
["2019-08-10"]
["2019-08-11"]
["2019-08-12"]
["2019-08-13"]
["2019-08-14"]
["2019-08-15"]
["2019-08-16"]
["2019-08-17"]
["2019-08-18"]
["2019-08-19"]
["2019-08-20"]
["2019-08-21"]
["2019-08-22"]
["2019-08-23"]
["2019-08-24"]
["2019-08-25"]
["2019-08-26"]
["2019-08-27"]
["2019-08-28"]
["2019-08-29"]
["2019-08-30"]
["2019-08-31"]
["2019-09-01"]
["2019-09-02"]
["2019-09-03","Labor Day"]
["2019-09-04"]
["2019-09-05"]
["2019-09-06"]
["2019-09-07"]
["2019-09-08"]
["2019-09-09"]
["2019-09-10"]
["2019-09-11"]
["2019-09-12"]
["2019-09-13"]
["2019-09-14"]
["2019-09-15"]
["2019-09-16"]
["2019-09-17"]
["2019-09-18"]
["2019-09-19"]
["2019-09-20"]
["2019-09-21"]
["2019-09-22"]
["2019-09-23"]
["2019-09-24"]
["2019-09-25"]
["2019-09-26"]
["2019-09-27"]
["2019-09-28"]
["2019-09-29"]
["2019-09-30"]
["2019-10-01"]
["2019-10-02"]
["2019-10-03"]
["2019-10-04"]
["2019-10-05"]
["2019-10-06"]
["2019-10-07"]
["2019-10-08"]
["2019-10-09"]
["2019-10-10"]
["2019-10-11"]
["2019-10-12"]
["2019-10-13"]
["2019-10-14"]
["2019-10-15"]
["2019-10-16"]
["2019-10-17"]
["2019-10-18"]
["2019-10-19"]
["2019-10-20"]
["2019-10-21"]
["2019-10-22"]
["2019-10-23"]
["2019-10-24"]
["2019-10-25"]
["2019-10-26"]
["2019-10-27"]
["2019-10-28"]
["2019-10-29"]
["2019-10-30"]
["2019-10-31"]
["2019-11-01"]
["2019-11-02"]
["2019-11-03"]
["2019-11-04"]
["2019-11-05"]
["2019-11-06"]
["2019-11-07"]
["2019-11-08"]
["2019-11-09"]
["2019-11-10"]
["2019-11-11"]
["2019-11-12"]
["2019-11-13"]
["2019-11-14"]
["2019-11-15"]
["2019-11-16"]
["2019-11-17"]
["2019-11-18"]
["2019-11-19"]
["2019-11-20"]
["2019-11-21"]
["2019-11-22","Thanksgiving Day"]
["2019-11-23"]
["2019-11-24"]
["2019-11-25"]
["2019-11-26"]
["2019-11-27"]
["2019-11-28"]
["2019-11-29"]
["2019-11-30"]
["2019-12-01"]
["2019-12-02"]
["2019-12-03"]
["2019-12-04"]
["2019-12-05"]
["2019-12-06"]
["2019-12-07"]
["2019-12-08"]
["2019-12-09"]
["2019-12-10"]
["2019-12-11"]
["2019-12-12"]
["2019-12-13"]
["2019-12-14"]
["2019-12-15"]
["2019-12-16"]
["2019-12-17"]
["2019-12-18"]
["2019-12-19"]
["2019-12-20"]
["2019-12-21"]
["2019-12-22"]
["2019-12-23"]
["2019-12-24"]
["2019-12-25","Christmas"]
["2019-12-26"]
["2019-12-27"]
["2019-12-28"]
["2019-12-29"]
["2019-12-30"]
["2019-12-31","New Year's Eve"]
["2020-01-01"]

{"sheet":"Lookup","index":4,"n_rows":44,"n_cols":4,"rows_kept":44,"cut":false,"hidden":true,"merged":[]}
["1 text",2,3,4]
["FROM SHIP REQ"]
["Project Number","Name1","Project Name","URL"]
[300057,"DMO","Mooring Maint","https://mww.mbari.org/resources/2019_Proposal_Process/phase_1_pdfs/300057_Moorings_2019.pdf"]
[300058,"DMO","DMO Spprt-WF -LABOR ONLY","https://mww.mbari.org/resources/2019_Proposal_Process/phase_1_pdfs/300058-300082_DMO_support_2019.pdf"]
[300060,"DMO","DMO Sppt-Pargn LABOR ONLY","https://mww.mbari.org/resources/2019_Proposal_Process/phase_1_pdfs/300058-300082_DMO_support_2019.pdf"]
[300079,"DMO","DMO Spprt-RC - LABOR ONLY","https://mww.mbari.org/resources/2019_Proposal_Process/phase_1_pdfs/300058-300082_DMO_support_2019.pdf"]
[300082,"DMO","DMO Support - Wave Glider","https://mww.mbari.org/resources/2019_Proposal_Process/phase_1_pdfs/300058-300082_DMO_support_2019.pdf"]
[600034,"Rock","Control Tech - Rock","https://mww.mbari.org/resources/2019_Proposal_Process/phase_1_pdfs/600034_PrecisionControls_2019.pdf"]
[701127,"MARS","MARS O&M III","https://mww.mbari.org/resources/2019_Proposal_Process/phase_1_pdfs/701127_MARSExternal_proposal_2019.pdf"]
[701136,"Mesobot","Mesobot","https://mww.mbari.org/resources/2019_Proposal_Process/phase_1_pdfs/701136_Mesobot_NSF-OTIC_2019.pdf"]
[901007,"Barry","Benthic Biology & Ecology","https://mww.mbari.org/resources/2019_Proposal_Process/phase_1_pdfs/901007_Benthic_Biology_and_Ecology.pdf"]
[901009,"CANON","CANON","https://mww.mbari.org/resources/2019_Proposal_Process/phase_1_pdfs/901009_Proposal_2019.pdf"]
[901023,"Paull","Continental Margin Proces","https://mww.mbari.org/resources/2019_Proposal_Process/phase_1_pdfs/901023_Continental_Margins_2019_Phase_1.pdf"]
[901024,"Clague","Submarine Volcanism","https://mww.mbari.org/resources/2019_Proposal_Process/phase_1_pdfs/901024_SubVolc2019.pdf"]
[901101,"Caress","Ocean Imaging","https://mww.mbari.org/resources/2019_Proposal_Process/phase_1_pdfs/901101_OceanImaging_PhaseI_v2.pdf"]
[901103,"Haddock","Biodiversity & Biooptics","https://mww.mbari.org/resources/2019_Proposal_Process/phase_1_pdfs/901103_BiodiversityBiooptics_2019.pdf"]
[901112,"Chavez","Change in MB & CA Current","https://mww.mbari.org/resources/2019_Proposal_Process/phase_1_pdfs/901112_Proposal_2019.pdf"]
[901114,"Worden","E&D-Picophytoeukaryotes","https://mww.mbari.org/resources/2019_Proposal_Process/phase_1_pdfs/901114_Proposal_form_internal_2019_Wordenv2.pdf"]
[901200,"AMP","AMP","https://mww.mbari.org/resources/2019_Proposal_Process/phase_1_pdfs/901200_AMP_2019.pdf"]
[901206,"Johnson","Coastal Profiling Float","https://mww.mbari.org/resources/2019_Proposal_Process/phase_1_pdfs/901206_CoastalProfilingFloat2019.pdf"]
[901217,"Johnson","Chemical Sensor Program","https://mww.mbari.org/resources/2019_Proposal_Process/phase_1_pdfs/901217_ChemicalSensorProposal2019.pdf"]
[901220,"Robison","Midwater Ecology","https://mww.mbari.org/resources/2019_Proposal_Process/phase_1_pdfs/901220_Midwater_Ecology.pdf"]
[901221,"Robison","Midwater Time Series","https://mww.mbari.org/resources/2019_Proposal_Process/phase_1_pdfs/901221_Midwater_Time_Series.pdf"]
[901405,"Hamilton","PowerBuoy Dvlpmnt-Expense","https://mww.mbari.org/resources/2019_Proposal_Process/phase_1_pdfs/901405_WaveEnergy_2019.pdf"]
[901502,"Ryan","Passive Acoustic Sensing","https://mww.mbari.org/resources/2019_Proposal_Process/phase_1_pdfs/901502_Soundscape_2019.pdf"]
[901513,"Zhang","Targeted Sampling by AUVs","https://mww.mbari.org/resources/2019_Proposal_Process/phase_1_pdfs/901513_TSAVs_2019.pdf"]
[901608,"Chavez","WG Sensor Payld Box & Tow","https://mww.mbari.org/resources/2019_Proposal_Process/phase_1_pdfs/901608_WaveGlider_Sensor_Payload_and_Towbody_proposal_2019_v2.pdf"]
[901618,"Smith","Pelagic-Benthic Coupling","https://mww.mbari.org/resources/2019_Proposal_Process/phase_1_pdfs/901618_Pelagic_Benthic.pdf"]
[901700,"Benoit-Bird","2017 Acoustical Ocean Eco","https://mww.mbari.org/resources/2019_Proposal_Process/phase_1_pdfs/901700_Acoustical_Ocean_Ecology_2019.pdf"]
[901713,"Barry","Nearshore FOCE","https://mww.mbari.org/resources/2019_Proposal_Process/phase_1_pdfs/901713_NSFOCE.pdf"]
[901727.99,"Chaffey","LRAUV Construction (3)","https://mww.mbari.org/resources/2019_Proposal_Process/phase_1_pdfs/901727.99_LRAUV_Construction_2019.pdf"]
[901800,"Hobson","LRAUV Payload & Support","https://mww.mbari.org/resources/2019_Proposal_Process/phase_1_pdfs/901800_LRAUV_Payloads_2019.pdf"]
[901800.98,"Hobson","Bioacoustic Payload","https://mww.mbari.org/resources/2019_Proposal_Process/phase_1_pdfs/901800.98_LRAUV_Bioacoustics_Payload_2019.pdf"]
[901802,"Matsumoto","DeepSea Connect","https://mww.mbari.org/resources/2019_Proposal_Process/phase_1_pdfs/901802_Proposal_2019_DeepSeaConnect.pdf"]
[901803,"Fassbender","Carbon Wave Glider Develo","https://mww.mbari.org/resources/2019_Proposal_Process/phase_1_pdfs/901803_Carbon_WaveGlider_Development_2019.pdf"]
[901804,"Chaffey","LVAUV Biology Imager","https://mww.mbari.org/resources/2019_Proposal_Process/phase_1_pdfs/901804_LRAUVBiologyImager_2019.pdf"]
[901805,"Takeshita","Coastal Biogeochemical Se"]
[901807,"Benoit-Bird","Next Gen Acoust Dorado","https://mww.mbari.org/resources/2019_Proposal_Process/phase_1_pdfs/901807_DoradoBioAcoustics_phase1_2019.pdf"]
[901808,"Goffredi","Free-Living & Symbiotic M","https://mww.mbari.org/resources/2019_Proposal_Process/phase_1_pdfs/901808_Free-living_and_Symbiotic_Microbes_2019.pdf"]
[901809,"Katija","Deep Sea Bioinspiration","https://mww.mbari.org/resources/2019_Proposal_Process/phase_1_pdfs/901809_BioinspirationLab_2019.pdf"]
[901817,"Fassbender","Marine Biogeochemistry Pr"]
[901902,"Ryan","Aerial Drones for Sci&MO","https://mww.mbari.org/resources/2019_Proposal_Process/phase_1_pdfs/901902_AerialDrones_2019-phase1.pdf"]
[901906,"Katija","Multi-Spectral DropCam","https://mww.mbari.org/resources/2019_Proposal_Process/phase_1_pdfs/901906_DropCam_Proposal_2019.pdf"]

{"sheet":"Asset_Sum","index":5,"n_rows":30,"n_cols":34,"rows_kept":30,"cut":false,"hidden":true,"merged":[]}
[]
[null,"Ship","Hour Day","LEVEL","Cruise ID","Project Number","Name1","Name2","Project Name","DMO Notes","Days","Transit Days","Proposed Date","Alternate Date","Mob","ROV & Crew","AUV - CTD","AUV - Mapping","AUV - Mapping 2","AUV - Other","AUV Crew","CTD","CTD 12hr","CTD 24hr","CTD winch","LRAUV","LRAUV LARS","Mini - ROV","Mooring","Transducer pole","Wave Glider Tiny","Wave Glider Sparky","Van_Chemical","Van_RAD"]
[]
["Carson",{"$f":"ShipRequests!A125","v":"RC-10"},{"$f":"ShipRequests!B125","v":103},{"$f":"ShipRequests!C125","v":0},{"$f":"ShipRequests!D125","v":"ok"},{"$f":"ShipRequests!E125","v":0},{"$f":"ShipRequests!F125","v":0},{"$f":"ShipRequests!G125","v":0},{"$f":"ShipRequests!H125","v":0},{"$f":"ShipRequests!I125","v":0},{"$f":"ShipRequests!J125","v":142.5},{"$f":"ShipRequests!K125","v":11.5},{"$f":"ShipRequests!L125","v":0},{"$f":"ShipRequests!M125","v":0},{"$f":"ShipRequests!N125","v":13},{"$f":"ShipRequests!O125","v":88},{"$f":"ShipRequests!P125","v":0},{"$f":"ShipRequests!Q125","v":5},{"$f":"ShipRequests!R125","v":5},{"$f":"ShipRequests!S125","v":26},{"$f":"ShipRequests!T125","v":30},{"$f":"ShipRequests!U125","v":12},{"$f":"ShipRequests!V125","v":0},{"$f":"ShipRequests!W125","v":0},{"$f":"ShipRequests!X125","v":0},{"$f":"ShipRequests!Y125","v":0},{"$f":"ShipRequests!Z125","v":0},{"$f":"ShipRequests!AA125","v":8},{"$f":"ShipRequests!AB125","v":1},{"$f":"ShipRequests!AC125","v":0},{"$f":"ShipRequests!AD125","v":0},{"$f":"ShipRequests!AE125","v":0},{"$f":"ShipRequests!AF125","v":0},{"$f":"ShipRequests!AG125","v":0}]
[null,{"$f":"ShipRequests!A126","v":"RC-12"},{"$f":"ShipRequests!B126","v":12}]
["*",{"$f":"ShipRequests!A127","v":"RC-24"},{"$f":"ShipRequests!B127","v":8}]
[null,"count of cruises, not days"]
[]
["Flyer",null,{"$f":"ShipRequests!B161","v":0},{"$f":"ShipRequests!C161","v":0},{"$f":"ShipRequests!D161","v":0},{"$f":"ShipRequests!E161","v":0},{"$f":"ShipRequests!F161","v":0},{"$f":"ShipRequests!G161","v":0},{"$f":"ShipRequests!H161","v":0},{"$f":"ShipRequests!I161","v":0},{"$f":"ShipRequests!J161","v":163},{"$f":"ShipRequests!K161","v":8},null,{"$f":"ShipRequests!M161","v":0},{"$f":"ShipRequests!N161","v":0},{"$f":"ShipRequests!O161","v":22},{"$f":"ShipRequests!P161","v":0},{"$f":"ShipRequests!Q161","v":0},{"$f":"ShipRequests!R161","v":0},{"$f":"ShipRequests!S161","v":0},{"$f":"ShipRequests!T161","v":0},{"$f":"ShipRequests!U161","v":0},{"$f":"ShipRequests!V161","v":2},{"$f":"ShipRequests!W161","v":6},{"$f":"ShipRequests!X161","v":0},{"$f":"ShipRequests!Y161","v":0},{"$f":"ShipRequests!Z161","v":0},{"$f":"ShipRequests!AA161","v":1},{"$f":"ShipRequests!AB161","v":1},{"$f":"ShipRequests!AC161","v":0},{"$f":"ShipRequests!AD161","v":0},{"$f":"ShipRequests!AE161","v":0},{"$f":"ShipRequests!AF161","v":0},{"$f":"ShipRequests!AG161","v":0}]
[]
["Total",null,null,null,null,null,null,null,null,null,{"$f":"SUM(K4:K10)","v":305.5},19.5,0,0,13,110,0,5,5,26,30,12,2,6,0,0,0,9,2,0,0,0,0,0]
[]
[]
[]
[]
[]
[]
[]
[]
["Paragon",{"$f":"ShipRequests!A263","v":"Total-PG"},{"$f":"ShipRequests!B263","v":0},{"$f":"ShipRequests!C263","v":0},{"$f":"ShipRequests!D263","v":0},{"$f":"ShipRequests!E263","v":0},{"$f":"ShipRequests!F263","v":0},{"$f":"ShipRequests!G263","v":0},{"$f":"ShipRequests!H263","v":""},{"$f":"ShipRequests!I263","v":0},{"$f":"ShipRequests!J263","v":273},{"$f":"ShipRequests!K263","v":0},{"$f":"ShipRequests!L263","v":0},{"$f":"ShipRequests!M263","v":0},{"$f":"ShipRequests!N263","v":0},{"$f":"ShipRequests!O263","v":0},{"$f":"ShipRequests!P263","v":1},{"$f":"ShipRequests!Q263","v":0},{"$f":"ShipRequests!R263","v":0},{"$f":"ShipRequests!S263","v":0},{"$f":"ShipRequests!T263","v":0},{"$f":"ShipRequests!U263","v":0},{"$f":"ShipRequests!V263","v":0},{"$f":"ShipRequests!W263","v":0},{"$f":"ShipRequests!X263","v":0},{"$f":"ShipRequests!Y263","v":5},{"$f":"ShipRequests!Z263","v":4},{"$f":"ShipRequests!AA263","v":0},{"$f":"ShipRequests!AB263","v":0},{"$f":"ShipRequests!AC263","v":1},{"$f":"ShipRequests!AD263","v":10},{"$f":"ShipRequests!AE263","v":6},{"$f":"ShipRequests!AF263","v":0},{"$f":"ShipRequests!AG263","v":0}]
[]
["External",{"$f":"ShipRequests!A299","v":"Total-EXT"},{"$f":"ShipRequests!B299","v":0},{"$f":"ShipRequests!C299","v":0},{"$f":"ShipRequests!D299","v":0},{"$f":"ShipRequests!E299","v":0},{"$f":"ShipRequests!F299","v":0},{"$f":"ShipRequests!G299","v":0},{"$f":"ShipRequests!H299","v":""},{"$f":"ShipRequests!I299","v":0},{"$f":"ShipRequests!J299","v":294},{"$f":"ShipRequests!K299","v":0},{"$f":"ShipRequests!L299","v":0},{"$f":"ShipRequests!M299","v":0},{"$f":"ShipRequests!N299","v":0},{"$f":"ShipRequests!O299","v":0},{"$f":"ShipRequests!P299","v":14},{"$f":"ShipRequests!Q299","v":0},{"$f":"ShipRequests!R299","v":0},{"$f":"ShipRequests!S299","v":0},{"$f":"ShipRequests!T299","v":0},{"$f":"ShipRequests!U299","v":0},{"$f":"ShipRequests!V299","v":0},{"$f":"ShipRequests!W299","v":0},{"$f":"ShipRequests!X299","v":0},{"$f":"ShipRequests!Y299","v":15},{"$f":"ShipRequests!Z299","v":0},{"$f":"ShipRequests!AA299","v":3},{"$f":"ShipRequests!AB299","v":0},{"$f":"ShipRequests!AC299","v":0},{"$f":"ShipRequests!AD299","v":14},{"$f":"ShipRequests!AE299","v":3},{"$f":"ShipRequests!AF299","v":0},{"$f":"ShipRequests!AG299","v":0}]
[]
[]
["Caution: this counts the number of times it goes out, not the number of days it is out."]
[null,"If Rov-Mini has Yes counted 3 timed, it counts 3. If one of those is out for 8 days, it only counts as 1."]
[null,"If total days out is needed, tell me, so I can recalculate."]
[]
[]
["All data on this page is linked from the the summaries on the ShipRequest tab/page."]

{"sheet":"UniqueSTYLES","index":6,"n_rows":75,"n_cols":17,"rows_kept":75,"cut":false,"hidden":true,"merged":[]}
[]
[null,null,null,null,null,null,null,null," 7 Blocked     14211288 "]
[null,null,null,null,null,null,null,null," 26 MonthName  16777215 "]
[null,null,null,null,null,null,null,null," 16 Hyperlink  16777215 "]
[null,null,null,null,null,null,null,null," 17 Hyperlink 2              16777215 "]
[null,null,null,null,null,null,null,null," 20 Kim R      9803737 "]
[null,null,null,null,null,null,null,null," 35 Port Stop 2              12047063 "]
[null,null,null,null,null,"My","Calc",null," 24 MiniROV    14474738 ","GLOBAL SET (LIVE)"]
[null,null,null,null,null,"COLOR","COLOR",null,null,"STYLES",null,"ASSET",null,"AUV","ROV"]
["Public Const Barry_Color As Variant = 255",null,null,null,"NAME","SAMPLE","CODE",null,null,"PI",null,"STANDARD",null,"BRIGHT","BRIGHT"]
[null,null,null,null,null,null,null,null,"Get Styles List Fast  9/25/2018 06:58:41 PM ",25]
[{"$f":"CONCATENATE(\"Public Const \",E12,\"_Color  As Variant =  \",G12)","v":"Public Const Barry_Color  As Variant =  16760585"},null,{"$f":"CONCATENATE(E12,\"_Color= \",G12)","v":"Barry_Color= 16760585"},null,"Barry",null,16760585,null," 5 Barry       16760585 ","Barry",null,"AUV i2MAP",null,null,"OFF",null,"test"]
[null,null,null,null,"CANON",null,13434777,"x"," 8 CANON       65535 ","CANON",null,"AUV CTD",null,null,"OFF",null,"set color list number"]
[null,null,null,null,"Caress",null,49407,null," 9 Caress      49407 ","Caress",null,"AUV Iceberg",null,null,"OFF",null,"copy to location in code"]
[null,null,null,null,"Chavez",null,65535,"x"," 10 Chavez     6750207 ","Chavez",null,"AUV MAP",null,null,"OFF",null,"need color code to match color here"]
[null,null,null,null,"Generic",null,10092492,null," 13 Generic    10092492 ","Generic",null,"CTD",null,"OFF","OFF",null,"look up?"]
[null,null,null,null,"Goffredi",null,10147522,null," 14 Goffredi   10147522 ","Goffredi",null,"MiniROV",null,"OFF","OFF"]
[null,null,null,null,"Haddock",null,7434751,null," 15 Haddock    7434751 ","Haddock",null,"ROV",null,"OFF"]
[null,null,null,null,"Katija",null,11851260,"x"," 18 Katija     9946363 ","Katija"]
[null,null,null,null,"KBB",null,13408767,null," 19 KBB        13408767 ","KBB",null,"set from above colors"]
[null,null,null,null,"Maint",null,11851260,"x"," 21 Maint      16777215 ","Maint",null,"ROV i2MAP"]
[null,null,null,null,"MARS",null,13083058,null," 22 MARS       13083058 ","MARS",null,"ROV MAP"]
[null,null,null,null,"MBA",null,11788667,null," 23 MBA        11788667 ","MBA"]
[null,null,null,null,"Mob",null,13434828,null," 25 Mob        16777215 ","Mob",null,"ROV MARS"]
[null,null,null,null,"Normal",null,16777215,null," 27 Normal     16777215 ","Normal",null,"ROV MiniROV"]
[null,null,null,null,"Other",null,16777215,null," 31 Other      16777215 ","Other"]
[null,null,null,null,"Paull",null,9944773,"x"," 32 Paull      10731421 ","Paull",null,13]
[null,null,null,null,"Peltzer",null,14140543,null," 33 Peltzer    14140543 ","Peltzer"]
[null,null,null,null,"Port_Stop",null,13558244,"x"," 34 Port Stop  12047063 ","Port Stop"]
[null,null,null,null,"Robison",null,14136213,null," 36 Robison    14136213 ","Robison"]
[null,null,null,null,"Rock",null,12566463,"x"," 37 Rock       13352627 ","Rock"]
[null,null,null,null,"Shipyard",null,13421823,null," 49 Shipyard   13421823 ","Shipyard"]
[null,null,null,null,"Smith",null,6213632,null," 51 Smith      6213632 ","Smith"]
[null,null,null,null,"Transit",null,13434879,"ok"," 52 Transit    10092543 ","Transit"]
[null,null,null,null,"Worden",null,9803737,null," 55 Worden     9803737 ","Worden"]
[null,null,null,null,"WHITE",null,16777215]
[null,null,null,null,"AUV_i2MAP",null,12106214,null,null,"AUV i2MAP"]
[null,null,null,null,"AUV_CTD",null,15261110,null,null,"AUV CTD"]
[null,null,null,null,"AUV_Iceberg",null,16777164,null,null,"AUV Iceberg"]
[null,null,null,null,"AUV_MAP",null,10147522,null,null,"AUV MAP"]
[null,null,null,null,"CTD",null,15261110,null,null,"CTD"]
[null,null,null,null,"MiniROV",null,14474738,null,null,"MiniROV"]
[null,null,null,null,"ROV",null,10092543,null,null,"ROV"]
[null,null,null,null,"AUV_i2map_Bright",null,255]
[null,null,null,null,"AUV_CTD_Bright",null,16776960,null," 38 ROV        10092543 "]
[null,null,null,null,"AUV_Iceberg_Bright",null,13083058,null," 39 ROV i2MAP  0 "]
[null,null,null,null,"AUV_MAP_Bright",null,65280,null," 40 ROV MAP    0 "]
[null,null,null,null,"ROV_Bright",null,65535,null," 41 ROV MARS   0 "]
[null,null,null,null,null,null,null,null," 42 ROV MiniROV              0 "]
[null,null,null,null,null,null,null,null," 43 Row-BK     16777215 "]
[null,null,null,null,null,null,null,null," 44 Row-EX     16777215 "]
[null,null,null,null,null,null,null,null," 45 RowLine    16777215 "]
[null,null,null,null,null,null,null,null," 46 Row-PG     16777215 "]
[null,null,null,null,null,null,null,null," 47 Row-RC     16777215 "]
[null,null,null,null,null,null,null,null," 48 Row-WF     16777215 "]
[]
[null,null,null,null,null,null,null,null," 50 Side Legend              16777215 "]
[]
[]
[null,null,null,null,null,null,null,null," 53 Weekday    16777215 "]
[null,null,null,null,null,null,null,null," 54 Weekend    15853019 "]
[]
[null,null,null,null,null,null,null,null," 28 OFF        15853019 "]
[null,null,null,null,null,null,null,null," 29 OFF Day    15853019 "]
[null,null,null,null,null,null,null,null," 30 OFF Holiday              15853019 "]
[]
[null,null,null,null,null,null,null,null," 1 AUV CTD     15261110 "]
[null,null,null,null,null,null,null,null," 2 AUV i2MAP   12106214 "]
[null,null,null,null,null,null,null,null," 3 AUV Iceberg               14211288 "]
[null,null,null,null,null,null,null,null," 4 AUV MAP     10147522 "]
[null,null,null,null,null,null,null,null," 11 CTD        15261110 "]
[null,null,null,null,null,null,null,null," 6 Blank       16777215 "]
[]
[]
[null,null,null,null,null,null,null,null," 12 DividerLine              16777215 "]

{"sheet":"DataSheet","index":7,"n_rows":539,"n_cols":11,"rows_kept":539,"cut":false,"hidden":true,"merged":[]}
["Date","Name1","CruiseID","Style","Row","Ship","Asset",null,null,null,"EXPERIMENTAL"]
[1,2,3,4,5,6,7,null,null,null,"DATA NOT VERIFIED"]
["2019-01-02","Maint",null,"Maint",1,"Carson"]
["2019-01-03","Maint",null,"Maint",1,"Carson",null,null,null,null,"Exports Carson and Flyer to file"]
["2019-01-04","Maint",null,"Maint",1,"Carson",null,null,null,null,"File Name is: ScheduleExport.txt"]
["2019-01-07","Robison","19RC080","Robison",1,"Carson","ROV   i2MAP"]
["2019-01-08","Robison","19RC071","Robison",1,"Carson","ROV   i2MAP"]
["2019-01-09","AMP-M","19RC052","MBA",1,"Carson","ROV",null,null,null,"No assets rows in External"]
["2019-01-10","Rock","19RC004","Rock",1,"Carson","ICEBERG",null,null,null,"figure out days/ how to not have others"]
["2019-01-11","Mob",null,"Mob",1,"Carson"]
["2019-01-14","Contig",null,"Other",1,"Carson"]
["2019-01-15","Quest 12",null,"MARS",1,"Carson","ROV    MARS"]
["2019-01-16","Mob",null,"Mob",1,"Carson"]
["2019-01-17","Chavez","19RC038","Chavez",1,"Carson","CTD"]
["2019-01-18","Mob",null,"Mob",1,"Carson",null,null,null,null,"BEGIN CaptureScheduleData "]
["2019-01-22","Barry","19RC012","Barry",1,"Carson","ROV",null,null,null,"2018-09-19T17:22:10"]
["2019-01-23","Maint",null,"Maint",1,"Carson",null,null,null,null,"------end capture--------"]
["2019-01-24","Caress","19RC029","Caress",1,"Carson","MAP",null,null,null,"------end print--------"]
["2019-01-25","Caress","19RC029","Caress",1,"Carson","MAP",null,null,null,"Populate Sheet: 2.6 seconds"]
["2019-01-28","Mob",null,"Mob",1,"Carson"]
["2019-01-29","KBB-B","19RC092","KBB",1,"Carson","ROV"]
["2019-01-30","Barry","19RC013","Barry",1,"Carson","ROV"]
["2019-01-31","Contig",null,"Other",1,"Carson"]
["2019-02-01","Mob",null,"Mob",1,"Carson"]
["2019-02-04","Robison","19RC081","Robison",1,"Carson","ROV   i2MAP"]
["2019-02-05","Robison","19RC072","Robison",1,"Carson","ROV   i2MAP"]
["2019-02-06","AMP-M","19RC053","MBA",1,"Carson","ROV"]
["2019-02-07","KBB-M","19RC093","KBB",1,"Carson","ROV"]
["2019-02-08","Mob",null,"Mob",1,"Carson"]
["2019-02-11","Barry","19RC014","Barry",1,"Carson","ROV"]
["2019-02-12","Contig",null,"Other",1,"Carson"]
["2019-02-13","Mob",null,"Mob",1,"Carson"]
["2019-02-14","Chavez","19RC039","Chavez",1,"Carson","CTD"]
["2019-02-15","Maint",null,"Maint",1,"Carson"]
["2019-02-19","Barry","19RC015","Barry",1,"Carson","ROV"]
["2019-02-20","AMP-B","19RC059","MBA",1,"Carson","ROV"]
["2019-02-21","AMP-B","19RC058","MBA",1,"Carson","ROV"]
["2019-02-22","Mob",null,"Mob",1,"Carson"]
["2019-02-25","AMP-M","19RC051","MBA",1,"Carson","ROV"]
["2019-02-26","KBB AUV","19RC105","KBB",1,"Carson","i2MAP"]
["2019-02-27","Mob",null,"Mob",1,"Carson"]
["2019-02-28","Robi AUV","19RC082","Robison",1,"Carson","i2MAP"]
["2019-03-01","Maint",null,"Maint",1,"Carson"]
["2019-03-04","KBB-M","19RC094","KBB",1,"Carson","ROV"]
["2019-03-05","Haddock","19RC032","Haddock",1,"Carson","ROV"]
["2019-03-06","Mob",null,"Mob",1,"Carson"]
["2019-03-07","Chavez","19RC040","Chavez",1,"Carson","CTD"]
["2019-03-08","Rock","19RC005","Rock",1,"Carson","ICEBERG"]
["2019-03-11","Maint",null,"Maint",1,"Carson"]
["2019-03-12","Maint",null,"Maint",1,"Carson"]
["2019-03-13","Maint",null,"Maint",1,"Carson"]
["2019-03-14","Paull 24","19RC027","Paull",1,"Carson","MAP"]
["2019-03-15","Paull",null,"Paull",1,"Carson","MAP"]
["2019-03-16","Paull",null,"Paull",1,"Carson","MAP"]
["2019-03-17","Paull",null,"Paull",1,"Carson","MAP"]
["2019-03-18","Paull",null,"Paull",1,"Carson","MAP"]
["2019-03-19","Paull",null,"Paull",1,"Carson","MAP"]
["2019-03-20","Maint",null,"Maint",1,"Carson"]
["2019-03-21","Maint",null,"Maint",1,"Carson"]
["2019-03-22","Maint",null,"Maint",1,"Carson"]
["2019-03-25","Maint",null,"Maint",1,"Carson"]
["2019-03-26","Maint",null,"Maint",1,"Carson"]
["2019-03-27","Maint",null,"Maint",1,"Carson"]
["2019-03-28","Maint",null,"Maint",1,"Carson"]
["2019-03-29","Maint",null,"Maint",1,"Carson"]
["2019-04-01","Maint",null,"Maint",1,"Carson"]
["2019-04-02","Maint",null,"Maint",1,"Carson"]
["2019-04-03","Mob",null,"Mob",1,"Carson"]
["2019-04-04","Chavez","19RC041","Chavez",1,"Carson","CTD"]
["2019-04-05","Mob",null,"Mob",1,"Carson"]
["2019-04-08","KBB R A","19RC099","KBB",1,"Carson","ROV   i2MAP"]
["2019-04-09","Robison","19RC083","Robison",1,"Carson","ROV   i2MAP"]
["2019-04-10","Robison","19RC073","Robison",1,"Carson","ROV"]
["2019-04-11","Haddock","19RC033","Haddock",1,"Carson","ROV"]
["2019-04-12","Maint",null,"Maint",1,"Carson"]
["2019-04-15","AMP-M","19RC055","MBA",1,"Carson","ROV"]
["2019-04-16","Mob",null,"Mob",1,"Carson"]
["2019-04-17","Katija Mini","19RC107","Katija",1,"Carson","ROV     Mini"]
["2019-04-18","Katija Mini",null,"Katija",1,"Carson","ROV     Mini"]
["2019-04-19","Maint",null,"Maint",1,"Carson"]
["2019-04-22","Rock Mini","19RC010","Rock",1,"Carson","ROV     Mini"]
["2019-04-23","Mob",null,"Mob",1,"Carson"]
["2019-04-24","AMP-B","19RC050","MBA",1,"Carson","ROV"]
["2019-04-25","AMP-B","19RC056","MBA",1,"Carson","ROV"]
["2019-04-26","Maint",null,"Maint",1,"Carson"]
["2019-04-29","Rock AUV","19RC006","Rock",1,"Carson","ICEBERG"]
["2019-04-30","Contig",null,"Other",1,"Carson"]
["2019-05-01","Mob",null,"Mob",1,"Carson"]
["2019-05-02","Chavez","19RC042","Chavez",1,"Carson","CTD"]
["2019-05-03","KBB AUV","19RC106","KBB",1,"Carson","i2MAP"]
["2019-05-06","Maint",null,"Maint",1,"Carson"]
["2019-05-07","Maint",null,"Maint",1,"Carson"]
["2019-05-08","Maint",null,"Maint",1,"Carson"]
["2019-05-09","Paull 24","19RC027","Paull",1,"Carson","MAP"]
["2019-05-10","Paull",null,"Paull",1,"Carson","MAP"]
["2019-05-11","Paull",null,"Paull",1,"Carson","MAP"]
["2019-05-12","Paull",null,"Paull",1,"Carson","MAP"]
["2019-05-13","Paull",null,"Paull",1,"Carson","MAP"]
["2019-05-14","Paull",null,"Paull",1,"Carson","MAP"]
["2019-05-15","Maint",null,"Maint",1,"Carson"]
["2019-05-16","Maint",null,"Maint",1,"Carson"]
["2019-05-17","Maint",null,"Maint",1,"Carson"]
["2019-05-20","Mob",null,"Mob",1,"Carson"]
["2019-05-21","KBB R A","19RC100","KBB",1,"Carson","ROV   i2MAP"]
["2019-05-22","Robison","19RC084","Robison",1,"Carson","ROV   i2MAP"]
["2019-05-23","Robison","19RC074","Robison",1,"Carson","ROV"]
["2019-05-24","Maint",null,"Maint",1,"Carson"]
["2019-05-28","Maint",null,"Maint",1,"Carson"]
["2019-05-29","Barry","19RC016","Barry",1,"Carson","ROV"]
["2019-05-30","Contig",null,"Other",1,"Carson"]
["2019-05-31","Mob",null,"Mob",1,"Carson"]
["2019-06-03","CANON ROV","19RC024","CANON",1,"Carson","ROV"]
["2019-06-04","CANON ROV","19RC023","CANON",1,"Carson","ROV"]
["2019-06-05","Maint",null,"Maint",1,"Carson"]
["2019-06-06","Robi AUV","19RC085","Robison",1,"Carson","i2MAP"]
["2019-06-07","Maint",null,"Maint",1,"Carson"]
["2019-06-10","AMP-M","19RC061","MBA",1,"Carson","ROV"]
["2019-06-11","KBB-M","19RC095","KBB",1,"Carson","ROV"]
["2019-06-12","Mob",null,"Mob",1,"Carson"]
["2019-06-13","Caress","19RC030","Caress",1,"Carson","MAP"]
["2019-06-14","Mob",null,"Mob",1,"Carson"]
["2019-06-17","Mesobot","19RC122","Generic",1,"Carson"]
["2019-06-18","Mob",null,"Mob",1,"Carson"]
["2019-06-19","Katija","19RC108","Katija",1,"Carson","ROV"]
["2019-06-20","Katija",null,"Katija",1,"Carson","ROV"]
["2019-06-21","Mob",null,"Mob",1,"Carson"]
["2019-06-24","AMP-B","19RC054","MBA",1,"Carson","ROV"]
["2019-06-25","AMP-B","19RC060","MBA",1,"Carson","ROV"]
["2019-06-26","Mob",null,"Mob",1,"Carson"]
["2019-06-27","Chavez","19RC043","Chavez",1,"Carson","CTD"]
["2019-06-28","Rock","19RC009","Rock",1,"Carson","ICEBERG"]
["2019-07-01","Maint",null,"Maint",1,"Carson"]
["2019-07-02","Maint",null,"Maint",1,"Carson"]
["2019-07-03","Maint",null,"Maint",1,"Carson"]
["2019-07-04","Maint",null,"Maint",1,"Carson"]
["2019-07-05","Maint",null,"Maint",1,"Carson"]
["2019-07-08","KBB R A","19RC101","KBB",1,"Carson","ROV   i2MAP"]
["2019-07-09","Robison","19RC086","Robison",1,"Carson","ROV   i2MAP"]
["2019-07-10","Robison","19RC075","Robison",1,"Carson","ROV"]
["2019-07-11","AMP-M","19RC064","MBA",1,"Carson","ROV"]
["2019-07-12","Maint",null,"Maint",1,"Carson"]
["2019-07-15","Mob",null,"Mob",1,"Carson"]
["2019-07-16","MARS 12","19RC111","MARS",1,"Carson","ROV"]
["2019-07-17","Mob",null,"Mob",1,"Carson"]
["2019-07-18","Chavez","19RC044","Chavez",1,"Carson","CTD"]
["2019-07-19","Maint",null,"Maint",1,"Carson"]
["2019-07-20","Open House ",null,"Transit",1,"Carson"]
["2019-07-22","Mob",null,"Mob",1,"Carson"]
["2019-07-23","KBB-M","19RC096","KBB",1,"Carson","ROV"]
["2019-07-24","AMP-M","19RC065","MBA",1,"Carson","ROV"]
["2019-07-25","Haddock","19RC034","Haddock",1,"Carson","ROV"]
["2019-07-26","Mob",null,"Mob",1,"Carson"]
["2019-07-29","M1 ","19RC001","Generic",1,"Carson"]
["2019-07-30","Mob",null,"Mob",1,"Carson"]
["2019-07-31","KBB R A","19RC102","KBB",1,"Carson","ROV   i2MAP"]
["2019-08-01","Robison","19RC087","Robison",1,"Carson","ROV   i2MAP"]
["2019-08-02","Robison","19RC076","Robison",1,"Carson","ROV"]
["2019-08-05","Mob",null,"Mob",1,"Carson"]
["2019-08-06","Chavez","19RC045","Chavez",1,"Carson","CTD"]
["2019-08-07","Caress","19RC030","Caress",1,"Carson","MAP"]
["2019-08-08","Maint",null,"Maint",1,"Carson"]
["2019-08-09","Maint",null,"Maint",1,"Carson"]
["2019-08-12","Maint",null,"Maint",1,"Carson"]
["2019-08-13","Maint",null,"Maint",1,"Carson"]
["2019-08-14","Maint",null,"Maint",1,"Carson"]
["2019-08-15","Caress 24","19RC031","Caress",1,"Carson","MAP"]
["2019-08-16","Caress",null,"Caress",1,"Carson","MAP"]
["2019-08-17","Caress",null,"Caress",1,"Carson","MAP"]
["2019-08-18","Caress",null,"Caress",1,"Carson","MAP"]
["2019-08-19","Caress",null,"Caress",1,"Carson","MAP"]
["2019-08-20","Caress",null,"Caress",1,"Carson","MAP"]
["2019-08-21","Caress",null,"Caress",1,"Carson","MAP"]
["2019-08-22","Caress",null,"Caress",1,"Carson","MAP"]
["2019-08-23","Port Stop",null,"Port Stop",1,"Carson"]
["2019-08-24","Port Stop",null,"Port Stop",1,"Carson"]
["2019-08-25","Port Stop",null,"Port Stop",1,"Carson"]
["2019-08-26","Clague 24","19RC028","Generic",1,"Carson","MAP"]
["2019-08-27","Clague",null,"Generic",1,"Carson","MAP"]
["2019-08-28","Clague",null,"Generic",1,"Carson","MAP"]
["2019-08-29","Clague",null,"Generic",1,"Carson","MAP"]
["2019-08-30","Clague",null,"Generic",1,"Carson","MAP"]
["2019-08-31","Clague",null,"Generic",1,"Carson","MAP"]
["2019-09-01","Clague",null,"Generic",1,"Carson","MAP"]
["2019-09-02","Clague",null,"Generic",1,"Carson","MAP"]
["2019-09-03","Maint",null,"Maint",1,"Carson"]
["2019-09-04","Maint",null,"Maint",1,"Carson"]
["2019-09-05","Maint",null,"Maint",1,"Carson"]
["2019-09-06","Maint",null,"Maint",1,"Carson"]
["2019-09-09","Maint",null,"Maint",1,"Carson"]
["2019-09-10","Maint",null,"Maint",1,"Carson"]
["2019-09-11","Mob",null,"Mob",1,"Carson"]
["2019-09-12","Chavez","19RC046","Chavez",1,"Carson","CTD"]
["2019-09-13","Mob",null,"Mob",1,"Carson"]
["2019-09-16","KBB M","19RC103","KBB",1,"Carson","ROV   i2MAP"]
["2019-09-17","Robison","19RC088","Robison",1,"Carson","ROV   i2MAP"]
["2019-09-18","Robison","19RC077","Robison",1,"Carson","ROV"]
["2019-09-19","Haddock","19RC036","Haddock",1,"Carson","ROV"]
["2019-09-20","Maint",null,"Maint",1,"Carson"]
["2019-09-23","AMP-M","19RC062","MBA",1,"Carson","ROV"]
["2019-09-24","Mob",null,"Mob",1,"Carson"]
["2019-09-25","AMP-B","19RC068","MBA",1,"Carson","ROV"]
["2019-09-26","AMP-B","19RC063","MBA",1,"Carson","ROV"]
["2019-09-27","Rock AUV","19RC008","Rock",1,"Carson","ICEBERG"]
["2019-09-30","Maint",null,"Maint",1,"Carson"]
["2019-10-01","Maint",null,"Maint",1,"Carson"]
["2019-10-02","Maint",null,"Maint",1,"Carson"]
["2019-10-03","Maint",null,"Maint",1,"Carson"]
["2019-10-04","Maint",null,"Maint",1,"Carson"]
["2019-10-07","CANON ROV","19RC025","CANON",1,"Carson","ROV"]
["2019-10-08","CANON ROV","19RC026","CANON",1,"Carson","ROV"]
["2019-10-09","Mob",null,"Mob",1,"Carson"]
["2019-10-10","Barry","19RC019","Barry",1,"Carson","ROV"]
["2019-10-11","Maint",null,"Maint",1,"Carson"]
["2019-10-14","DeepSea","19RC098","Generic",1,"Carson","ROV"]
["2019-10-15","Barry","19RC020","Barry",1,"Carson","ROV"]
["2019-10-16","Mob",null,"Mob",1,"Carson"]
["2019-10-17","Chavez","19RC047","Chavez",1,"Carson","CTD"]
["2019-10-18","Maint",null,"Maint",1,"Carson"]
["2019-10-21","KBB R A","19RC104","KBB",1,"Carson","ROV   i2MAP"]
["2019-10-22","Robison","19RC089","Robison",1,"Carson","ROV   i2MAP"]
["2019-10-23","Robison","19RC078","Robison",1,"Carson","ROV"]
["2019-10-24","Contig",null,"Other",1,"Carson"]
["2019-10-25","Maint",null,"Maint",1,"Carson"]
["2019-10-28","AMP-M","19RC067","MBA",1,"Carson","ROV"]
["2019-10-29","Haddock","19RC037","Haddock",1,"Carson","ROV"]
["2019-10-30","Mob",null,"Mob",1,"Carson"]
["2019-10-31","Mesobot","19RC123","Generic",1,"Carson"]
["2019-11-01","Mob",null,"Mob",1,"Carson"]
["2019-11-04","Rock Mini","19RC011","Rock",1,"Carson","ROV     Mini"]
["2019-11-05","Katija","19RC109","Katija",1,"Carson","ROV     Mini"]
["2019-11-06","Katija",null,"Katija",1,"Carson","ROV     Mini"]
["2019-11-07","Mob",null,"Mob",1,"Carson"]
["2019-11-08","Robi AUV","19RC090","Robison",1,"Carson","i2MAP"]
["2019-11-11","AMP-M","19RC069","MBA",1,"Carson","ROV"]
["2019-11-12","Haddock","19RC035","Haddock",1,"Carson","ROV"]
["2019-11-13","Mob",null,"Mob",1,"Carson"]
["2019-11-14","Chavez","19RC048","Chavez",1,"Carson","CTD"]
["2019-11-15","Rock","19RC007","Rock",1,"Carson","ICEBERG"]
["2019-11-18","Mob",null,"Mob",1,"Carson"]
["2019-11-19","Barry","19RC021","Barry",1,"Carson","ROV"]
["2019-11-20","MARS 12","19RC113","MARS",1,"Carson","ROV"]
["2019-11-21","MARS 12","19RC114","MARS",1,"Carson","ROV"]
["2019-11-22","Maint",null,"Maint",1,"Carson"]
["2019-11-25","Barry","19RC022","Barry",1,"Carson","ROV"]
["2019-11-26","Maint",null,"Maint",1,"Carson"]
["2019-11-27","Maint",null,"Maint",1,"Carson"]
["2019-12-02","Maint",null,"Maint",1,"Carson"]
["2019-12-03","MARS 12","19RC116","MARS",1,"Carson","ROV"]
["2019-12-04","MARS 12","19RC119","MARS",1,"Carson","ROV"]
["2019-12-05","MARS 12","19RC120","MARS",1,"Carson","ROV"]
["2019-12-06","Mob",null,"Mob",1,"Carson"]
["2019-12-09","KBB-M","19RC097","KBB",1,"Carson","ROV"]
["2019-12-10","Robison","19RC091","Robison",1,"Carson","ROV   i2MAP"]
["2019-12-11","Robison","19RC079","Robison",1,"Carson","ROV   i2MAP"]
["2019-12-12","Contig",null,"Other",1,"Carson"]
["2019-12-13","Maint",null,"Maint",1,"Carson"]
["2019-12-16","DMO-RC",null,"Generic",1,"Carson","ROV"]
["2019-12-17","AMP-Whale","19RC066","MBA",1,"Carson","ROV"]
["2019-12-18","Mob",null,"Mob",1,"Carson"]
["2019-12-19","Chavez","19RC049","Chavez",1,"Carson","CTD"]
["2019-12-20","DMO-RC","19RC002","Generic",1,"Carson","ROV"]
["2019-12-23","Maint",null,"Maint",1,"Carson"]
["2019-12-24","Maint",null,"Maint",1,"Carson"]
["2019-12-25","Maint",null,"Maint",1,"Carson"]
["2019-12-26","Maint",null,"Maint",1,"Carson"]
["2019-12-27","Maint",null,"Maint",1,"Carson"]
["2019-12-30","Maint",null,"Maint",1,"Carson"]
["2019-12-31","Maint",null,"Maint",1,"Carson"]
["2019-01-01","Chavez","19EX010","Chavez",9,"External"]
["2019-01-02"," ","19EX022","Chavez",9,"External","ROV   i2MAP"]
["2019-01-07","Rock","19EX001","Rock",9,"External","ROV    MARS"]
["2019-02-01","Chavez","19EX011","Chavez",9,"External"]
["2019-02-02","Chavez","19EX023","Chavez",9,"External","i2MAP"]
["2019-03-01","Chavez","19EX012","Chavez",9,"External","ROV"]
["2019-03-02","Chavez","19EX024","Chavez",9,"External"]
["2019-04-01","Chavez","19EX013","Chavez",9,"External"]
["2019-04-02","Chavez","19EX025","Chavez",9,"External","ROV"]
["2019-05-01","Chavez","19EX014","Chavez",9,"External"]
["2019-05-02","Chavez","19EX026","Chavez",9,"External","MAP"]
["2019-05-06","Rock","19EX002","Rock",9,"External","MAP"]
["2019-06-01","CANON","19EX004","CANON",9,"External","ROV"]
["2019-06-01","CANON","19EX006","CANON",10,"External","ROV"]
["2019-06-02","Chavez","19EX015","Chavez",9,"External"]
["2019-06-02","Chavez","19EX027","Chavez",10,"External","ROV"]
["2019-07-01","Chavez","19EX016","Chavez",9,"External"]
["2019-07-02","Chavez","19EX028","Chavez",9,"External"]
["2019-08-01","Chavez","19EX017","Chavez",9,"External","ROV  1000"]
["2019-08-02","Chavez","19EX029","Chavez",9,"External","ROV"]
["2019-09-02","Rock","19EX003","Rock",9,"External","ROV"]
["2019-09-02","Chavez","19EX030","Chavez",10,"External","ROV"]
["2019-09-03","Chavez","19EX018","Chavez",9,"External","ROV  2000"]
["2019-10-01","CANON","19EX005","CANON",9,"External","ROV  1430"]
["2019-10-01","CANON","19EX007","CANON",10,"External","ROV  1530"]
["2019-10-02","Chavez","19EX019","Chavez",9,"External","ROV  1930"]
["2019-10-02","Chavez","19EX031","Chavez",10,"External","CTD  1230"]
["2019-11-01","Chavez","19EX020","Chavez",9,"External"]
["2019-11-02","Chavez","19EX032","Chavez",9,"External"]
["2019-12-01","Chavez","19EX021","Chavez",9,"External"]
["2019-12-02","Chavez","19EX033","Chavez",9,"External"]
["2019-01-07","Goffredi","19WF030","Generic",5,"Flyer","ROV  0800"]
["2019-01-08","Goffredi",null,"Generic",5,"Flyer","ROV"]
["2019-01-09","Goffredi",null,"Generic",5,"Flyer","ROV  1330"]
["2019-01-22","AMP","19WF020","MBA",5,"Flyer","ROV  0830"]
["2019-01-23","AMP",null,"MBA",5,"Flyer","ROV"]
["2019-01-24","AMP",null,"MBA",5,"Flyer","ROV"]
["2019-01-25","AMP",null,"MBA",5,"Flyer","ROV  1500"]
["2019-02-04","Paull","19WF012","Paull",5,"Flyer","ROV  1000"]
["2019-02-05","Paull",null,"Paull",5,"Flyer","ROV"]
["2019-02-06","Paull",null,"Paull",5,"Flyer","ROV"]
["2019-02-07","Paull",null,"Paull",5,"Flyer","ROV"]
["2019-02-08","Paull",null,"Paull",5,"Flyer","ROV"]
["2019-02-09","Paull",null,"Paull",5,"Flyer","ROV"]
["2019-02-10","Paull",null,"Paull",5,"Flyer","ROV"]
["2019-02-11","Paull",null,"Paull",5,"Flyer","ROV"]
["2019-02-12","Paull",null,"Paull",5,"Flyer","ROV"]
["2019-02-13","Paull",null,"Paull",5,"Flyer","ROV"]
["2019-02-14","return",null,"Paull",5,"Flyer","ROV  0700"]
["2019-03-08","Robison","19WF023","Robison",5,"Flyer","ROV  0930"]
["2019-03-09","Robison",null,"Robison",5,"Flyer","ROV"]
["2019-03-10","Robison",null,"Robison",5,"Flyer","ROV"]
["2019-03-11","Robison",null,"Robison",5,"Flyer","ROV"]
["2019-03-12","Robison",null,"Robison",5,"Flyer","ROV"]
["2019-03-13","Robison",null,"Robison",5,"Flyer","ROV"]
["2019-03-14","Robison",null,"Robison",5,"Flyer","ROV  0630"]
["2019-03-22","Haddock","19WF017","Haddock",5,"Flyer","ROV  1030"]
["2019-03-23","Haddock",null,"Haddock",5,"Flyer","ROV"]
["2019-03-24","Haddock",null,"Haddock",5,"Flyer","ROV"]
["2019-03-25","Haddock",null,"Haddock",5,"Flyer","ROV"]
["2019-03-26","Haddock",null,"Haddock",5,"Flyer","ROV"]
["2019-03-27","Haddock",null,"Haddock",5,"Flyer","ROV"]
["2019-03-28","Haddock",null,"Haddock",5,"Flyer","ROV  1930"]
["2019-04-07","Worden","19WF018","Worden",5,"Flyer","ROV  1300"]
["2019-04-08","Worden",null,"Worden",5,"Flyer","ROV"]
["2019-04-09","Worden",null,"Worden",5,"Flyer","ROV"]
["2019-04-10","Worden",null,"Worden",5,"Flyer","ROV"]
["2019-04-11","Worden",null,"Worden",5,"Flyer","ROV"]
["2019-04-12","return",null,"Worden",5,"Flyer","ROV  0600"]
["2019-04-19","Barry","19WF007","Barry",5,"Flyer","ROV  1000"]
["2019-04-20","Barry",null,"Barry",5,"Flyer","ROV"]
["2019-04-21","Barry",null,"Barry",5,"Flyer","ROV"]
["2019-04-22","Barry",null,"Barry",5,"Flyer","ROV"]
["2019-04-23","Barry",null,"Barry",5,"Flyer","ROV"]
["2019-04-24","Barry",null,"Barry",5,"Flyer","ROV  1700"]
["2019-05-11","Takeshita","19WF028","Generic",5,"Flyer","CTD  0530"]
["2019-05-12","Takeshita",null,"Generic",5,"Flyer","CTD"]
["2019-05-13","Takeshita",null,"Generic",5,"Flyer","CTD"]
["2019-05-14","Takeshita",null,"Generic",5,"Flyer","CTD"]
["2019-05-15","Takeshita",null,"Generic",5,"Flyer","CTD"]
["2019-05-16","Takeshita",null,"Generic",5,"Flyer","CTD"]
["2019-05-17","Takeshita",null,"Generic",5,"Flyer","CTD  1930"]
["2019-05-30","CANON","19WF010","CANON",5,"Flyer","CTD  1830"]
["2019-05-31","CANON",null,"CANON",5,"Flyer","CTD"]
["2019-06-01","CANON",null,"CANON",5,"Flyer","CTD"]
["2019-06-02","CANON",null,"CANON",5,"Flyer","CTD"]
["2019-06-03","CANON",null,"CANON",5,"Flyer","CTD"]
["2019-06-04","CANON",null,"CANON",5,"Flyer","CTD  2030"]
["2019-06-11","Robison","19WF024","Robison",5,"Flyer","ROV  0600"]
["2019-06-12","Robison",null,"Robison",5,"Flyer","ROV"]
["2019-06-13","Robison",null,"Robison",5,"Flyer","ROV"]
["2019-06-14","Robison",null,"Robison",5,"Flyer","ROV"]
["2019-06-15","Robison",null,"Robison",5,"Flyer","ROV"]
["2019-06-16","Robison",null,"Robison",5,"Flyer","ROV"]
["2019-06-17","Robison",null,"Robison",5,"Flyer","ROV  2000"]
["2019-06-25","Caress","19WF014","Caress",5,"Flyer","ROV  1700"]
["2019-06-26","Caress",null,"Caress",5,"Flyer","ROV"]
["2019-06-27","Caress",null,"Caress",5,"Flyer","ROV"]
["2019-06-28","Caress",null,"Caress",5,"Flyer","ROV  1900"]
["2019-07-09","Haddock","19WF016","Haddock",5,"Flyer","ROV  1530"]
["2019-07-10","Haddock",null,"Haddock",5,"Flyer","ROV"]
["2019-07-11","Haddock",null,"Haddock",5,"Flyer","ROV"]
["2019-07-12","Haddock",null,"Haddock",5,"Flyer","ROV"]
["2019-07-13","Haddock",null,"Haddock",5,"Flyer","ROV"]
["2019-07-14","Haddock",null,"Haddock",5,"Flyer","ROV"]
["2019-07-15","Haddock",null,"Haddock",5,"Flyer","ROV  1930"]
["2019-07-20","Open House ",null,"Transit",5,"Flyer"]
["2019-07-23","Takeshita","19WF029","Generic",5,"Flyer","CTD  1500"]
["2019-07-24","Takeshita",null,"Generic",5,"Flyer","CTD"]
["2019-07-25","Takeshita",null,"Generic",5,"Flyer","CTD"]
["2019-07-26","Takeshita",null,"Generic",5,"Flyer","CTD"]
["2019-07-27","Takeshita",null,"Generic",5,"Flyer","CTD"]
["2019-07-28","Takeshita",null,"Generic",5,"Flyer","CTD"]
["2019-07-29","Takeshita",null,"Generic",5,"Flyer","CTD  1730"]
["2019-08-06","Goffredi","19WF031","Generic",5,"Flyer","ROV  1330"]
["2019-08-07","Goffredi",null,"Generic",5,"Flyer","ROV"]
["2019-08-08","Goffredi",null,"Generic",5,"Flyer","ROV  1800"]
["2019-08-14","Katija","19WF032","Katija",5,"Flyer","ROV Mini 1130"]
["2019-08-15","Katija",null,"Katija",5,"Flyer","ROV     Mini"]
["2019-08-16","Katija",null,"Katija",5,"Flyer","ROV     Mini"]
["2019-08-17","Katija",null,"Katija",5,"Flyer","ROV     Mini"]
["2019-08-18","Katija",null,"Katija",5,"Flyer","ROV     Mini"]
["2019-08-19","Katija",null,"Katija",5,"Flyer","ROV     Mini"]
["2019-08-20","Katija",null,"Katija",5,"Flyer","ROV Mini 1600"]
["2019-08-27","Barry","19WF008","Barry",5,"Flyer","ROV  0930"]
["2019-08-28","Barry",null,"Barry",5,"Flyer","ROV"]
["2019-08-29","Barry",null,"Barry",5,"Flyer","ROV"]
["2019-08-30","Barry",null,"Barry",5,"Flyer","ROV  2000"]
["2019-09-07","Worden","19WF019","Worden",5,"Flyer","ROV  0800"]
["2019-09-08","Worden",null,"Worden",5,"Flyer","ROV"]
["2019-09-09","Worden",null,"Worden",5,"Flyer","ROV"]
["2019-09-10","Worden",null,"Worden",5,"Flyer","ROV"]
["2019-09-11","Worden",null,"Worden",5,"Flyer","ROV"]
["2019-09-12","Worden",null,"Worden",5,"Flyer","ROV"]
["2019-09-13","Worden",null,"Worden",5,"Flyer","ROV"]
["2019-09-14","Worden",null,"Worden",5,"Flyer","ROV"]
["2019-09-15","Worden",null,"Worden",5,"Flyer","ROV  1400"]
["2019-09-16","Worden",null,"Worden",5,"Flyer","ROV  1430"]
["2019-09-23","Caress","19WF015","Caress",5,"Flyer","ROV  1530"]
["2019-09-24","Caress",null,"Caress",5,"Flyer","ROV"]
["2019-09-25","Caress",null,"Caress",5,"Flyer","ROV"]
["2019-09-26","Caress",null,"Caress",5,"Flyer","ROV"]
["2019-09-27","Caress",null,"Caress",5,"Flyer","ROV  1930"]
["2019-10-04","CANON","19WF011","CANON",5,"Flyer","CTD  1230"]
["2019-10-05","CANON",null,"CANON",5,"Flyer","CTD"]
["2019-10-06","CANON",null,"CANON",5,"Flyer","CTD"]
["2019-10-07","CANON",null,"CANON",5,"Flyer","CTD"]
["2019-10-08","CANON",null,"CANON",5,"Flyer","CTD"]
["2019-10-09","CANON",null,"CANON",5,"Flyer","CTD  1900"]
["2019-10-16","Smith","19WF027","Smith",5,"Flyer","ROV  1430"]
["2019-10-17","Smith",null,"Smith",5,"Flyer","ROV"]
["2019-10-18","Smith",null,"Smith",5,"Flyer","ROV"]
["2019-10-19","Smith",null,"Smith",5,"Flyer","ROV"]
["2019-10-20","Smith",null,"Smith",5,"Flyer","ROV"]
["2019-10-21","Smith",null,"Smith",5,"Flyer","ROV"]
["2019-10-22","Smith",null,"Smith",5,"Flyer","ROV"]
["2019-10-23","Smith",null,"Smith",5,"Flyer","ROV"]
["2019-10-24","Smith",null,"Smith",5,"Flyer","ROV"]
["2019-10-25","Smith",null,"Smith",5,"Flyer","ROV  1100"]
["2019-11-01","Paull","19WF013","Paull",5,"Flyer","ROV  1030"]
["2019-11-02","Paull",null,"Paull",5,"Flyer","ROV"]
["2019-11-03","Paull",null,"Paull",5,"Flyer","ROV"]
["2019-11-04","Paull",null,"Paull",5,"Flyer","ROV"]
["2019-11-05","Paull",null,"Paull",5,"Flyer","ROV"]
["2019-11-06","Paull",null,"Paull",5,"Flyer","ROV"]
["2019-11-07","Paull",null,"Paull",5,"Flyer","ROV"]
["2019-11-08","Paull",null,"Paull",5,"Flyer","ROV"]
["2019-11-09","Paull",null,"Paull",5,"Flyer","ROV"]
["2019-11-10","Paull",null,"Paull",5,"Flyer","ROV  1100"]
["2019-11-15","Robison","19WF025","Robison",5,"Flyer","ROV  0800"]
["2019-11-16","Robison",null,"Robison",5,"Flyer","ROV"]
["2019-11-17","Robison",null,"Robison",5,"Flyer","ROV"]
["2019-11-18","Robison",null,"Robison",5,"Flyer","ROV"]
["2019-11-19","Robison",null,"Robison",5,"Flyer","ROV"]
["2019-11-20","Robison",null,"Robison",5,"Flyer","ROV"]
["2019-11-21","Robison",null,"Robison",5,"Flyer","ROV  1700"]
["2019-12-03","AMP","19WF021","MBA",5,"Flyer","ROV  0630"]
["2019-12-04","AMP",null,"MBA",5,"Flyer","ROV"]
["2019-12-05","AMP",null,"MBA",5,"Flyer","ROV"]
["2019-12-06","AMP",null,"MBA",5,"Flyer","ROV  0900"]
["2019-12-13","Barry","19WF009","Barry",5,"Flyer","ROV  0700"]
["2019-12-14","Barry",null,"Barry",5,"Flyer","ROV"]
["2019-12-15","Barry",null,"Barry",5,"Flyer","ROV"]
["2019-12-16","Barry","19WF006","Barry",5,"Flyer","ROV"]
["2019-12-17","Barry",null,"Barry",5,"Flyer","ROV"]
["2019-12-18","Barry",null,"Barry",5,"Flyer","ROV  1600"]
["2019-01-01","Chavez","19PG008","Chavez",11,"Paragon","PGa TEST1x"]
["2019-01-02","Chavez","19PG009","Chavez",11,"Paragon"]
["2019-01-31","M1 Maint","19PG001","Generic",11,"Paragon"]
["2019-02-01","Chavez","19PG010","Chavez",11,"Paragon"]
["2019-02-02","Chavez","19PG011","Chavez",11,"Paragon"]
["2019-02-11","Fassbender","19PG067","Generic",11,"Paragon"]
["2019-02-13","Hamilton","19PG038","Generic",11,"Paragon"]
["2019-03-01","Chavez","19PG012","Chavez",11,"Paragon"]
["2019-03-01","Ryan","19PG070","Generic",13,"Paragon","ROV"]
["2019-03-02","Chavez","19PG013","Chavez",11,"Paragon"]
["2019-03-13","Hamilton","19PG039","Generic",11,"Paragon"]
["2019-03-14","Ryan","19PG071","Generic",11,"Paragon"]
["2019-03-18","Ryan","19PG072","Generic",11,"Paragon"]
["2019-03-25","Smith","19PG046","Smith",11,"Paragon"]
["2019-03-25","Ryan","19PG073","Generic",13,"Paragon","ROV"]
["2019-04-01","Chavez","19PG014","Chavez",11,"Paragon"]
["2019-04-02","Chavez","19PG015","Chavez",11,"Paragon"]
["2019-04-02","Ryan","19PG074","Generic",13,"Paragon"]
["2019-04-08","Fassbender","19PG068","Generic",11,"Paragon"]
["2019-04-11","Katija","19PG092","Katija",11,"Paragon"]
["2019-04-15","Smith","19PG047","Smith",11,"Paragon"]
["2019-04-16","Ryan","19PG075","Generic",11,"Paragon"]
["2019-04-29","PGa TEST 2",null,"AUV CTD",12,"Paragon"]
["2019-05-01","Chavez","19PG016","Chavez",11,"Paragon"]
["2019-05-01","Barry","19PG054","Barry",13,"Paragon","MAP"]
["2019-05-02","Chavez","19PG017","Chavez",11,"Paragon"]
["2019-05-07","Ryan","19PG076","Generic",11,"Paragon"]
["2019-05-13","Barry","19PG055","Barry",11,"Paragon"]
["2019-05-14","Ryan","19PG078","Generic",11,"Paragon"]
["2019-05-15","Katija","19PG093","Katija",11,"Paragon"]
["2019-05-21","CANON","19PG004","CANON",11,"Paragon"]
["2019-06-01","Chavez","19PG018","Chavez",11,"Paragon"]
["2019-06-02","Chavez","19PG019","Chavez",11,"Paragon"]
["2019-06-03","Chaffey","19PG059","Generic",11,"Paragon"]
["2019-06-04","Ryan","19PG080","Generic",11,"Paragon"]
["2019-06-10","Fassbender","19PG069","Generic",11,"Paragon"]
["2019-06-11","Ryan","19PG081","Generic",11,"Paragon"]
["2019-06-12","Hamilton","19PG040","Generic",11,"Paragon"]
["2019-06-12","Katija","19PG094","Katija",13,"Paragon","i2MAP"]
["2019-06-17","Johnson","19PG035","Generic",11,"Paragon"]
["2019-06-17","Barry","19PG056","Barry",13,"Paragon"]
["2019-06-30","Chavez","19PG020","Chavez",13,"Paragon","ROV"]
["2019-07-01","DMO-WG","19PG002","Generic",11,"Paragon"]
["2019-07-01","Smith","19PG048","Smith",13,"Paragon","ROV"]
["2019-07-02","Chavez","19PG021","Chavez",11,"Paragon"]
["2019-07-02","Ryan","19PG082","Generic",13,"Paragon"]
["2019-07-09","Ryan","19PG083","Generic",11,"Paragon"]
["2019-07-22","Smith","19PG049","Smith",11,"Paragon"]
["2019-07-24","Hamilton","19PG041","Generic",11,"Paragon"]
["2019-08-01","Chavez","19PG022","Chavez",11,"Paragon"]
["2019-08-01","Barry","19PG057","Barry",13,"Paragon","ROV"]
["2019-08-02","Chavez","19PG023","Chavez",11,"Paragon"]
["2019-08-06","Ryan","19PG084","Generic",11,"Paragon"]
["2019-08-07","AMP","19PG033","MBA",11,"Paragon"]
["2019-08-12","Johnson","19PG036","Generic",11,"Paragon"]
["2019-08-13","Ryan","19PG085","Generic",11,"Paragon"]
["2019-09-01","Chavez","19PG024","Chavez",11,"Paragon"]
["2019-09-02","Chavez","19PG025","Chavez",11,"Paragon"]
["2019-09-03","AMP","19PG034","MBA",11,"Paragon"]
["2019-09-03","Ryan","19PG086","Generic",13,"Paragon","ROV"]
["2019-09-10","Ryan","19PG087","Generic",11,"Paragon"]
["2019-09-21","CANON","19PG005","CANON",11,"Paragon"]
["2019-09-23","Smith","19PG050","Smith",11,"Paragon"]
["2019-09-23","Katija","19PG065","Katija",13,"Paragon","ROV"]
["2019-09-30","Smith","19PG051","Smith",11,"Paragon"]
["2019-10-01","Chavez","19PG026","Chavez",11,"Paragon"]
["2019-10-01","Barry","19PG058","Barry",13,"Paragon","ROV"]
["2019-10-02","Chavez","19PG027","Chavez",11,"Paragon"]
["2019-10-08","Ryan","19PG088","Generic",11,"Paragon"]
["2019-10-15","Ryan","19PG043","Generic",11,"Paragon"]
["2019-10-15","Ryan","19PG089","Generic",13,"Paragon","ROV"]
["2019-10-23","Katija","19PG095","Katija",11,"Paragon"]
["2019-11-01","Chavez","19PG028","Chavez",11,"Paragon"]
["2019-11-02","Chavez","19PG029","Chavez",11,"Paragon"]
["2019-11-04","Chaffey","19PG064","Generic",11,"Paragon"]
["2019-11-04","Katija","19PG066","Katija",13,"Paragon"]
["2019-11-05","Ryan","19PG090","Generic",11,"Paragon"]
["2019-11-12","Ryan","19PG091","Generic",11,"Paragon"]
["2019-11-18","Fassbender","19PG063","Generic",11,"Paragon"]
["2019-12-01","Chavez","19PG030","Chavez",11,"Paragon"]
["2019-12-02","Chavez","19PG031","Chavez",11,"Paragon"]
["2019-12-03","Chavez","19PG032","Chavez",11,"Paragon"]
["2019-12-03","Ryan","19PG077","Generic",13,"Paragon"]
["2019-12-04","Katija","19PG096","Katija",11,"Paragon"]
["2019-12-10","Ryan","19PG079","Generic",11,"Paragon"]

{"sheet":"ChangeLog","index":8,"n_rows":48,"n_cols":11,"rows_kept":48,"cut":false,"hidden":false,"merged":[[0,1,0,6],[0,9,0,10],[2,2,2,3],[2,4,2,5],[2,9,2,10]]}
[null,"MBARI SHIP SCHEDULE 2019    CHANGE LOG",null,null,null,null,null,null,"Last Saved: ",{"$f":"NOW()","v":"2019-06-17T15:27:23.690"}]
[]
[null,null,"REVISION",null,"SCHEDULE",null,null,null,null,"REQUESTED"]
[null,"STATUS","REV DATE","#","SCHED DATE","SHIP","WAS","NOW","NOTES","BY","DATE"]
[]
[null,"Revised",null,"1b",null,"WF",null,null,"Added WF audit dates.","McKee","December"]
[null,"Revised","2018-11-01",2,"2019-10-17","RC","Chavez CTD","Contingency","CTD tech sched conflict","Grech","December"]
[null,"Revised","*",2,"2019-10-24","RC","Contingency","Chavez CTD"]
[null,"Revised","2019-01-03",3,"2019-01-10","RC","Rock AUV","Contg",null,"Caress","2019-01-03"]
[null,"Revised","*",3,"2019-01-24","RC","Caress","Rock",null,"Caress"]
[null,"Revised","*",3,"2019-04-30","RC","Contg","Caress","Mapping AUV still in Mexico","Caress"]
[null,"Revised","2019-01-10",4,"2019-01-14","RC","Contingency","Maint"]
[null,"Revised","*",4,"2019-01-15","RC","Quest 12","DMO"]
[null,"Revised","2019-01-16",5,"2019-01-15","RC","DMO","weathered out","DMO moved to 12/12"]
[null,"Revised","*",5,"2019-01-29","RC","KBB 10 hr","KBB 12 hr","Add'l time needed at MARS for recovery"]
[null,"Revised","*",5,"2019-05-30","RC","Contingency","Quest/MARS 12hr","Quest was floating","Quest"]
[null,"Revised","*",5,"2019-12-12","RC","Contingency","DMO","From 1/15 for cable recovery"]
[null,"Revised",null,6,"2019-02-12","RC","Contingency","AMP-B","MBA moved from 2/21","Grech"]
[null,"Revised",null,6,"2019-02-21","RC","AMP-B","DMO","Swap for MOBB cable rec","Grech"]
[null,"Revised",null,6,"2019-12-12","RC","DMO","Contingency","Moved to 2/21","Grech"]
[null,"Revised",null,"6a","2019-01-23","RC","KBB 12hr","KBB 10hr","Extra time at MARS not needed."]
[null,"Revised","2019-01-23",7,"2019-04-15","RC","AMP-M","Rock Mini ROV","Kakani needed swap due to ","Katija","Feb."]
[null,"Revised","*",7,"2019-04-22","RC","Rock Mini","Contingency","conflict on WF cruise.","Katija","\""]
[null,"Revised","*",7,"2019-10-17","RC","Contingency","AMP-M","\"","Katija","\""]
[null,"Revised","*",7,"2019-04-16","RC","Mobilization","Katija Mini","Swapped Katija and mob that week to streamline","\"","\""]
[null,"Revised","*",7,"2019-04-18","RC","Katija","Mob","\"","\"","\""]
[null,"Revised","2019-03-05",8,"2019-06-17","RC","Mesobot","MBA-B","Moved Mesobot and AMP to accommodate June 19 day of science for Katija.","Katija","Feb."]
[null,"Revised","*",8,"2019-06-19","RC","Katija ROV","Mesobot","\"","\""]
[null,"Revised","*",8,"2019-06-21","RC","Mobilization","Katija MiniROV","All 6 Katija days are MiniROV (no Ventana).","\""]
[null,"Revised","*",8,"2019-06-24","RC","AMP-B","Mobilization","\"","\""]
[null,"Revised","*",8,"2019-03-08","RC","Rock Iceberg","Caress mapping","Rock and Caress swapped","Caress/Rock"]
[null,"Revised","*",8,"2019-04-30","RC","Caress Mapping ","Rock Iceberg",null,null,"Feb."]
[null,"Revised","2019-03-08",9,"2019-04-30","RC","Rock Iceberg","Contingency","Rock Iceberg day floating","Rock","2019-03-07"]
[null,"Revised","*",9,"2019-04-15","RC","Rock Mini + ROV","Rock Mini","Corrected error","TC","2019-03-08"]
[null,"Revised","*",9,"2019-11-04","RC","Rock Mini + ROV","Rock Mini","Corrected error","TC","2019-03-08"]
[null,"Revised","2019-04-15",10,null,"WF",null,null,"Added audit dates","CG","2019-04-15"]
[null,"Revised","*",10,"2019-07-16","WF","Shoreside","Haddock","Extended cruise due to tides","Haddock","2019-03-07"]
[null,"Revised","*",10,"2019-04-22","RC","Contingency","Maintenance",null,"Gregg","2019-04-15"]
[null,"Revised","2019-04-16","10a","2019-04-28","RC","Maintenance","Quest/MARS 12hr","Rearranged w/o 5/28 to provide mob for Quest and Barry","CG","2019-04-16"]
[null,"Revised","*","10a","2019-04-29","RC","Barry","Mob","\"","\""]
[null,"Revised","*","10a","2019-04-30","RC","Quest 12","Barry","\"","\""]
[null,"Revised","2019-05-13",11,"2019-06-28","RC","Rock AUV","Contingency",null,"Rock","2019-05-08"]
[null,"Revised","*",11,"2019-07-15","RC","Mob for MARS","Rock AUV","MARS-12 floated"]
[null,"Revised","*",11,"2019-07-16","RC","MARS-12","Contingency"]
[null,"Revised","2019-05-17",12,"2019-05-21","RC","KBB ROV+AUV","Maintenance","Crane repair continued","DMO","2019-05-17"]
[null,"Revised","*",12,"2019-05-22","RC","Robison ROV+AUV","Robison ROV","No AUV ops this week (repair)","\""]
[null,"Revised","*",12,"2019-06-06","RC","Robison AUV","KBB ROV+AUV","From 5/21","\""]
[null,"Revised","*",12,"2019-06-07","RC","Maintenance","Robison AUV","From 6/6","\""]

{"sheet":"Print","index":9,"n_rows":45,"n_cols":24,"rows_kept":45,"cut":false,"hidden":false,"merged":[[5,3,7,3],[0,9,0,13]]}
[null,"Print Matrix",null,null,null,"Rev: 12",null,null,null,"2019-05-17",null,null,null,null,null,null,null,null,null,null,null,"Excel File Rev Date:","2019-01-14"]
[null,"Beta-2",null,null,null,"Set for Print Title",null,null,null,"Set for Print Title"]
[null,"Carson","Print ID >",null,"A","B","C","D","E","F","G","H","I","J","K","L","M",null,"Run",null,"Custom Version for:"]
[null,null,null,null,null,null,null,null,null,null,null,null,null,null,null,null,null,null,"x","A",null,"Rachel Carson","1. PI + assets + maint/mob"," "]
[null,"Colors","PI",null,"x","x","x","x","x","x",null,"x","x","x","x","x",null,null,"x","B",null,"Rachel Carson","2. PI"]
[null,null,"Asset AT ","or","x",null,"x",null,"x",null,null,"x","x",null,"x",null,null,null,"x","C",null,"Western Flyer","1. PI + assets"]
[null,null,"Asset RA ",null,null,null,null,null,null,null,null,null,null,null,null,null,"x",null,"x","D",null,"Western Flyer","2. PI"]
[null,null,"Asset AUV",null,null,null,null,null,null,null,"x",null,null,null,null,null,null,null,"x","E","no Ext","WF, RC, Paragon","1. PI + assets"]
[null,null,"Maint+Mob",null,"x",null,null,null,null,null,null,null,null,null,null,null,null,null,"x","F","no Ext","WF, RC, Paragon","2. PI"]
[null,null,null,null,null,null,null,null,null,null,null,null,null,null,null,null,null,null,"x","G","no Ext","AUV","All ships + AUV (WF, RC, Paragon, Ext1, Ext2)"]
[null,"SHIP","Carson",null,"x","x",null,null,"x","x",null,null,null,"x","x","x",null,null,"x","H",null,"External","PI + assets"]
[null,null,"Assets",null,"x",null,null,null,"x",null,"x",null,null,null,"x","x","x",null,"x","I",null,"Paragon","PI + assets"]
[null,null,"Flyer",null,null,null,"x","x","x","x",null,null,null,"x","x",null,null,null,"x","J",null,"RC and WF","PI"]
[null,null,"Assets",null,null,null,"x",null,"x",null,"x",null,null,null,"x",null,"x",null,"x","K",null,"RC and WF","PI + Assets"]
[null,null,"External-1",null,null,null,null,null,null,null,null,"x",null,null,null,null,null,null,"x","L",null,"RC","PI + Assets + Tides"]
[null,null,"Assets",null,null,null,null,null,null,null,null,"x",null,null,null,null,null,null,"x","M","error web","Assets RA","R+A Color"]
[null,null,"External-2",null,null,null,null,null,null,null,null,null,null,null,null,null,null,null,null,"N"]
[null,null,"Assets",null,null,null,null,null,null,null,null,null,null,null,null,null,null,null,null,"O"]
[null,null,"Paragon",null,null,null,null,null,"x","x",null,null,"x"]
[null,null,"Assets",null,null,null,null,null,"x",null,"x",null,"x",null,null,null,"x"]
[]
[null,"Output","Screen Only",null,null,null,null,null,null,null,null,null,null,null,null,null,null,null,"need?"]
[null,null,"PDF",null,"x","x","x","x","x","x","x","x","x","x","x",null,"x"]
[null,null,"Webpage",null,"x","x","x","x","x","x","ok","x","x","x","x",null,"err",null,"Assets in HTML: split cell colors won't show correctly, shows first color; partial fix"]
[null,null,"Port/Land",null,"L","L","L","L","P","P","L","L","L","L","P",null,"L",null,"Portrait or Landscape"]
[null,null,"Page Count",null,1,1,1,1,1,1,1,1,1,1,1,null,null,null,"How many pages to print this on"]
[null,null,"Print Count",null,null,null,null,null,null,null,null,null,null,null,null,null,null,null,"How many print copies needed"]
[null,null,"Note: This table is for viewing settings only; It does not control any code."]
[]
[null,null,"This next row controls where the files are placed by code; web folder path is:"]
[null,null,"M:\\ships_calendar\\Website_2019\\"]
[null,null,"Sample format>  M:\\ships_calendar\\Website_2019\\    "]
[null,null,"Need \"\\\" at end !"]
[null,null,"Need to have folders created before using ."]
[null,null,"Warning: will not save if PDF file is open",null,null,null,null,null,null,null,null,null,null,null,"`"]
[]
[]
[]
[]
[]
[]
[null,null,"Previous Excel File Rev Dates:"]
[null,null,"2018-11-28"]
[null,null,"2018-11-19"]
[null,null,"2019-01-07"]